﻿Department family,Entity,Date of payment,Expense type,Expense area,Supplier,Transaction number,Amount in Sterling,Supplier VAT Registration Number
Department of Health,Guys and St Thomas NHS Foundation Trust,24/09/2021,(84650) Establishment,(id:4988419) TAP,MEDACS HEALTHCARE SERVICES PLC,id:14453388 ,2278.8,
Department of Health,Guys and St Thomas NHS Foundation Trust,24/09/2021,(81100) Dressings,(id:4621419) TAP,NHS SUPPLY CHAIN (MAIDSTONE),id:14370204  ,2.02,
Department of Health,Guys and St Thomas NHS Foundation Trust,03/09/2021,(82800) Bedding & Linen,(id:41907) TAP,NHS SUPPLY CHAIN (MAIDSTONE),id:14322418   ,687.99,
Department of Health,Guys and St Thomas NHS Foundation Trust,03/09/2021,(81200) Medical Surgical Supplies & Equipment,(id:41907) TAP,NHS SUPPLY CHAIN (MAIDSTONE),id:14322418 ,1554.04,
Department of Health,Guys and St Thomas NHS Foundation Trust,24/09/2021,(81100) Dressings,(id:41907) TAP,NHS SUPPLY CHAIN (MAIDSTONE),id:14370204    ,43.59,
Department of Health,Guys and St Thomas NHS Foundation Trust,03/09/2021,(82600) Uniforms & Clothing,(id:41907) TAP,NHS SUPPLY CHAIN (MAIDSTONE),id:14323557    ,10.08,
Department of Health,Guys and St Thomas NHS Foundation Trust,28/09/2021,(82600) Uniforms & Clothing,(id:41907) TAP,NHS SUPPLY CHAIN (MAIDSTONE),id:14350551    ,20.88,
Department of Health,Guys and St Thomas NHS Foundation Trust,03/09/2021,(81200) Medical Surgical Supplies & Equipment,(id:41906) TAP,NHS SUPPLY CHAIN (MAIDSTONE),id:14322418 ,2507.37,
Department of Health,Guys and St Thomas NHS Foundation Trust,03/09/2021,(81100) Dressings,(id:41906) TAP,NHS SUPPLY CHAIN (MAIDSTONE),id:14323557    ,207.41,
Department of Health,Guys and St Thomas NHS Foundation Trust,24/09/2021,(82600) Uniforms & Clothing,(id:41906) TAP,NHS SUPPLY CHAIN (MAIDSTONE),id:14370204    ,103.54,
Department of Health,Guys and St Thomas NHS Foundation Trust,28/09/2021,(82600) Uniforms & Clothing,(id:41906) TAP,NHS SUPPLY CHAIN (MAIDSTONE),id:14350551    ,114.66,
Department of Health,Guys and St Thomas NHS Foundation Trust,03/09/2021,(82800) Bedding & Linen,(id:41905) TAP,NHS SUPPLY CHAIN (MAIDSTONE),id:14323557   ,14.88,
Department of Health,Guys and St Thomas NHS Foundation Trust,24/09/2021,(81200) Medical Surgical Supplies & Equipment,(id:41905) TAP,NHS SUPPLY CHAIN (MAIDSTONE),id:14370204 ,2146.55,
Department of Health,Guys and St Thomas NHS Foundation Trust,03/09/2021,(81100) Dressings,(id:41905) TAP,NHS SUPPLY CHAIN (MAIDSTONE),id:14323557    ,77.53,
Department of Health,Guys and St Thomas NHS Foundation Trust,24/09/2021,(81100) Dressings,(id:41905) TAP,NHS SUPPLY CHAIN (MAIDSTONE),id:14370204    ,57.97,
Department of Health,Guys and St Thomas NHS Foundation Trust,24/09/2021,(83400) Office Equipment,(id:41905) TAP,NHS SUPPLY CHAIN (MAIDSTONE),id:14337011  ,2.13,
Department of Health,Guys and St Thomas NHS Foundation Trust,28/09/2021,(81200) Medical Surgical Supplies & Equipment,(id:850419) TAP,NHS SUPPLY CHAIN (MAIDSTONE),id:14350551,70.41,
Department of Health,Guys and St Thomas NHS Foundation Trust,03/09/2021,(83400) Office Equipment,(id:850419) TAP,NHS SUPPLY CHAIN (MAIDSTONE),id:14323557 ,13.13,
Department of Health,Guys and St Thomas NHS Foundation Trust,24/09/2021,(82800) Bedding & Linen,(id:850419) TAP,NHS SUPPLY CHAIN (MAIDSTONE),id:14337011  ,283.73,
Department of Health,Guys and St Thomas NHS Foundation Trust,03/09/2021,(82700) Uniforms & Clothing,(id:41918) TAP,NHS SUPPLY CHAIN (MAIDSTONE),id:14323557    ,95.04,
Department of Health,Guys and St Thomas NHS Foundation Trust,24/09/2021,(82000) Provisions & Kitchens,(id:41918) TAP,NHS SUPPLY CHAIN (MAIDSTONE),id:14337011  ,3.1,
Department of Health,Guys and St Thomas NHS Foundation Trust,17/09/2021,(83400) Office Equipment,(id:41918) TAP,OFFICE DEPOT UK LTD,id:14324592 ,20.16,
Department of Health,Guys and St Thomas NHS Foundation Trust,24/09/2021,(83400) Office Equipment,(id:41918) TAP,NHS SUPPLY CHAIN (MAIDSTONE),id:14370204  ,360.77,
Department of Health,Guys and St Thomas NHS Foundation Trust,28/09/2021,(83400) Office Equipment,(id:41918) TAP,NHS SUPPLY CHAIN (MAIDSTONE),id:14350551  ,99.21,
Department of Health,Guys and St Thomas NHS Foundation Trust,28/09/2021,(81100) Dressings,(id:41918) TAP,NHS SUPPLY CHAIN (MAIDSTONE),id:14350551    ,359.79,
Department of Health,Guys and St Thomas NHS Foundation Trust,28/09/2021,(81225) Medical Surgical Supplies & Equipment,(id:41918) TAP,NHS SUPPLY CHAIN (MAIDSTONE),id:14350551 ,38.78,
Department of Health,Guys and St Thomas NHS Foundation Trust,17/09/2021,(50562) Qualified Nursing Staff,(id:41918) TAP,MEDICSPRO LTD,id:14426372,905.03,
Department of Health,Guys and St Thomas NHS Foundation Trust,03/09/2021,(82700) Uniforms & Clothing,(id:41916) TAP,NHS SUPPLY CHAIN (MAIDSTONE),id:14322418    ,446.3,
Department of Health,Guys and St Thomas NHS Foundation Trust,24/09/2021,(82000) Provisions & Kitchens,(id:41916) TAP,NHS SUPPLY CHAIN (MAIDSTONE),id:14337011  ,62.32,
Department of Health,Guys and St Thomas NHS Foundation Trust,03/09/2021,(82600) Uniforms & Clothing,(id:41916) TAP,NHS SUPPLY CHAIN (MAIDSTONE),id:14322418    ,155.67,
Department of Health,Guys and St Thomas NHS Foundation Trust,24/09/2021,(81700) Lab Equipment Purchase,(id:41916) TAP,NHS SUPPLY CHAIN (MAIDSTONE),id:14337011 ,5.34,
Department of Health,Guys and St Thomas NHS Foundation Trust,24/09/2021,(81200) Medical Surgical Supplies & Equipment,(id:41924) TAP,NHS SUPPLY CHAIN (MAIDSTONE),id:14370204 ,5.04,
Department of Health,Guys and St Thomas NHS Foundation Trust,03/09/2021,(81700) Lab Equipment Purchase,(id:41924) TAP,NHS SUPPLY CHAIN (MAIDSTONE),id:14322418 ,97.09,
Department of Health,Guys and St Thomas NHS Foundation Trust,03/09/2021,(81700) Lab Equipment Purchase,(id:41924) TAP,NHS SUPPLY CHAIN (MAIDSTONE),id:14323557 ,36.59,
Department of Health,Guys and St Thomas NHS Foundation Trust,24/09/2021,(82700) Uniforms & Clothing,(id:41923) TAP,NHS SUPPLY CHAIN (MAIDSTONE),id:14337011    ,87.36,
Department of Health,Guys and St Thomas NHS Foundation Trust,03/09/2021,(82800) Bedding & Linen,(id:41922) TAP,NHS SUPPLY CHAIN (MAIDSTONE),id:14322418   ,72.17,
Department of Health,Guys and St Thomas NHS Foundation Trust,28/09/2021,(82800) Bedding & Linen,(id:41922) TAP,NHS SUPPLY CHAIN (MAIDSTONE),id:14350551   ,40.2,
Department of Health,Guys and St Thomas NHS Foundation Trust,03/09/2021,(81700) Lab Equipment Purchase,(id:41922) TAP,NHS SUPPLY CHAIN (MAIDSTONE),id:14322418 ,204.8,
Department of Health,Guys and St Thomas NHS Foundation Trust,24/09/2021,(82600) Uniforms & Clothing,(id:41883) TAP,NHS SUPPLY CHAIN (MAIDSTONE),id:14370204    ,192.89,
Department of Health,Guys and St Thomas NHS Foundation Trust,03/09/2021,(81200) Medical Surgical Supplies & Equipment,(id:41883) TAP,NHS SUPPLY CHAIN (MAIDSTONE),id:14323557 ,2853.7,
Department of Health,Guys and St Thomas NHS Foundation Trust,03/09/2021,(81200) Medical Surgical Supplies & Equipment,(id:41883) TAP,JOHNSON & JOHNSON MEDICAL LTD,id:14332528,35.56,
Department of Health,Guys and St Thomas NHS Foundation Trust,24/09/2021,(81200) Medical Surgical Supplies & Equipment,(id:41883) TAP,NHS SUPPLY CHAIN (MAIDSTONE),id:14337011 ,1123.52,
Department of Health,Guys and St Thomas NHS Foundation Trust,03/09/2021,(83400) Office Equipment,(id:41883) TAP,NHS SUPPLY CHAIN (MAIDSTONE),id:14323557  ,1080.13,
Department of Health,Guys and St Thomas NHS Foundation Trust,24/09/2021,(50562) Qualified Nursing Staff,(id:41883) TAP,STAFFING PROFESSIONALS LTD,id:14454988  ,955.19,
Department of Health,Guys and St Thomas NHS Foundation Trust,03/09/2021,(82600) Uniforms & Clothing,(id:2549419) TAP,NHS SUPPLY CHAIN (MAIDSTONE),id:14323557  ,4.21,
Department of Health,Guys and St Thomas NHS Foundation Trust,03/09/2021,(81200) Medical Surgical Supplies & Equipment,(id:2549419) TAP,NHS SUPPLY CHAIN (MAIDSTONE),id:14322418    ,165.9,
Department of Health,Guys and St Thomas NHS Foundation Trust,03/09/2021,(81200) Medical Surgical Supplies & Equipment,(id:2549419) TAP,NHS SUPPLY CHAIN (MAIDSTONE),id:14323557    ,160.08,
Department of Health,Guys and St Thomas NHS Foundation Trust,03/09/2021,(81255) Medical Surgical Supplies & Equipment,(id:2549419) TAP,NHS SUPPLY CHAIN (MAIDSTONE),id:14323557    ,19.1,
Department of Health,Guys and St Thomas NHS Foundation Trust,24/09/2021,(81100) Dressings,(id:2549419) TAP,NHS SUPPLY CHAIN (MAIDSTONE),id:14337011  ,9.3,
Department of Health,Guys and St Thomas NHS Foundation Trust,24/09/2021,(83400) Office Equipment,(id:41897) TAP,NHS SUPPLY CHAIN (MAIDSTONE),id:14370204  ,1886.72,
Department of Health,Guys and St Thomas NHS Foundation Trust,28/09/2021,(83400) Office Equipment,(id:41897) TAP,NHS SUPPLY CHAIN (MAIDSTONE),id:14350551  ,677.54,
Department of Health,Guys and St Thomas NHS Foundation Trust,03/09/2021,(82800) Bedding & Linen,(id:41897) TAP,NHS SUPPLY CHAIN (MAIDSTONE),id:14323557   ,296.11,
Department of Health,Guys and St Thomas NHS Foundation Trust,24/09/2021,(82800) Bedding & Linen,(id:41897) TAP,NHS SUPPLY CHAIN (MAIDSTONE),id:14337011   ,20.1,
Department of Health,Guys and St Thomas NHS Foundation Trust,24/09/2021,(82700) Uniforms & Clothing,(id:41897) TAP,NHS SUPPLY CHAIN (MAIDSTONE),id:14370204    ,21.84,
Department of Health,Guys and St Thomas NHS Foundation Trust,03/09/2021,(81200) Medical Surgical Supplies & Equipment,(id:41897) TAP,JOHNSON & JOHNSON MEDICAL LTD,id:14339734,1082.05,
Department of Health,Guys and St Thomas NHS Foundation Trust,10/09/2021,(81200) Medical Surgical Supplies & Equipment,(id:41897) TAP,JOHNSON & JOHNSON MEDICAL LTD,id:14355543,936.84,
Department of Health,Guys and St Thomas NHS Foundation Trust,24/09/2021,(81200) Medical Surgical Supplies & Equipment,(id:41897) TAP,KEBOMED UK,id:14453594    ,509.4,
Department of Health,Guys and St Thomas NHS Foundation Trust,24/09/2021,(81200) Medical Surgical Supplies & Equipment,(id:41897) TAP,BARD LTD,id:14374356 ,228.96,
Department of Health,Guys and St Thomas NHS Foundation Trust,17/09/2021,(81100) Dressings,(id:41897) TAP,ELIS UK LIMITED,id:14411554  ,425.15,
Department of Health,Guys and St Thomas NHS Foundation Trust,17/09/2021,(81100) Dressings,(id:41897) TAP,ELIS UK LIMITED,id:14411334  ,789.35,
Department of Health,Guys and St Thomas NHS Foundation Trust,17/09/2021,(81100) Dressings,(id:41897) TAP,ELIS UK LIMITED,id:14384758  ,586.5,
Department of Health,Guys and St Thomas NHS Foundation Trust,03/09/2021,(81700) Lab Equipment Purchase,(id:41897) TAP,NHS SUPPLY CHAIN (MAIDSTONE),id:14323557 ,8.46,
Department of Health,Guys and St Thomas NHS Foundation Trust,03/09/2021,(82000) Provisions & Kitchens,(id:41897) TAP,NHS SUPPLY CHAIN (MAIDSTONE),id:14322418  ,80.16,
Department of Health,Guys and St Thomas NHS Foundation Trust,28/09/2021,(81100) Dressings,(id:41894) TAP,NHS SUPPLY CHAIN (MAIDSTONE),id:14350551    ,43.52,
Department of Health,Guys and St Thomas NHS Foundation Trust,24/09/2021,(83400) Office Equipment,(id:41894) TAP,NHS SUPPLY CHAIN (MAIDSTONE),id:14370204  ,47.3,
Department of Health,Guys and St Thomas NHS Foundation Trust,03/09/2021,(81200) Medical Surgical Supplies & Equipment,(id:41894) TAP,NHS SUPPLY CHAIN (MAIDSTONE),id:14322418 ,1984.18,
Department of Health,Guys and St Thomas NHS Foundation Trust,03/09/2021,(81200) Medical Surgical Supplies & Equipment,(id:41894) TAP,JOHNSON & JOHNSON MEDICAL LTD,id:14324545,91.18,
Department of Health,Guys and St Thomas NHS Foundation Trust,03/09/2021,(81200) Medical Surgical Supplies & Equipment,(id:41894) TAP,ELIS UK LIMITED,id:14360573    ,40.56,
Department of Health,Guys and St Thomas NHS Foundation Trust,28/09/2021,(81200) Medical Surgical Supplies & Equipment,(id:41894) TAP,NHS SUPPLY CHAIN (MAIDSTONE),id:14350551 ,611.85,
Department of Health,Guys and St Thomas NHS Foundation Trust,28/09/2021,(81200) Medical Surgical Supplies & Equipment,(id:41892) TAP,NHS SUPPLY CHAIN (MAIDSTONE),id:14350551 ,4.1,
Department of Health,Guys and St Thomas NHS Foundation Trust,24/09/2021,(81200) Medical Surgical Supplies & Equipment,(id:41959) Gastrointestinal Medicine & Surgery,NHS SUPPLY CHAIN (MAIDSTONE),id:14370204    ,1222.8,
Department of Health,Guys and St Thomas NHS Foundation Trust,24/09/2021,(82700) Uniforms & Clothing,(id:41958) Gastrointestinal Medicine & Surgery,NHS SUPPLY CHAIN (MAIDSTONE),id:14337011  ,75.36,
Department of Health,Guys and St Thomas NHS Foundation Trust,24/09/2021,(81225) Medical Surgical Supplies & Equipment,(id:41958) Gastrointestinal Medicine & Surgery,NHS SUPPLY CHAIN (MAIDSTONE),id:14337011    ,4.85,
Department of Health,Guys and St Thomas NHS Foundation Trust,03/09/2021,(81700) Lab Equipment Purchase,(id:41958) Gastrointestinal Medicine & Surgery,NHS SUPPLY CHAIN (MAIDSTONE),id:14323557    ,66.47,
Department of Health,Guys and St Thomas NHS Foundation Trust,03/09/2021,(82700) Uniforms & Clothing,(id:41954) Gastrointestinal Medicine & Surgery,NHS SUPPLY CHAIN (MAIDSTONE),id:14323557  ,31.68,
Department of Health,Guys and St Thomas NHS Foundation Trust,03/09/2021,(82700) Uniforms & Clothing,(id:41954) Gastrointestinal Medicine & Surgery,NHS SUPPLY CHAIN (MAIDSTONE),id:14322418  ,31.68,
Department of Health,Guys and St Thomas NHS Foundation Trust,28/09/2021,(82000) Provisions & Kitchens,(id:41954) Gastrointestinal Medicine & Surgery,NHS SUPPLY CHAIN (MAIDSTONE),id:14350551,42.04,
Department of Health,Guys and St Thomas NHS Foundation Trust,03/09/2021,(83400) Office Equipment,(id:41954) Gastrointestinal Medicine & Surgery,NHS SUPPLY CHAIN (MAIDSTONE),id:14322418,64.13,
Department of Health,Guys and St Thomas NHS Foundation Trust,03/09/2021,(83400) Office Equipment,(id:41954) Gastrointestinal Medicine & Surgery,NHS SUPPLY CHAIN (MAIDSTONE),id:14323557,71.92,
Department of Health,Guys and St Thomas NHS Foundation Trust,28/09/2021,(81700) Lab Equipment Purchase,(id:41954) Gastrointestinal Medicine & Surgery,NHS SUPPLY CHAIN (MAIDSTONE),id:14350551    ,5.34,
Department of Health,Guys and St Thomas NHS Foundation Trust,03/09/2021,(81100) Dressings,(id:41951) Gastrointestinal Medicine & Surgery,NHS SUPPLY CHAIN (MAIDSTONE),id:14323557  ,1.8,
Department of Health,Guys and St Thomas NHS Foundation Trust,24/09/2021,(81100) Dressings,(id:41951) Gastrointestinal Medicine & Surgery,NHS SUPPLY CHAIN (MAIDSTONE),id:14337011  ,7.5,
Department of Health,Guys and St Thomas NHS Foundation Trust,10/09/2021,(84656) Establishment,(id:41951) Gastrointestinal Medicine & Surgery,DICT8 LIMITED,id:14330774   ,1014.24,
Department of Health,Guys and St Thomas NHS Foundation Trust,10/09/2021,(81200) Medical Surgical Supplies & Equipment,(id:41949) Gastrointestinal Medicine & Surgery,JOHNSON & JOHNSON MEDICAL LTD,id:14344673   ,312.05,
Department of Health,Guys and St Thomas NHS Foundation Trust,10/09/2021,(81200) Medical Surgical Supplies & Equipment,(id:41949) Gastrointestinal Medicine & Surgery,JOHNSON & JOHNSON MEDICAL LTD,id:14348947   ,2282.23,
Department of Health,Guys and St Thomas NHS Foundation Trust,24/09/2021,(81200) Medical Surgical Supplies & Equipment,(id:41949) Gastrointestinal Medicine & Surgery,JOHNSON & JOHNSON MEDICAL LTD,id:14386062   ,592.84,
Department of Health,Guys and St Thomas NHS Foundation Trust,24/09/2021,(81200) Medical Surgical Supplies & Equipment,(id:41949) Gastrointestinal Medicine & Surgery,NHS SUPPLY CHAIN (MAIDSTONE),id:14370204    ,564.5,
Department of Health,Guys and St Thomas NHS Foundation Trust,24/09/2021,(81200) Medical Surgical Supplies & Equipment,(id:41949) Gastrointestinal Medicine & Surgery,JOHNSON & JOHNSON MEDICAL LTD,id:14380860   ,4900.15,
Department of Health,Guys and St Thomas NHS Foundation Trust,24/09/2021,(81100) Dressings,(id:4740419) Gastrointestinal Medicine & Surgery,NHS SUPPLY CHAIN (MAIDSTONE),id:14337011,23.88,
Department of Health,Guys and St Thomas NHS Foundation Trust,03/09/2021,(82700) Uniforms & Clothing,(id:2367419) Gastrointestinal Medicine & Surgery,NHS SUPPLY CHAIN (MAIDSTONE),id:14323557,56.26,
Department of Health,Guys and St Thomas NHS Foundation Trust,24/09/2021,(82000) Provisions & Kitchens,(id:2367419) Gastrointestinal Medicine & Surgery,NHS SUPPLY CHAIN (MAIDSTONE),id:14370204   ,324.71,
Department of Health,Guys and St Thomas NHS Foundation Trust,24/09/2021,(81200) Medical Surgical Supplies & Equipment,(id:2367419) Gastrointestinal Medicine & Surgery,NHS SUPPLY CHAIN (MAIDSTONE),id:14337011  ,451.81,
Department of Health,Guys and St Thomas NHS Foundation Trust,24/09/2021,(83400) Office Equipment,(id:2367419) Gastrointestinal Medicine & Surgery,NHS SUPPLY CHAIN (MAIDSTONE),id:14337011   ,50.67,
Department of Health,Guys and St Thomas NHS Foundation Trust,24/09/2021,(83500) Furniture & Fittings,(id:41942) Gastrointestinal Medicine & Surgery,NHS SUPPLY CHAIN (MAIDSTONE),id:14370204 ,276,
Department of Health,Guys and St Thomas NHS Foundation Trust,03/09/2021,(83400) Office Equipment,(id:41942) Gastrointestinal Medicine & Surgery,NHS SUPPLY CHAIN (MAIDSTONE),id:14323557,249.84,
Department of Health,Guys and St Thomas NHS Foundation Trust,03/09/2021,(82000) Provisions & Kitchens,(id:41917) Gastrointestinal Medicine & Surgery,NHS SUPPLY CHAIN (MAIDSTONE),id:14322418,57.3,
Department of Health,Guys and St Thomas NHS Foundation Trust,03/09/2021,(83400) Office Equipment,(id:41917) Gastrointestinal Medicine & Surgery,NHS SUPPLY CHAIN (MAIDSTONE),id:14323557,275.45,
Department of Health,Guys and St Thomas NHS Foundation Trust,03/09/2021,(81235) Medical Surgical Supplies & Equipment,(id:41917) Gastrointestinal Medicine & Surgery,BOSTON SCIENTIFIC LTD,id:14324515 ,1115.52,
Department of Health,Guys and St Thomas NHS Foundation Trust,10/09/2021,(81200) Medical Surgical Supplies & Equipment,(id:41917) Gastrointestinal Medicine & Surgery,BOSTON SCIENTIFIC LTD,id:14348907 ,4560,
Department of Health,Guys and St Thomas NHS Foundation Trust,17/09/2021,(81200) Medical Surgical Supplies & Equipment,(id:41917) Gastrointestinal Medicine & Surgery,BOSTON SCIENTIFIC LTD,id:14360869 ,2588.42,
Department of Health,Guys and St Thomas NHS Foundation Trust,24/09/2021,(81200) Medical Surgical Supplies & Equipment,(id:41917) Gastrointestinal Medicine & Surgery,NHS SUPPLY CHAIN (MAIDSTONE),id:14337011    ,23640.4,
Department of Health,Guys and St Thomas NHS Foundation Trust,24/09/2021,(81230) Medical Surgical Supplies & Equipment,(id:41917) Gastrointestinal Medicine & Surgery,MEDTRONIC LTD,id:14406466    ,3360,
Department of Health,Guys and St Thomas NHS Foundation Trust,03/09/2021,(86300) Healthcare from non-NHS bodies,(id:41917) Gastrointestinal Medicine & Surgery,18 WEEK SUPPORT LIMITED,id:14372914 ,5950,
Department of Health,Guys and St Thomas NHS Foundation Trust,10/09/2021,(50532) Unqualified Nursing Staff,(id:41917) Gastrointestinal Medicine & Surgery,CONTINENTAL NURSE LTD,id:14407073   ,1193.01,
Department of Health,Guys and St Thomas NHS Foundation Trust,01/09/2021,(84600) Establishment,(id:169405) Cancer Strategy,GLAZIERS HALL LTD,id:14372654   ,4320,
Department of Health,Guys and St Thomas NHS Foundation Trust,03/09/2021,(81700) Lab Equipment Purchase,(id:42423) Transplant Renal and Urology,NHS SUPPLY CHAIN (MAIDSTONE),id:14323557 ,67.97,
Department of Health,Guys and St Thomas NHS Foundation Trust,03/09/2021,(82700) Uniforms & Clothing,(id:42419) Transplant Renal and Urology,NHS SUPPLY CHAIN (MAIDSTONE),id:14323557    ,31.68,
Department of Health,Guys and St Thomas NHS Foundation Trust,03/09/2021,(82700) Uniforms & Clothing,(id:969419) Transplant Renal and Urology,NHS SUPPLY CHAIN (MAIDSTONE),id:14322418   ,63.36,
Department of Health,Guys and St Thomas NHS Foundation Trust,10/09/2021,(81200) Medical Surgical Supplies & Equipment,(id:42450) Transplant Renal and Urology,STRYKER UK LTD,id:14399627,613.87,
Department of Health,Guys and St Thomas NHS Foundation Trust,10/09/2021,(81200) Medical Surgical Supplies & Equipment,(id:42450) Transplant Renal and Urology,MEDTRONIC LTD,id:14348971 ,931.18,
Department of Health,Guys and St Thomas NHS Foundation Trust,17/09/2021,(81200) Medical Surgical Supplies & Equipment,(id:42450) Transplant Renal and Urology,APPLIED MEDICAL UK LTD,id:14373514  ,1137.84,
Department of Health,Guys and St Thomas NHS Foundation Trust,17/09/2021,(81200) Medical Surgical Supplies & Equipment,(id:42450) Transplant Renal and Urology,JOHNSON & JOHNSON MEDICAL LTD,id:14358243,619.85,
Department of Health,Guys and St Thomas NHS Foundation Trust,24/09/2021,(81200) Medical Surgical Supplies & Equipment,(id:42450) Transplant Renal and Urology,JOHNSON & JOHNSON MEDICAL LTD,id:14394941,960.12,
Department of Health,Guys and St Thomas NHS Foundation Trust,03/09/2021,(81200) Medical Surgical Supplies & Equipment,(id:42449) Transplant Renal and Urology,NHS SUPPLY CHAIN (MAIDSTONE),id:14323557 ,90,
Department of Health,Guys and St Thomas NHS Foundation Trust,17/09/2021,(81200) Medical Surgical Supplies & Equipment,(id:42449) Transplant Renal and Urology,BXTACCELYON LIMITED,id:14418567,7254,
Department of Health,Guys and St Thomas NHS Foundation Trust,17/09/2021,(81200) Medical Surgical Supplies & Equipment,(id:42449) Transplant Renal and Urology,PROMED LTD,id:14425382    ,2400,
Department of Health,Guys and St Thomas NHS Foundation Trust,24/09/2021,(81100) Dressings,(id:42449) Transplant Renal and Urology,NHS SUPPLY CHAIN (MAIDSTONE),id:14337011    ,69.41,
Department of Health,Guys and St Thomas NHS Foundation Trust,03/09/2021,(82800) Bedding & Linen,(id:42447) Transplant Renal and Urology,NHS SUPPLY CHAIN (MAIDSTONE),id:14323557   ,76.32,
Department of Health,Guys and St Thomas NHS Foundation Trust,24/09/2021,(81200) Medical Surgical Supplies & Equipment,(id:42447) Transplant Renal and Urology,NHS SUPPLY CHAIN (MAIDSTONE),id:14337011 ,879.43,
Department of Health,Guys and St Thomas NHS Foundation Trust,03/09/2021,(81700) Lab Equipment Purchase,(id:42447) Transplant Renal and Urology,NHS SUPPLY CHAIN (MAIDSTONE),id:14323557 ,72.11,
Department of Health,Guys and St Thomas NHS Foundation Trust,28/09/2021,(81700) Lab Equipment Purchase,(id:42447) Transplant Renal and Urology,NHS SUPPLY CHAIN (MAIDSTONE),id:14350551 ,86.28,
Department of Health,Guys and St Thomas NHS Foundation Trust,03/09/2021,(81225) Medical Surgical Supplies & Equipment,(id:42447) Transplant Renal and Urology,NHS SUPPLY CHAIN (MAIDSTONE),id:14322418 ,12.48,
Department of Health,Guys and St Thomas NHS Foundation Trust,24/09/2021,(81200) Medical Surgical Supplies & Equipment,(id:42446) Transplant Renal and Urology,COOK UK LTD,id:14400717   ,641.16,
Department of Health,Guys and St Thomas NHS Foundation Trust,24/09/2021,(81200) Medical Surgical Supplies & Equipment,(id:42446) Transplant Renal and Urology,NHS SUPPLY CHAIN (MAIDSTONE),id:14370204 ,2519.18,
Department of Health,Guys and St Thomas NHS Foundation Trust,24/09/2021,(81200) Medical Surgical Supplies & Equipment,(id:42446) Transplant Renal and Urology,PAJUNK UK MEDICAL PRODUCTS LTD,id:14441878    ,561,
Department of Health,Guys and St Thomas NHS Foundation Trust,28/09/2021,(81200) Medical Surgical Supplies & Equipment,(id:42446) Transplant Renal and Urology,NHS SUPPLY CHAIN (MAIDSTONE),id:14350551 ,3723.7,
Department of Health,Guys and St Thomas NHS Foundation Trust,03/09/2021,(83400) Office Equipment,(id:42446) Transplant Renal and Urology,NHS SUPPLY CHAIN (MAIDSTONE),id:14323557  ,193.94,
Department of Health,Guys and St Thomas NHS Foundation Trust,03/09/2021,(81500) X Ray Equipment Purchase,(id:42446) Transplant Renal and Urology,NHS SUPPLY CHAIN (MAIDSTONE),id:14323557    ,2069.76,
Department of Health,Guys and St Thomas NHS Foundation Trust,03/09/2021,(81200) Medical Surgical Supplies & Equipment,(id:42444) Transplant Renal and Urology,KARL STORZ ENDOSCOPY UK LTD,id:14383874  ,1027.02,
Department of Health,Guys and St Thomas NHS Foundation Trust,24/09/2021,(81200) Medical Surgical Supplies & Equipment,(id:42444) Transplant Renal and Urology,BOSTON SCIENTIFIC LTD,id:14371663   ,623.28,
Department of Health,Guys and St Thomas NHS Foundation Trust,24/09/2021,(81200) Medical Surgical Supplies & Equipment,(id:42444) Transplant Renal and Urology,BOSTON SCIENTIFIC LTD,id:14353077   ,843.96,
Department of Health,Guys and St Thomas NHS Foundation Trust,24/09/2021,(81200) Medical Surgical Supplies & Equipment,(id:42444) Transplant Renal and Urology,COOK UK LTD,id:14387877   ,687.6,
Department of Health,Guys and St Thomas NHS Foundation Trust,10/09/2021,(81100) Dressings,(id:42444) Transplant Renal and Urology,COOK UK LTD,id:14328469 ,105.6,
Department of Health,Guys and St Thomas NHS Foundation Trust,10/09/2021,(83500) Furniture & Fittings,(id:42444) Transplant Renal and Urology,CJ MEDICAL,id:14399764 ,972,
Department of Health,Guys and St Thomas NHS Foundation Trust,24/09/2021,(83500) Furniture & Fittings,(id:42444) Transplant Renal and Urology,CJ MEDICAL,id:14383014 ,972,
Department of Health,Guys and St Thomas NHS Foundation Trust,28/09/2021,(82700) Uniforms & Clothing,(id:42443) Transplant Renal and Urology,NHS SUPPLY CHAIN (MAIDSTONE),id:14350551    ,31.68,
Department of Health,Guys and St Thomas NHS Foundation Trust,03/09/2021,(81200) Medical Surgical Supplies & Equipment,(id:42443) Transplant Renal and Urology,NHS SUPPLY CHAIN (MAIDSTONE),id:14322418 ,883.41,
Department of Health,Guys and St Thomas NHS Foundation Trust,28/09/2021,(82700) Uniforms & Clothing,(id:42442) Transplant Renal and Urology,NHS SUPPLY CHAIN (MAIDSTONE),id:14350551    ,31.68,
Department of Health,Guys and St Thomas NHS Foundation Trust,24/09/2021,(82800) Bedding & Linen,(id:42442) Transplant Renal and Urology,NHS SUPPLY CHAIN (MAIDSTONE),id:14370204   ,85.8,
Department of Health,Guys and St Thomas NHS Foundation Trust,28/09/2021,(81200) Medical Surgical Supplies & Equipment,(id:42442) Transplant Renal and Urology,NHS SUPPLY CHAIN (MAIDSTONE),id:14350551 ,1017.26,
Department of Health,Guys and St Thomas NHS Foundation Trust,28/09/2021,(83400) Office Equipment,(id:42442) Transplant Renal and Urology,NHS SUPPLY CHAIN (MAIDSTONE),id:14350551  ,112.97,
Department of Health,Guys and St Thomas NHS Foundation Trust,28/09/2021,(81700) Lab Equipment Purchase,(id:3671419) Transplant Renal and Urology,NHS SUPPLY CHAIN (MAIDSTONE),id:14350551    ,101.52,
Department of Health,Guys and St Thomas NHS Foundation Trust,24/09/2021,(81200) Medical Surgical Supplies & Equipment,(id:2653419) Transplant Renal and Urology,MEDTRONIC LTD,id:14386129    ,1140,
Department of Health,Guys and St Thomas NHS Foundation Trust,28/09/2021,(82700) Uniforms & Clothing,(id:42435) Transplant Renal and Urology,NHS SUPPLY CHAIN (MAIDSTONE),id:14350551    ,55.37,
Department of Health,Guys and St Thomas NHS Foundation Trust,28/09/2021,(83400) Office Equipment,(id:42435) Transplant Renal and Urology,NHS SUPPLY CHAIN (MAIDSTONE),id:14350551  ,185.82,
Department of Health,Guys and St Thomas NHS Foundation Trust,03/09/2021,(81700) Lab Equipment Purchase,(id:42435) Transplant Renal and Urology,NHS SUPPLY CHAIN (MAIDSTONE),id:14323557 ,116.38,
Department of Health,Guys and St Thomas NHS Foundation Trust,03/09/2021,(81700) Lab Equipment Purchase,(id:42435) Transplant Renal and Urology,NHS SUPPLY CHAIN (MAIDSTONE),id:14322418 ,87.75,
Department of Health,Guys and St Thomas NHS Foundation Trust,24/09/2021,(81400) Medical Surgical Supplies & Equipment,(id:42433) Transplant Renal and Urology,NHS SUPPLY CHAIN (MAIDSTONE),id:14370204 ,93.3,
Department of Health,Guys and St Thomas NHS Foundation Trust,10/09/2021,(81200) Medical Surgical Supplies & Equipment,(id:42433) Transplant Renal and Urology,JOHNSON & JOHNSON MEDICAL LTD,id:14143899,312.05,
Department of Health,Guys and St Thomas NHS Foundation Trust,10/09/2021,(81200) Medical Surgical Supplies & Equipment,(id:42433) Transplant Renal and Urology,HEALTHCARE 21 LTD,id:14377538  ,9481.5,
Department of Health,Guys and St Thomas NHS Foundation Trust,17/09/2021,(81200) Medical Surgical Supplies & Equipment,(id:42433) Transplant Renal and Urology,JOHNSON & JOHNSON MEDICAL LTD,id:14360886,1600.2,
Department of Health,Guys and St Thomas NHS Foundation Trust,17/09/2021,(81200) Medical Surgical Supplies & Equipment,(id:42433) Transplant Renal and Urology,TELEFLEX MEDICAL,id:14358259   ,855,
Department of Health,Guys and St Thomas NHS Foundation Trust,24/09/2021,(81200) Medical Surgical Supplies & Equipment,(id:42433) Transplant Renal and Urology,WL GORE & ASSOCIATES (UK) LTD,id:14427703,829.2,
Department of Health,Guys and St Thomas NHS Foundation Trust,28/09/2021,(81200) Medical Surgical Supplies & Equipment,(id:42433) Transplant Renal and Urology,NHS SUPPLY CHAIN (MAIDSTONE),id:14350551 ,840,
Department of Health,Guys and St Thomas NHS Foundation Trust,17/09/2021,(81200) Medical Surgical Supplies & Equipment,(id:42430) Transplant Renal and Urology,PLINTH MEDICAL LTD,id:14413814 ,841.8,
Department of Health,Guys and St Thomas NHS Foundation Trust,10/09/2021,(86300) Healthcare from non-NHS bodies,(id:42430) Transplant Renal and Urology,DIAVERUM UK LTD,id:14405364 ,51503.76,
Department of Health,Guys and St Thomas NHS Foundation Trust,03/09/2021,(82800) Bedding & Linen,(id:42428) Transplant Renal and Urology,NHS SUPPLY CHAIN (MAIDSTONE),id:14322418   ,61.3,
Department of Health,Guys and St Thomas NHS Foundation Trust,03/09/2021,(81100) Dressings,(id:42428) Transplant Renal and Urology,NHS SUPPLY CHAIN (MAIDSTONE),id:14323557    ,44.51,
Department of Health,Guys and St Thomas NHS Foundation Trust,24/09/2021,(84600) Establishment,(id:42428) Transplant Renal and Urology,CLARITY TRAVEL MANAGEMENT,id:13402615   ,255.26,
Department of Health,Guys and St Thomas NHS Foundation Trust,17/09/2021,(81200) Medical Surgical Supplies & Equipment,(id:42420) Transplant Renal and Urology,BAXTER HEALTHCARE LTD,id:14361394   ,2323.1,
Department of Health,Guys and St Thomas NHS Foundation Trust,24/09/2021,(80150) Drug Costs,(id:42420) Transplant Renal and Urology,NHS SUPPLY CHAIN (MAIDSTONE),id:14337011   ,13.66,
Department of Health,Guys and St Thomas NHS Foundation Trust,24/09/2021,(83400) Office Equipment,(id:42420) Transplant Renal and Urology,NHS SUPPLY CHAIN (MAIDSTONE),id:14370204  ,10.27,
Department of Health,Guys and St Thomas NHS Foundation Trust,28/09/2021,(82800) Bedding & Linen,(id:42420) Transplant Renal and Urology,NHS SUPPLY CHAIN (MAIDSTONE),id:14350551   ,31.56,
Department of Health,Guys and St Thomas NHS Foundation Trust,28/09/2021,(82000) Provisions & Kitchens,(id:42420) Transplant Renal and Urology,NHS SUPPLY CHAIN (MAIDSTONE),id:14350551  ,4.66,
Department of Health,Guys and St Thomas NHS Foundation Trust,10/09/2021,(86300) Healthcare from non-NHS bodies,(id:42438) Transplant Renal and Urology,DIAVERUM UK LTD,id:14405557 ,64753.92,
Department of Health,Guys and St Thomas NHS Foundation Trust,03/09/2021,(50562) Qualified Nursing Staff,(id:42438) Transplant Renal and Urology,GLOBE LOCUMS LTD,id:14380521  ,824.14,
Department of Health,Guys and St Thomas NHS Foundation Trust,10/09/2021,(86300) Healthcare from non-NHS bodies,(id:42437) Transplant Renal and Urology,DIAVERUM UK LTD,id:14405564 ,36749.7,
Department of Health,Guys and St Thomas NHS Foundation Trust,24/09/2021,(81700) Lab Equipment Purchase,(id:42432) Transplant Renal and Urology,NHS SUPPLY CHAIN (MAIDSTONE),id:14370204 ,16.38,
Department of Health,Guys and St Thomas NHS Foundation Trust,03/09/2021,(81200) Medical Surgical Supplies & Equipment,(id:42427) Transplant Renal and Urology,NHS SUPPLY CHAIN (MAIDSTONE),id:14322418 ,59.65,
Department of Health,Guys and St Thomas NHS Foundation Trust,10/09/2021,(86300) Healthcare from non-NHS bodies,(id:42427) Transplant Renal and Urology,DIAVERUM UK LTD,id:14405535 ,51115.68,
Department of Health,Guys and St Thomas NHS Foundation Trust,10/09/2021,(86300) Healthcare from non-NHS bodies,(id:42424) Transplant Renal and Urology,DIAVERUM UK LTD,id:14405577 ,31340.4,
Department of Health,Guys and St Thomas NHS Foundation Trust,24/09/2021,(80010) Drug Costs,(id:42422) Transplant Renal and Urology,NHS SUPPLY CHAIN (MAIDSTONE),id:14370204   ,91.68,
Department of Health,Guys and St Thomas NHS Foundation Trust,17/09/2021,(80150) Drug Costs,(id:4622425) Transplant Renal and Urology,FRESENIUS MEDICAL CARE UK LTD,id:14385256,749.98,
Department of Health,Guys and St Thomas NHS Foundation Trust,17/09/2021,(80150) Drug Costs,(id:4622425) Transplant Renal and Urology,FRESENIUS MEDICAL CARE UK LTD,id:14385234,1165.45,
Department of Health,Guys and St Thomas NHS Foundation Trust,24/09/2021,(81200) Medical Surgical Supplies & Equipment,(id:884419) Surgery,NHS SUPPLY CHAIN (MAIDSTONE),id:14337011 ,152.32,
Department of Health,Guys and St Thomas NHS Foundation Trust,03/09/2021,(81225) Medical Surgical Supplies & Equipment,(id:42485) Surgery,NHS SUPPLY CHAIN (MAIDSTONE),id:14322418  ,146.79,
Department of Health,Guys and St Thomas NHS Foundation Trust,03/09/2021,(81000) Surgical Appliances,(id:42485) Surgery,TALAR MADE ORTHOTICS LTD,id:14370197    ,29.4,
Department of Health,Guys and St Thomas NHS Foundation Trust,24/09/2021,(84600) Establishment,(id:42485) Surgery,CLARITY TRAVEL MANAGEMENT,id:14443055    ,139.51,
Department of Health,Guys and St Thomas NHS Foundation Trust,03/09/2021,(81100) Dressings,(id:42485) Surgery,NHS SUPPLY CHAIN (MAIDSTONE),id:14323557,562.4,
Department of Health,Guys and St Thomas NHS Foundation Trust,24/09/2021,(81200) Medical Surgical Supplies & Equipment,(id:42485) Surgery,NHS SUPPLY CHAIN (MAIDSTONE),id:14370204  ,534.92,
Department of Health,Guys and St Thomas NHS Foundation Trust,24/09/2021,(83880) Building & Engineering,(id:42485) Surgery,PHYSIQUIPE LTD,id:14442080 ,6000,
Department of Health,Guys and St Thomas NHS Foundation Trust,03/09/2021,(81200) Medical Surgical Supplies & Equipment,(id:42484) Surgery,SEVERN HEALTHCARE TECHNOLOGIES LTD,id:14333255 ,3744,
Department of Health,Guys and St Thomas NHS Foundation Trust,03/09/2021,(81200) Medical Surgical Supplies & Equipment,(id:42484) Surgery,HEALTHCARE 21 LTD,id:14377457   ,4286.4,
Department of Health,Guys and St Thomas NHS Foundation Trust,24/09/2021,(81200) Medical Surgical Supplies & Equipment,(id:42484) Surgery,JOHNSON & JOHNSON MEDICAL LTD,id:14394997 ,4307.24,
Department of Health,Guys and St Thomas NHS Foundation Trust,24/09/2021,(81200) Medical Surgical Supplies & Equipment,(id:42483) Surgery,NHS SUPPLY CHAIN (MAIDSTONE),id:14337011  ,393.42,
Department of Health,Guys and St Thomas NHS Foundation Trust,24/09/2021,(82800) Bedding & Linen,(id:42483) Surgery,NHS SUPPLY CHAIN (MAIDSTONE),id:14337011    ,29,
Department of Health,Guys and St Thomas NHS Foundation Trust,03/09/2021,(81100) Dressings,(id:42481) Surgery,NHS SUPPLY CHAIN (MAIDSTONE),id:14322418,9.39,
Department of Health,Guys and St Thomas NHS Foundation Trust,28/09/2021,(82800) Bedding & Linen,(id:42467) Surgery,NHS SUPPLY CHAIN (MAIDSTONE),id:14350551    ,127.26,
Department of Health,Guys and St Thomas NHS Foundation Trust,03/09/2021,(81200) Medical Surgical Supplies & Equipment,(id:42467) Surgery,NHS SUPPLY CHAIN (MAIDSTONE),id:14323557  ,2498.81,
Department of Health,Guys and St Thomas NHS Foundation Trust,03/09/2021,(81200) Medical Surgical Supplies & Equipment,(id:42467) Surgery,LEDA ORTHOPAEDICS LTD,id:14335207    ,2118,
Department of Health,Guys and St Thomas NHS Foundation Trust,10/09/2021,(81200) Medical Surgical Supplies & Equipment,(id:42467) Surgery,JOHNSON & JOHNSON MEDICAL LTD,id:14344678 ,1545.94,
Department of Health,Guys and St Thomas NHS Foundation Trust,10/09/2021,(81200) Medical Surgical Supplies & Equipment,(id:42467) Surgery,JOHNSON & JOHNSON MEDICAL LTD,id:14385964 ,648.79,
Department of Health,Guys and St Thomas NHS Foundation Trust,10/09/2021,(81200) Medical Surgical Supplies & Equipment,(id:42467) Surgery,ORTHO SOLUTIONS LTD,id:14288543 ,720.72,
Department of Health,Guys and St Thomas NHS Foundation Trust,17/09/2021,(81200) Medical Surgical Supplies & Equipment,(id:42467) Surgery,JOHNSON & JOHNSON MEDICAL LTD,id:14424963 ,887.66,
Department of Health,Guys and St Thomas NHS Foundation Trust,17/09/2021,(81200) Medical Surgical Supplies & Equipment,(id:42467) Surgery,JOHNSON & JOHNSON MEDICAL LTD,id:14424959 ,1798.53,
Department of Health,Guys and St Thomas NHS Foundation Trust,17/09/2021,(81200) Medical Surgical Supplies & Equipment,(id:42467) Surgery,JOHNSON & JOHNSON MEDICAL LTD,id:14424895 ,6946.67,
Department of Health,Guys and St Thomas NHS Foundation Trust,17/09/2021,(81200) Medical Surgical Supplies & Equipment,(id:42467) Surgery,JOHNSON & JOHNSON MEDICAL LTD,id:14424903 ,2599.36,
Department of Health,Guys and St Thomas NHS Foundation Trust,17/09/2021,(81200) Medical Surgical Supplies & Equipment,(id:42467) Surgery,JOHNSON & JOHNSON MEDICAL LTD,id:14104636 ,882.72,
Department of Health,Guys and St Thomas NHS Foundation Trust,24/09/2021,(81200) Medical Surgical Supplies & Equipment,(id:42467) Surgery,LEDA ORTHOPAEDICS LTD,id:14335895    ,1134,
Department of Health,Guys and St Thomas NHS Foundation Trust,03/09/2021,(83400) Office Equipment,(id:42466) Surgery,NHS SUPPLY CHAIN (MAIDSTONE),id:14323557   ,9.62,
Department of Health,Guys and St Thomas NHS Foundation Trust,17/09/2021,(81200) Medical Surgical Supplies & Equipment,(id:42466) Surgery,OPED UK LTD,id:14427637    ,720,
Department of Health,Guys and St Thomas NHS Foundation Trust,28/09/2021,(82000) Provisions & Kitchens,(id:42465) Surgery,NHS SUPPLY CHAIN (MAIDSTONE),id:14350551   ,107.29,
Department of Health,Guys and St Thomas NHS Foundation Trust,03/09/2021,(82800) Bedding & Linen,(id:42465) Surgery,NHS SUPPLY CHAIN (MAIDSTONE),id:14323557    ,145.08,
Department of Health,Guys and St Thomas NHS Foundation Trust,03/09/2021,(81200) Medical Surgical Supplies & Equipment,(id:42465) Surgery,NHS SUPPLY CHAIN (MAIDSTONE),id:14323557  ,603.1,
Department of Health,Guys and St Thomas NHS Foundation Trust,28/09/2021,(81200) Medical Surgical Supplies & Equipment,(id:42465) Surgery,NHS SUPPLY CHAIN (MAIDSTONE),id:14350551  ,539.8,
Department of Health,Guys and St Thomas NHS Foundation Trust,24/09/2021,(81100) Dressings,(id:42465) Surgery,NHS SUPPLY CHAIN (MAIDSTONE),id:14370204,383.4,
Department of Health,Guys and St Thomas NHS Foundation Trust,24/09/2021,(81000) Surgical Appliances,(id:42465) Surgery,TALAR MADE ORTHOTICS LTD,id:14442835    ,114,
Department of Health,Guys and St Thomas NHS Foundation Trust,03/09/2021,(82800) Bedding & Linen,(id:42464) Surgery,NHS SUPPLY CHAIN (MAIDSTONE),id:14322418    ,43.72,
Department of Health,Guys and St Thomas NHS Foundation Trust,24/09/2021,(82800) Bedding & Linen,(id:42464) Surgery,NHS SUPPLY CHAIN (MAIDSTONE),id:14337011    ,60.3,
Department of Health,Guys and St Thomas NHS Foundation Trust,03/09/2021,(82000) Provisions & Kitchens,(id:42464) Surgery,NHS SUPPLY CHAIN (MAIDSTONE),id:14322418   ,185.26,
Department of Health,Guys and St Thomas NHS Foundation Trust,03/09/2021,(82600) Uniforms & Clothing,(id:42463) Surgery,NHS SUPPLY CHAIN (MAIDSTONE),id:14322418,24.86,
Department of Health,Guys and St Thomas NHS Foundation Trust,03/09/2021,(81200) Medical Surgical Supplies & Equipment,(id:42463) Surgery,NHS SUPPLY CHAIN (MAIDSTONE),id:14322418  ,386.3,
Department of Health,Guys and St Thomas NHS Foundation Trust,24/09/2021,(81200) Medical Surgical Supplies & Equipment,(id:42463) Surgery,NHS SUPPLY CHAIN (MAIDSTONE),id:14370204  ,1888.65,
Department of Health,Guys and St Thomas NHS Foundation Trust,24/09/2021,(83400) Office Equipment,(id:42463) Surgery,NHS SUPPLY CHAIN (MAIDSTONE),id:14337011   ,1677.42,
Department of Health,Guys and St Thomas NHS Foundation Trust,10/09/2021,(81000) Surgical Appliances,(id:42461) Surgery,TALAR MADE ORTHOTICS LTD,id:14400275    ,279,
Department of Health,Guys and St Thomas NHS Foundation Trust,24/09/2021,(81000) Surgical Appliances,(id:42461) Surgery,TALAR MADE ORTHOTICS LTD,id:14442656    ,58.8,
Department of Health,Guys and St Thomas NHS Foundation Trust,24/09/2021,(82000) Provisions & Kitchens,(id:42459) Surgery,NHS SUPPLY CHAIN (MAIDSTONE),id:14370204   ,131.33,
Department of Health,Guys and St Thomas NHS Foundation Trust,03/09/2021,(82600) Uniforms & Clothing,(id:42459) Surgery,NHS SUPPLY CHAIN (MAIDSTONE),id:14323557,42.1,
Department of Health,Guys and St Thomas NHS Foundation Trust,24/09/2021,(82800) Bedding & Linen,(id:42459) Surgery,NHS SUPPLY CHAIN (MAIDSTONE),id:14337011    ,207.51,
Department of Health,Guys and St Thomas NHS Foundation Trust,03/09/2021,(81100) Dressings,(id:42459) Surgery,NHS SUPPLY CHAIN (MAIDSTONE),id:14322418,39.69,
Department of Health,Guys and St Thomas NHS Foundation Trust,24/09/2021,(81100) Dressings,(id:42459) Surgery,NHS SUPPLY CHAIN (MAIDSTONE),id:14370204,75.93,
Department of Health,Guys and St Thomas NHS Foundation Trust,24/09/2021,(81200) Medical Surgical Supplies & Equipment,(id:42459) Surgery,NHS SUPPLY CHAIN (MAIDSTONE),id:14370204  ,1497.76,
Department of Health,Guys and St Thomas NHS Foundation Trust,10/09/2021,(81000) Surgical Appliances,(id:42459) Surgery,TALAR MADE ORTHOTICS LTD,id:14394014    ,58.8,
Department of Health,Guys and St Thomas NHS Foundation Trust,10/09/2021,(81000) Surgical Appliances,(id:42459) Surgery,TALAR MADE ORTHOTICS LTD,id:14400203    ,162,
Department of Health,Guys and St Thomas NHS Foundation Trust,24/09/2021,(81700) Lab Equipment Purchase,(id:42459) Surgery,NHS SUPPLY CHAIN (MAIDSTONE),id:14370204  ,13.03,
Department of Health,Guys and St Thomas NHS Foundation Trust,24/09/2021,(81200) Medical Surgical Supplies & Equipment,(id:42458) Surgery,NHS SUPPLY CHAIN (MAIDSTONE),id:14370204  ,212.39,
Department of Health,Guys and St Thomas NHS Foundation Trust,10/09/2021,(81000) Surgical Appliances,(id:42458) Surgery,TALAR MADE ORTHOTICS LTD,id:14393494    ,486,
Department of Health,Guys and St Thomas NHS Foundation Trust,03/09/2021,(81225) Medical Surgical Supplies & Equipment,(id:42458) Surgery,NHS SUPPLY CHAIN (MAIDSTONE),id:14322418  ,14.54,
Department of Health,Guys and St Thomas NHS Foundation Trust,24/09/2021,(81700) Lab Equipment Purchase,(id:42458) Surgery,NHS SUPPLY CHAIN (MAIDSTONE),id:14370204  ,13.39,
Department of Health,Guys and St Thomas NHS Foundation Trust,17/09/2021,(54060) Technical Officers,(id:42275) Cancer Supportive Services and R&D,KINGS COLLEGE LONDON:03529700,id:14363834   ,7912.98,
Department of Health,Guys and St Thomas NHS Foundation Trust,17/09/2021,(54050) Technical Officers,(id:42275) Cancer Supportive Services and R&D,KINGS COLLEGE LONDON:03529700,id:14363834   ,3954.51,
Department of Health,Guys and St Thomas NHS Foundation Trust,24/09/2021,(81200) Medical Surgical Supplies & Equipment,(id:42270) Haematology Cellular Pathology and Supporting Services,NHS SUPPLY CHAIN (MAIDSTONE),id:14337011,1035.62,
Department of Health,Guys and St Thomas NHS Foundation Trust,03/09/2021,(81100) Dressings,(id:42270) Haematology Cellular Pathology and Supporting Services,NHS SUPPLY CHAIN (MAIDSTONE),id:14323557   ,161.7,
Department of Health,Guys and St Thomas NHS Foundation Trust,24/09/2021,(81100) Dressings,(id:42270) Haematology Cellular Pathology and Supporting Services,NHS SUPPLY CHAIN (MAIDSTONE),id:14370204   ,251.57,
Department of Health,Guys and St Thomas NHS Foundation Trust,28/09/2021,(81100) Dressings,(id:42270) Haematology Cellular Pathology and Supporting Services,NHS SUPPLY CHAIN (MAIDSTONE),id:14350551   ,81.18,
Department of Health,Guys and St Thomas NHS Foundation Trust,03/09/2021,(83400) Office Equipment,(id:42270) Haematology Cellular Pathology and Supporting Services,NHS SUPPLY CHAIN (MAIDSTONE),id:14323557 ,180.49,
Department of Health,Guys and St Thomas NHS Foundation Trust,28/09/2021,(83400) Office Equipment,(id:42270) Haematology Cellular Pathology and Supporting Services,NHS SUPPLY CHAIN (MAIDSTONE),id:14350551 ,3.55,
Department of Health,Guys and St Thomas NHS Foundation Trust,03/09/2021,(81700) Lab Equipment Purchase,(id:42270) Haematology Cellular Pathology and Supporting Services,NHS SUPPLY CHAIN (MAIDSTONE),id:14323557,80.24,
Department of Health,Guys and St Thomas NHS Foundation Trust,24/09/2021,(81700) Lab Equipment Purchase,(id:42270) Haematology Cellular Pathology and Supporting Services,NHS SUPPLY CHAIN (MAIDSTONE),id:14337011,91.12,
Department of Health,Guys and St Thomas NHS Foundation Trust,24/09/2021,(82000) Provisions & Kitchens,(id:42270) Haematology Cellular Pathology and Supporting Services,NHS SUPPLY CHAIN (MAIDSTONE),id:14337011 ,7.8,
Department of Health,Guys and St Thomas NHS Foundation Trust,03/09/2021,(82800) Bedding & Linen,(id:42270) Haematology Cellular Pathology and Supporting Services,NHS SUPPLY CHAIN (MAIDSTONE),id:14322418  ,80.99,
Department of Health,Guys and St Thomas NHS Foundation Trust,10/09/2021,(81000) Surgical Appliances,(id:42268) Haematology Cellular Pathology and Supporting Services,MEDI UK LTD,id:14393074,190.82,
Department of Health,Guys and St Thomas NHS Foundation Trust,03/09/2021,(82000) Provisions & Kitchens,(id:42265) Haematology Cellular Pathology and Supporting Services,NHS SUPPLY CHAIN (MAIDSTONE),id:14322418 ,188.81,
Department of Health,Guys and St Thomas NHS Foundation Trust,03/09/2021,(82800) Bedding & Linen,(id:42265) Haematology Cellular Pathology and Supporting Services,NHS SUPPLY CHAIN (MAIDSTONE),id:14322418  ,163.41,
Department of Health,Guys and St Thomas NHS Foundation Trust,24/09/2021,(82800) Bedding & Linen,(id:42265) Haematology Cellular Pathology and Supporting Services,NHS SUPPLY CHAIN (MAIDSTONE),id:14337011  ,92.61,
Department of Health,Guys and St Thomas NHS Foundation Trust,10/09/2021,(50522) Unqualified Nursing Staff,(id:42265) Haematology Cellular Pathology and Supporting Services,GLOBE LOCUMS LTD,id:14406749    ,283.83,
Department of Health,Guys and St Thomas NHS Foundation Trust,24/09/2021,(83400) Office Equipment,(id:42265) Haematology Cellular Pathology and Supporting Services,NHS SUPPLY CHAIN (MAIDSTONE),id:14337011 ,100.14,
Department of Health,Guys and St Thomas NHS Foundation Trust,24/09/2021,(81255) Medical Surgical Supplies & Equipment,(id:42265) Haematology Cellular Pathology and Supporting Services,NHS SUPPLY CHAIN (MAIDSTONE),id:14370204,0.96,
Department of Health,Guys and St Thomas NHS Foundation Trust,28/09/2021,(81255) Medical Surgical Supplies & Equipment,(id:42265) Haematology Cellular Pathology and Supporting Services,NHS SUPPLY CHAIN (MAIDSTONE),id:14350551,4.32,
Department of Health,Guys and St Thomas NHS Foundation Trust,24/09/2021,(82000) Provisions & Kitchens,(id:42272) Haematology Cellular Pathology and Supporting Services,NHS SUPPLY CHAIN (MAIDSTONE),id:14337011 ,19.15,
Department of Health,Guys and St Thomas NHS Foundation Trust,17/09/2021,(50200) Consultants,(id:42272) Haematology Cellular Pathology and Supporting Services,ST GEORGE'S UNIVERSITY HOSPITALS NHS FOUNDATION TRUST,id:14421820 ,6748.84,
Department of Health,Guys and St Thomas NHS Foundation Trust,24/09/2021,(82600) Uniforms & Clothing,(id:42271) Haematology Cellular Pathology and Supporting Services,COURIER SYSTEMS (ECOURIER),id:14427859,738.45,
Department of Health,Guys and St Thomas NHS Foundation Trust,03/09/2021,(80205) Drug Costs,(id:42273) Haematology Cellular Pathology and Supporting Services,HEALTHCARE AT HOME LTD,id:14373281   ,-10560,
Department of Health,Guys and St Thomas NHS Foundation Trust,17/09/2021,(80205) Drug Costs,(id:42273) Haematology Cellular Pathology and Supporting Services,HEALTHCARE AT HOME LTD,id:14426934   ,3986.77,
Department of Health,Guys and St Thomas NHS Foundation Trust,17/09/2021,(80205) Drug Costs,(id:42273) Haematology Cellular Pathology and Supporting Services,HEALTHCARE AT HOME LTD,id:14427185   ,4130.17,
Department of Health,Guys and St Thomas NHS Foundation Trust,28/09/2021,(80205) Drug Costs,(id:42273) Haematology Cellular Pathology and Supporting Services,HEALTHCARE AT HOME LTD,id:14474596   ,3127,
Department of Health,Guys and St Thomas NHS Foundation Trust,28/09/2021,(80205) Drug Costs,(id:42273) Haematology Cellular Pathology and Supporting Services,HEALTHCARE AT HOME LTD,id:14474581   ,3457,
Department of Health,Guys and St Thomas NHS Foundation Trust,28/09/2021,(80205) Drug Costs,(id:42273) Haematology Cellular Pathology and Supporting Services,HEALTHCARE AT HOME LTD,id:14472654   ,4990.17,
Department of Health,Guys and St Thomas NHS Foundation Trust,28/09/2021,(80205) Drug Costs,(id:42273) Haematology Cellular Pathology and Supporting Services,HEALTHCARE AT HOME LTD,id:14474586   ,5530.17,
Department of Health,Guys and St Thomas NHS Foundation Trust,28/09/2021,(80205) Drug Costs,(id:42273) Haematology Cellular Pathology and Supporting Services,HEALTHCARE AT HOME LTD,id:14474580   ,5890.17,
Department of Health,Guys and St Thomas NHS Foundation Trust,28/09/2021,(80205) Drug Costs,(id:42273) Haematology Cellular Pathology and Supporting Services,HEALTHCARE AT HOME LTD,id:14472474   ,5960.17,
Department of Health,Guys and St Thomas NHS Foundation Trust,28/09/2021,(80205) Drug Costs,(id:42273) Haematology Cellular Pathology and Supporting Services,HEALTHCARE AT HOME LTD,id:14472254   ,6210.17,
Department of Health,Guys and St Thomas NHS Foundation Trust,28/09/2021,(80205) Drug Costs,(id:42273) Haematology Cellular Pathology and Supporting Services,HEALTHCARE AT HOME LTD,id:14472354   ,8227,
Department of Health,Guys and St Thomas NHS Foundation Trust,28/09/2021,(80205) Drug Costs,(id:42273) Haematology Cellular Pathology and Supporting Services,HEALTHCARE AT HOME LTD,id:14473714   ,8930.17,
Department of Health,Guys and St Thomas NHS Foundation Trust,28/09/2021,(80205) Drug Costs,(id:42273) Haematology Cellular Pathology and Supporting Services,HEALTHCARE AT HOME LTD,id:14472334   ,9730.17,
Department of Health,Guys and St Thomas NHS Foundation Trust,28/09/2021,(80205) Drug Costs,(id:42273) Haematology Cellular Pathology and Supporting Services,HEALTHCARE AT HOME LTD,id:14473735   ,13627,
Department of Health,Guys and St Thomas NHS Foundation Trust,28/09/2021,(80205) Drug Costs,(id:42273) Haematology Cellular Pathology and Supporting Services,HEALTHCARE AT HOME LTD,id:14474588   ,1099.17,
Department of Health,Guys and St Thomas NHS Foundation Trust,24/09/2021,(83400) Office Equipment,(id:42128) Haematology Cellular Pathology and Supporting Services,NHS SUPPLY CHAIN (MAIDSTONE),id:14337011 ,80.87,
Department of Health,Guys and St Thomas NHS Foundation Trust,17/09/2021,(84550) Establishment,(id:42128) Haematology Cellular Pathology and Supporting Services,LAZERBEAM FIRE AND SECURITY LTD,id:14427500 ,3362,
Department of Health,Guys and St Thomas NHS Foundation Trust,17/09/2021,(54052) Technical Officers,(id:42128) Haematology Cellular Pathology and Supporting Services,TOTAL ASSIST RECRUITMENT LTD,id:14407162    ,1280.7,
Department of Health,Guys and St Thomas NHS Foundation Trust,03/09/2021,(55040) Admin & Clerical,(id:2002419) Oncology Services,KINGS COLLEGE LONDON:03529700,id:14287074,3107.28,
Department of Health,Guys and St Thomas NHS Foundation Trust,24/09/2021,(83400) Office Equipment,(id:42258) Oncology Services,NHS SUPPLY CHAIN (MAIDSTONE),id:14370204   ,84.26,
Department of Health,Guys and St Thomas NHS Foundation Trust,28/09/2021,(81100) Dressings,(id:42258) Oncology Services,NHS SUPPLY CHAIN (MAIDSTONE),id:14350551,202.5,
Department of Health,Guys and St Thomas NHS Foundation Trust,28/09/2021,(89595) Non-Healthcare from Foundation Trusts,(id:42261) Oncology Services,THE ROYAL MARSDEN NHS FOUNDATION TRUST,id:13223394  ,585,
Department of Health,Guys and St Thomas NHS Foundation Trust,03/09/2021,(89600) Non-Healthcare from other NHS bodies,(id:42261) Oncology Services,CHKS LTD,id:14370201   ,15300,
Department of Health,Guys and St Thomas NHS Foundation Trust,03/09/2021,(82800) Bedding & Linen,(id:42261) Oncology Services,NHS SUPPLY CHAIN (MAIDSTONE),id:14323557    ,40.2,
Department of Health,Guys and St Thomas NHS Foundation Trust,10/09/2021,(81000) Surgical Appliances,(id:42261) Oncology Services,TALAR MADE ORTHOTICS LTD,id:14393494    ,93,
Department of Health,Guys and St Thomas NHS Foundation Trust,24/09/2021,(81200) Medical Surgical Supplies & Equipment,(id:42260) Oncology Services,ABBOTT LABORATORIES LTD,id:14446414  ,573.6,
Department of Health,Guys and St Thomas NHS Foundation Trust,03/09/2021,(81275) Medical Surgical Supplies & Equipment,(id:42260) Oncology Services,NHS SUPPLY CHAIN (MAIDSTONE),id:14323557  ,5.34,
Department of Health,Guys and St Thomas NHS Foundation Trust,03/09/2021,(82000) Provisions & Kitchens,(id:42260) Oncology Services,NHS SUPPLY CHAIN (MAIDSTONE),id:14322418   ,143.03,
Department of Health,Guys and St Thomas NHS Foundation Trust,03/09/2021,(82000) Provisions & Kitchens,(id:42260) Oncology Services,NHS SUPPLY CHAIN (MAIDSTONE),id:14323557   ,93.62,
Department of Health,Guys and St Thomas NHS Foundation Trust,28/09/2021,(82600) Uniforms & Clothing,(id:42259) Oncology Services,NHS SUPPLY CHAIN (MAIDSTONE),id:14350551,37.92,
Department of Health,Guys and St Thomas NHS Foundation Trust,03/09/2021,(81200) Medical Surgical Supplies & Equipment,(id:42259) Oncology Services,NHS SUPPLY CHAIN (MAIDSTONE),id:14323557  ,920.43,
Department of Health,Guys and St Thomas NHS Foundation Trust,28/09/2021,(83400) Office Equipment,(id:42259) Oncology Services,NHS SUPPLY CHAIN (MAIDSTONE),id:14350551   ,94.32,
Department of Health,Guys and St Thomas NHS Foundation Trust,03/09/2021,(81255) Medical Surgical Supplies & Equipment,(id:42259) Oncology Services,NHS SUPPLY CHAIN (MAIDSTONE),id:14322418  ,6.92,
Department of Health,Guys and St Thomas NHS Foundation Trust,24/09/2021,(84600) Establishment,(id:1319419) Surgical Oncology,CLARITY TRAVEL MANAGEMENT,id:13402615  ,-3421.92,
Department of Health,Guys and St Thomas NHS Foundation Trust,10/09/2021,(81200) Medical Surgical Supplies & Equipment,(id:42280) Surgical Oncology,JOHNSON & JOHNSON MEDICAL LTD,id:14389800 ,590.81,
Department of Health,Guys and St Thomas NHS Foundation Trust,17/09/2021,(81200) Medical Surgical Supplies & Equipment,(id:42280) Surgical Oncology,ELEMENTAL HEALTHCARE LTD,id:14427034 ,4551,
Department of Health,Guys and St Thomas NHS Foundation Trust,24/09/2021,(81200) Medical Surgical Supplies & Equipment,(id:42280) Surgical Oncology,ELEMENTAL HEALTHCARE LTD,id:14449334 ,1541.4,
Department of Health,Guys and St Thomas NHS Foundation Trust,24/09/2021,(81200) Medical Surgical Supplies & Equipment,(id:42280) Surgical Oncology,NHS SUPPLY CHAIN (MAIDSTONE),id:14337011  ,6.96,
Department of Health,Guys and St Thomas NHS Foundation Trust,24/09/2021,(84500) Establishment,(id:42280) Surgical Oncology,OFFICE DEPOT UK LTD,id:14400562,285.37,
Department of Health,Guys and St Thomas NHS Foundation Trust,28/09/2021,(81700) Lab Equipment Purchase,(id:243406) Surgical Oncology,NHS SUPPLY CHAIN (MAIDSTONE),id:14350551 ,5.34,
Department of Health,Guys and St Thomas NHS Foundation Trust,03/09/2021,(81255) Medical Surgical Supplies & Equipment,(id:243406) Surgical Oncology,NHS SUPPLY CHAIN (MAIDSTONE),id:14322418 ,2.18,
Department of Health,Guys and St Thomas NHS Foundation Trust,24/09/2021,(81100) Dressings,(id:243406) Surgical Oncology,NHS SUPPLY CHAIN (MAIDSTONE),id:14370204    ,62.98,
Department of Health,Guys and St Thomas NHS Foundation Trust,24/09/2021,(82800) Bedding & Linen,(id:243406) Surgical Oncology,NHS SUPPLY CHAIN (MAIDSTONE),id:14370204   ,98.96,
Department of Health,Guys and St Thomas NHS Foundation Trust,24/09/2021,(81100) Dressings,(id:42474) Surgical Oncology,NHS SUPPLY CHAIN (MAIDSTONE),id:14337011,3.4,
Department of Health,Guys and St Thomas NHS Foundation Trust,24/09/2021,(81100) Dressings,(id:42474) Surgical Oncology,NHS SUPPLY CHAIN (MAIDSTONE),id:14370204,384.76,
Department of Health,Guys and St Thomas NHS Foundation Trust,28/09/2021,(81100) Dressings,(id:42474) Surgical Oncology,NHS SUPPLY CHAIN (MAIDSTONE),id:14350551,249.31,
Department of Health,Guys and St Thomas NHS Foundation Trust,28/09/2021,(81200) Medical Surgical Supplies & Equipment,(id:42474) Surgical Oncology,NHS SUPPLY CHAIN (MAIDSTONE),id:14350551  ,534.5,
Department of Health,Guys and St Thomas NHS Foundation Trust,17/09/2021,(84656) Establishment,(id:42474) Surgical Oncology,DICT8 LIMITED,id:14329554 ,4309.44,
Department of Health,Guys and St Thomas NHS Foundation Trust,03/09/2021,(82800) Bedding & Linen,(id:42473) Surgical Oncology,NHS SUPPLY CHAIN (MAIDSTONE),id:14322418    ,55.2,
Department of Health,Guys and St Thomas NHS Foundation Trust,03/09/2021,(81200) Medical Surgical Supplies & Equipment,(id:42473) Surgical Oncology,NHS SUPPLY CHAIN (MAIDSTONE),id:14323557  ,696.87,
Department of Health,Guys and St Thomas NHS Foundation Trust,03/09/2021,(81200) Medical Surgical Supplies & Equipment,(id:42473) Surgical Oncology,KARL STORZ ENDOSCOPY UK LTD,id:14383714   ,1088.4,
Department of Health,Guys and St Thomas NHS Foundation Trust,10/09/2021,(81200) Medical Surgical Supplies & Equipment,(id:42473) Surgical Oncology,GEMINI SURGICAL UK LTD,id:14385034   ,5993.28,
Department of Health,Guys and St Thomas NHS Foundation Trust,10/09/2021,(81200) Medical Surgical Supplies & Equipment,(id:42473) Surgical Oncology,CCMED LTD,id:14397635 ,867,
Department of Health,Guys and St Thomas NHS Foundation Trust,10/09/2021,(81200) Medical Surgical Supplies & Equipment,(id:42473) Surgical Oncology,CCMED LTD,id:14397674 ,2070.6,
Department of Health,Guys and St Thomas NHS Foundation Trust,10/09/2021,(81200) Medical Surgical Supplies & Equipment,(id:42473) Surgical Oncology,MEDTRONIC LTD,id:14353105  ,800.4,
Department of Health,Guys and St Thomas NHS Foundation Trust,10/09/2021,(81200) Medical Surgical Supplies & Equipment,(id:42473) Surgical Oncology,GEMINI SURGICAL UK LTD,id:14401795   ,4195.2,
Department of Health,Guys and St Thomas NHS Foundation Trust,17/09/2021,(81200) Medical Surgical Supplies & Equipment,(id:42473) Surgical Oncology,JEWEL MANAGEMENT LTD T/A GENERAL MEDICAL,id:14418436,151.82,
Department of Health,Guys and St Thomas NHS Foundation Trust,17/09/2021,(81200) Medical Surgical Supplies & Equipment,(id:42473) Surgical Oncology,JOHNSON & JOHNSON MEDICAL LTD,id:14374289 ,590.8,
Department of Health,Guys and St Thomas NHS Foundation Trust,24/09/2021,(81200) Medical Surgical Supplies & Equipment,(id:42473) Surgical Oncology,JEWEL MANAGEMENT LTD T/A GENERAL MEDICAL,id:14444963,2871.71,
Department of Health,Guys and St Thomas NHS Foundation Trust,03/09/2021,(81225) Medical Surgical Supplies & Equipment,(id:42473) Surgical Oncology,NHS SUPPLY CHAIN (MAIDSTONE),id:14322418  ,468.72,
Department of Health,Guys and St Thomas NHS Foundation Trust,17/09/2021,(81225) Medical Surgical Supplies & Equipment,(id:42473) Surgical Oncology,INTERSECT ENT,id:14423974  ,2625,
Department of Health,Guys and St Thomas NHS Foundation Trust,10/09/2021,(81215) Medical Surgical Supplies & Equipment,(id:42475) Surgical Oncology,COCHLEAR EUROPE LTD,id:14387074 ,5394,
Department of Health,Guys and St Thomas NHS Foundation Trust,10/09/2021,(81215) Medical Surgical Supplies & Equipment,(id:42475) Surgical Oncology,COCHLEAR EUROPE LTD,id:14387134 ,5394,
Department of Health,Guys and St Thomas NHS Foundation Trust,10/09/2021,(81215) Medical Surgical Supplies & Equipment,(id:42475) Surgical Oncology,COCHLEAR EUROPE LTD,id:14387234 ,7168.8,
Department of Health,Guys and St Thomas NHS Foundation Trust,10/09/2021,(81215) Medical Surgical Supplies & Equipment,(id:42475) Surgical Oncology,COCHLEAR EUROPE LTD,id:14402074 ,19203.6,
Department of Health,Guys and St Thomas NHS Foundation Trust,24/09/2021,(81215) Medical Surgical Supplies & Equipment,(id:42475) Surgical Oncology,ADVANCED BIONICS SARL (AND UK LTD),id:14427985 ,2449.2,
Department of Health,Guys and St Thomas NHS Foundation Trust,03/09/2021,(81225) Medical Surgical Supplies & Equipment,(id:42475) Surgical Oncology,NHS SUPPLY CHAIN (MAIDSTONE),id:14322418  ,70589.48,
Department of Health,Guys and St Thomas NHS Foundation Trust,17/09/2021,(81225) Medical Surgical Supplies & Equipment,(id:42475) Surgical Oncology,COCHLEAR EUROPE LTD,id:14425960 ,2241.6,
Department of Health,Guys and St Thomas NHS Foundation Trust,03/09/2021,(81225) Medical Surgical Supplies & Equipment,(id:42472) Surgical Oncology,NHS SUPPLY CHAIN (MAIDSTONE),id:14323557  ,177.12,
Department of Health,Guys and St Thomas NHS Foundation Trust,03/09/2021,(81200) Medical Surgical Supplies & Equipment,(id:42286) Surgical Oncology,MEDTRONIC LTD,id:14339748  ,7397.64,
Department of Health,Guys and St Thomas NHS Foundation Trust,03/09/2021,(81200) Medical Surgical Supplies & Equipment,(id:42286) Surgical Oncology,MEDELA UK LTD,id:14373506  ,6357.6,
Department of Health,Guys and St Thomas NHS Foundation Trust,03/09/2021,(81200) Medical Surgical Supplies & Equipment,(id:42286) Surgical Oncology,MEDTRONIC LTD,id:14328376  ,1460.34,
Department of Health,Guys and St Thomas NHS Foundation Trust,03/09/2021,(81200) Medical Surgical Supplies & Equipment,(id:42286) Surgical Oncology,NHS SUPPLY CHAIN (MAIDSTONE),id:14322418  ,4004.68,
Department of Health,Guys and St Thomas NHS Foundation Trust,10/09/2021,(81200) Medical Surgical Supplies & Equipment,(id:42286) Surgical Oncology,MEDTRONIC LTD,id:14348978  ,1229.26,
Department of Health,Guys and St Thomas NHS Foundation Trust,17/09/2021,(81200) Medical Surgical Supplies & Equipment,(id:42286) Surgical Oncology,MEDTRONIC LTD,id:14358198  ,849.59,
Department of Health,Guys and St Thomas NHS Foundation Trust,24/09/2021,(81200) Medical Surgical Supplies & Equipment,(id:42286) Surgical Oncology,MEDTRONIC LTD,id:14380847  ,6146.28,
Department of Health,Guys and St Thomas NHS Foundation Trust,24/09/2021,(82000) Provisions & Kitchens,(id:42284) Surgical Oncology,NHS SUPPLY CHAIN (MAIDSTONE),id:14337011   ,91.4,
Department of Health,Guys and St Thomas NHS Foundation Trust,24/09/2021,(81225) Medical Surgical Supplies & Equipment,(id:42284) Surgical Oncology,NHS SUPPLY CHAIN (MAIDSTONE),id:14337011  ,9.7,
Department of Health,Guys and St Thomas NHS Foundation Trust,28/09/2021,(81275) Medical Surgical Supplies & Equipment,(id:42284) Surgical Oncology,NHS SUPPLY CHAIN (MAIDSTONE),id:14350551  ,1482.82,
Department of Health,Guys and St Thomas NHS Foundation Trust,03/09/2021,(81700) Lab Equipment Purchase,(id:42284) Surgical Oncology,NHS SUPPLY CHAIN (MAIDSTONE),id:14323557  ,62.25,
Department of Health,Guys and St Thomas NHS Foundation Trust,28/09/2021,(81700) Lab Equipment Purchase,(id:42284) Surgical Oncology,NHS SUPPLY CHAIN (MAIDSTONE),id:14350551  ,35.79,
Department of Health,Guys and St Thomas NHS Foundation Trust,28/09/2021,(82700) Uniforms & Clothing,(id:42284) Surgical Oncology,NHS SUPPLY CHAIN (MAIDSTONE),id:14350551,31.68,
Department of Health,Guys and St Thomas NHS Foundation Trust,10/09/2021,(89640) Non-Healthcare from NHS Trusts,(id:42471) Surgical Oncology,THE ROYAL ORTHOPAEDIC HOSPITAL NHS FUNDATION TRUST,id:12635409  ,250,
Department of Health,Guys and St Thomas NHS Foundation Trust,24/09/2021,(81200) Medical Surgical Supplies & Equipment,(id:42470) Surgical Oncology,NHS SUPPLY CHAIN (MAIDSTONE),id:14337011  ,2189.51,
Department of Health,Guys and St Thomas NHS Foundation Trust,24/09/2021,(83400) Office Equipment,(id:42470) Surgical Oncology,NHS SUPPLY CHAIN (MAIDSTONE),id:14337011   ,66.66,
Department of Health,Guys and St Thomas NHS Foundation Trust,03/09/2021,(81700) Lab Equipment Purchase,(id:42470) Surgical Oncology,NHS SUPPLY CHAIN (MAIDSTONE),id:14322418  ,32.32,
Department of Health,Guys and St Thomas NHS Foundation Trust,03/09/2021,(81100) Dressings,(id:42508) Surgical Oncology,NHS SUPPLY CHAIN (MAIDSTONE),id:14323557,60.24,
Department of Health,Guys and St Thomas NHS Foundation Trust,03/09/2021,(81700) Lab Equipment Purchase,(id:2182419) Acute & General Medicine,NHS SUPPLY CHAIN (MAIDSTONE),id:14322418   ,104.09,
Department of Health,Guys and St Thomas NHS Foundation Trust,28/09/2021,(81255) Medical Surgical Supplies & Equipment,(id:2182419) Acute & General Medicine,NHS SUPPLY CHAIN (MAIDSTONE),id:14350551   ,13.48,
Department of Health,Guys and St Thomas NHS Foundation Trust,03/09/2021,(81200) Medical Surgical Supplies & Equipment,(id:2182419) Acute & General Medicine,NHS SUPPLY CHAIN (MAIDSTONE),id:14323557   ,1515.4,
Department of Health,Guys and St Thomas NHS Foundation Trust,10/09/2021,(50552) Qualified Nursing Staff,(id:2182419) Acute & General Medicine,MSI GROUP LTD,id:14406941  ,954.5,
Department of Health,Guys and St Thomas NHS Foundation Trust,10/09/2021,(50552) Qualified Nursing Staff,(id:2182419) Acute & General Medicine,MSI GROUP LTD,id:14406939  ,674.05,
Department of Health,Guys and St Thomas NHS Foundation Trust,10/09/2021,(50552) Qualified Nursing Staff,(id:2182419) Acute & General Medicine,MSI GROUP LTD,id:14406811  ,348.31,
Department of Health,Guys and St Thomas NHS Foundation Trust,17/09/2021,(50552) Qualified Nursing Staff,(id:2182419) Acute & General Medicine,GLOBE LOCUMS LTD,id:14426496    ,1092.14,
Department of Health,Guys and St Thomas NHS Foundation Trust,24/09/2021,(50552) Qualified Nursing Staff,(id:2182419) Acute & General Medicine,MSI GROUP LTD,id:14454903  ,1027.35,
Department of Health,Guys and St Thomas NHS Foundation Trust,10/09/2021,(50522) Unqualified Nursing Staff,(id:2182419) Acute & General Medicine,MSI GROUP LTD,id:14407068,553.78,
Department of Health,Guys and St Thomas NHS Foundation Trust,24/09/2021,(82700) Uniforms & Clothing,(id:41860) Acute & General Medicine,NHS SUPPLY CHAIN (MAIDSTONE),id:14370204   ,75.36,
Department of Health,Guys and St Thomas NHS Foundation Trust,24/09/2021,(82700) Uniforms & Clothing,(id:41860) Acute & General Medicine,NHS SUPPLY CHAIN (MAIDSTONE),id:14337011   ,31.68,
Department of Health,Guys and St Thomas NHS Foundation Trust,28/09/2021,(82700) Uniforms & Clothing,(id:41860) Acute & General Medicine,NHS SUPPLY CHAIN (MAIDSTONE),id:14350551   ,31.68,
Department of Health,Guys and St Thomas NHS Foundation Trust,03/09/2021,(82000) Provisions & Kitchens,(id:41860) Acute & General Medicine,NHS SUPPLY CHAIN (MAIDSTONE),id:14322418 ,40.45,
Department of Health,Guys and St Thomas NHS Foundation Trust,03/09/2021,(82000) Provisions & Kitchens,(id:41860) Acute & General Medicine,NHS SUPPLY CHAIN (MAIDSTONE),id:14323557 ,6.71,
Department of Health,Guys and St Thomas NHS Foundation Trust,28/09/2021,(83400) Office Equipment,(id:41860) Acute & General Medicine,NHS SUPPLY CHAIN (MAIDSTONE),id:14350551 ,103.54,
Department of Health,Guys and St Thomas NHS Foundation Trust,03/09/2021,(81100) Dressings,(id:41860) Acute & General Medicine,NHS SUPPLY CHAIN (MAIDSTONE),id:14323557   ,164.56,
Department of Health,Guys and St Thomas NHS Foundation Trust,03/09/2021,(81100) Dressings,(id:41860) Acute & General Medicine,NHS SUPPLY CHAIN (MAIDSTONE),id:14322418   ,371.49,
Department of Health,Guys and St Thomas NHS Foundation Trust,03/09/2021,(50522) Unqualified Nursing Staff,(id:41860) Acute & General Medicine,GLOBE LOCUMS LTD,id:14380637    ,270.27,
Department of Health,Guys and St Thomas NHS Foundation Trust,10/09/2021,(50522) Unqualified Nursing Staff,(id:41860) Acute & General Medicine,GLOBE LOCUMS LTD,id:14407157    ,502,
Department of Health,Guys and St Thomas NHS Foundation Trust,10/09/2021,(50522) Unqualified Nursing Staff,(id:41860) Acute & General Medicine,CARE PROVIDERS HEALTHCARE,id:14408695,258.37,
Department of Health,Guys and St Thomas NHS Foundation Trust,24/09/2021,(50522) Unqualified Nursing Staff,(id:41860) Acute & General Medicine,CARE PROVIDERS HEALTHCARE,id:14454956,270.57,
Department of Health,Guys and St Thomas NHS Foundation Trust,24/09/2021,(50532) Unqualified Nursing Staff,(id:41859) Acute & General Medicine,MSI GROUP LTD,id:14454661  ,301.38,
Department of Health,Guys and St Thomas NHS Foundation Trust,24/09/2021,(50552) Qualified Nursing Staff,(id:41859) Acute & General Medicine,GLOBE LOCUMS LTD,id:14454858 ,1586.88,
Department of Health,Guys and St Thomas NHS Foundation Trust,03/09/2021,(50522) Unqualified Nursing Staff,(id:41859) Acute & General Medicine,MSI GROUP LTD,id:14380427  ,855.36,
Department of Health,Guys and St Thomas NHS Foundation Trust,10/09/2021,(50522) Unqualified Nursing Staff,(id:41859) Acute & General Medicine,MSI GROUP LTD,id:14407002  ,233.85,
Department of Health,Guys and St Thomas NHS Foundation Trust,10/09/2021,(50522) Unqualified Nursing Staff,(id:41859) Acute & General Medicine,MSI GROUP LTD,id:14406940  ,238.74,
Department of Health,Guys and St Thomas NHS Foundation Trust,10/09/2021,(50522) Unqualified Nursing Staff,(id:41859) Acute & General Medicine,MSI GROUP LTD,id:14406809  ,1414.98,
Department of Health,Guys and St Thomas NHS Foundation Trust,24/09/2021,(50522) Unqualified Nursing Staff,(id:41859) Acute & General Medicine,CARE PROVIDERS HEALTHCARE,id:14455014,540.9,
Department of Health,Guys and St Thomas NHS Foundation Trust,24/09/2021,(81225) Medical Surgical Supplies & Equipment,(id:41859) Acute & General Medicine,NHS SUPPLY CHAIN (MAIDSTONE),id:14337011,24.24,
Department of Health,Guys and St Thomas NHS Foundation Trust,24/09/2021,(82800) Bedding & Linen,(id:41858) Acute & General Medicine,NHS SUPPLY CHAIN (MAIDSTONE),id:14370204  ,93.6,
Department of Health,Guys and St Thomas NHS Foundation Trust,03/09/2021,(81200) Medical Surgical Supplies & Equipment,(id:41858) Acute & General Medicine,NHS SUPPLY CHAIN (MAIDSTONE),id:14323557,560.7,
Department of Health,Guys and St Thomas NHS Foundation Trust,24/09/2021,(82000) Provisions & Kitchens,(id:860419) Acute & General Medicine,NHS SUPPLY CHAIN (MAIDSTONE),id:14370204,9.22,
Department of Health,Guys and St Thomas NHS Foundation Trust,24/09/2021,(81000) Surgical Appliances,(id:41872) Acute & General Medicine,TALAR MADE ORTHOTICS LTD,id:14446155  ,114,
Department of Health,Guys and St Thomas NHS Foundation Trust,03/09/2021,(50552) Qualified Nursing Staff,(id:41872) Acute & General Medicine,CONTINENTAL NURSE LTD,id:14380584 ,2560.02,
Department of Health,Guys and St Thomas NHS Foundation Trust,24/09/2021,(82000) Provisions & Kitchens,(id:41869) Acute & General Medicine,NHS SUPPLY CHAIN (MAIDSTONE),id:14337011 ,82.12,
Department of Health,Guys and St Thomas NHS Foundation Trust,03/09/2021,(84500) Establishment,(id:41869) Acute & General Medicine,OFFICE DEPOT UK LTD,id:14324505   ,19.28,
Department of Health,Guys and St Thomas NHS Foundation Trust,03/09/2021,(83400) Office Equipment,(id:41869) Acute & General Medicine,NHS SUPPLY CHAIN (MAIDSTONE),id:14323557 ,303.94,
Department of Health,Guys and St Thomas NHS Foundation Trust,24/09/2021,(83400) Office Equipment,(id:41869) Acute & General Medicine,NHS SUPPLY CHAIN (MAIDSTONE),id:14337011 ,292.83,
Department of Health,Guys and St Thomas NHS Foundation Trust,03/09/2021,(82800) Bedding & Linen,(id:41869) Acute & General Medicine,NHS SUPPLY CHAIN (MAIDSTONE),id:14323557  ,230.94,
Department of Health,Guys and St Thomas NHS Foundation Trust,03/09/2021,(82800) Bedding & Linen,(id:41869) Acute & General Medicine,NHS SUPPLY CHAIN (MAIDSTONE),id:14322418  ,77.11,
Department of Health,Guys and St Thomas NHS Foundation Trust,24/09/2021,(82800) Bedding & Linen,(id:41869) Acute & General Medicine,NHS SUPPLY CHAIN (MAIDSTONE),id:14370204  ,164.21,
Department of Health,Guys and St Thomas NHS Foundation Trust,03/09/2021,(81200) Medical Surgical Supplies & Equipment,(id:41869) Acute & General Medicine,NHS SUPPLY CHAIN (MAIDSTONE),id:14323557,6656.66,
Department of Health,Guys and St Thomas NHS Foundation Trust,10/09/2021,(81200) Medical Surgical Supplies & Equipment,(id:41869) Acute & General Medicine,BECTON DICKINSON UK LTD,id:14387734,584.64,
Department of Health,Guys and St Thomas NHS Foundation Trust,24/09/2021,(81200) Medical Surgical Supplies & Equipment,(id:41869) Acute & General Medicine,NHS SUPPLY CHAIN (MAIDSTONE),id:14370204,5250.03,
Department of Health,Guys and St Thomas NHS Foundation Trust,24/09/2021,(81255) Medical Surgical Supplies & Equipment,(id:41869) Acute & General Medicine,PHILIPS HEALTHCARE,id:14427731,1011.36,
Department of Health,Guys and St Thomas NHS Foundation Trust,03/09/2021,(81230) Medical Surgical Supplies & Equipment,(id:41869) Acute & General Medicine,NHS SUPPLY CHAIN (MAIDSTONE),id:14323557,28.46,
Department of Health,Guys and St Thomas NHS Foundation Trust,24/09/2021,(81225) Medical Surgical Supplies & Equipment,(id:41869) Acute & General Medicine,NHS SUPPLY CHAIN (MAIDSTONE),id:14370204,510,
Department of Health,Guys and St Thomas NHS Foundation Trust,03/09/2021,(81700) Lab Equipment Purchase,(id:41869) Acute & General Medicine,NHS SUPPLY CHAIN (MAIDSTONE),id:14322418,390.03,
Department of Health,Guys and St Thomas NHS Foundation Trust,03/09/2021,(81700) Lab Equipment Purchase,(id:41869) Acute & General Medicine,NHS SUPPLY CHAIN (MAIDSTONE),id:14323557,703.61,
Department of Health,Guys and St Thomas NHS Foundation Trust,03/09/2021,(82800) Bedding & Linen,(id:41868) Acute & General Medicine,NHS SUPPLY CHAIN (MAIDSTONE),id:14323557  ,40.91,
Department of Health,Guys and St Thomas NHS Foundation Trust,03/09/2021,(81100) Dressings,(id:41868) Acute & General Medicine,NHS SUPPLY CHAIN (MAIDSTONE),id:14323557   ,58.67,
Department of Health,Guys and St Thomas NHS Foundation Trust,24/09/2021,(81100) Dressings,(id:41868) Acute & General Medicine,NHS SUPPLY CHAIN (MAIDSTONE),id:14337011   ,50.04,
Department of Health,Guys and St Thomas NHS Foundation Trust,03/09/2021,(82000) Provisions & Kitchens,(id:41868) Acute & General Medicine,NHS SUPPLY CHAIN (MAIDSTONE),id:14322418 ,9.22,
Department of Health,Guys and St Thomas NHS Foundation Trust,10/09/2021,(89595) Non-Healthcare from Foundation Trusts,(id:41868) Acute & General Medicine,SOUTH LONDON AND MAUDSLEY NHS FOUNDATION TRUST,id:14350014  ,14027,
Department of Health,Guys and St Thomas NHS Foundation Trust,03/09/2021,(81700) Lab Equipment Purchase,(id:41868) Acute & General Medicine,NHS SUPPLY CHAIN (MAIDSTONE),id:14322418,55.97,
Department of Health,Guys and St Thomas NHS Foundation Trust,24/09/2021,(81700) Lab Equipment Purchase,(id:41868) Acute & General Medicine,NHS SUPPLY CHAIN (MAIDSTONE),id:14370204,24.13,
Department of Health,Guys and St Thomas NHS Foundation Trust,28/09/2021,(82800) Bedding & Linen,(id:41882) Acute & General Medicine,NHS SUPPLY CHAIN (MAIDSTONE),id:14350551  ,20.1,
Department of Health,Guys and St Thomas NHS Foundation Trust,24/09/2021,(81100) Dressings,(id:41882) Acute & General Medicine,NHS SUPPLY CHAIN (MAIDSTONE),id:14337011   ,294.67,
Department of Health,Guys and St Thomas NHS Foundation Trust,24/09/2021,(81700) Lab Equipment Purchase,(id:41882) Acute & General Medicine,NHS SUPPLY CHAIN (MAIDSTONE),id:14370204,10.68,
Department of Health,Guys and St Thomas NHS Foundation Trust,28/09/2021,(81200) Medical Surgical Supplies & Equipment,(id:41882) Acute & General Medicine,NHS SUPPLY CHAIN (MAIDSTONE),id:14350551,188.93,
Department of Health,Guys and St Thomas NHS Foundation Trust,03/09/2021,(82000) Provisions & Kitchens,(id:41880) Acute & General Medicine,NHS SUPPLY CHAIN (MAIDSTONE),id:14323557 ,5.9,
Department of Health,Guys and St Thomas NHS Foundation Trust,28/09/2021,(83400) Office Equipment,(id:41880) Acute & General Medicine,NHS SUPPLY CHAIN (MAIDSTONE),id:14350551 ,60.61,
Department of Health,Guys and St Thomas NHS Foundation Trust,03/09/2021,(82800) Bedding & Linen,(id:41880) Acute & General Medicine,NHS SUPPLY CHAIN (MAIDSTONE),id:14322418  ,216.22,
Department of Health,Guys and St Thomas NHS Foundation Trust,03/09/2021,(81100) Dressings,(id:41880) Acute & General Medicine,NHS SUPPLY CHAIN (MAIDSTONE),id:14323557   ,153.09,
Department of Health,Guys and St Thomas NHS Foundation Trust,28/09/2021,(81100) Dressings,(id:41880) Acute & General Medicine,NHS SUPPLY CHAIN (MAIDSTONE),id:14350551   ,625.2,
Department of Health,Guys and St Thomas NHS Foundation Trust,10/09/2021,(50522) Unqualified Nursing Staff,(id:41880) Acute & General Medicine,MSI GROUP LTD,id:14407222  ,296.6,
Department of Health,Guys and St Thomas NHS Foundation Trust,17/09/2021,(50522) Unqualified Nursing Staff,(id:41880) Acute & General Medicine,GLOBE LOCUMS LTD,id:14426086    ,242.51,
Department of Health,Guys and St Thomas NHS Foundation Trust,24/09/2021,(50522) Unqualified Nursing Staff,(id:41880) Acute & General Medicine,MSI GROUP LTD,id:14454658  ,201.07,
Department of Health,Guys and St Thomas NHS Foundation Trust,24/09/2021,(82000) Provisions & Kitchens,(id:41879) Acute & General Medicine,NHS SUPPLY CHAIN (MAIDSTONE),id:14370204 ,241.84,
Department of Health,Guys and St Thomas NHS Foundation Trust,03/09/2021,(83400) Office Equipment,(id:41879) Acute & General Medicine,NHS SUPPLY CHAIN (MAIDSTONE),id:14322418 ,162.78,
Department of Health,Guys and St Thomas NHS Foundation Trust,24/09/2021,(83400) Office Equipment,(id:41879) Acute & General Medicine,NHS SUPPLY CHAIN (MAIDSTONE),id:14370204 ,193.89,
Department of Health,Guys and St Thomas NHS Foundation Trust,24/09/2021,(82800) Bedding & Linen,(id:41879) Acute & General Medicine,NHS SUPPLY CHAIN (MAIDSTONE),id:14370204  ,402.3,
Department of Health,Guys and St Thomas NHS Foundation Trust,03/09/2021,(81100) Dressings,(id:41879) Acute & General Medicine,NHS SUPPLY CHAIN (MAIDSTONE),id:14323557   ,383.61,
Department of Health,Guys and St Thomas NHS Foundation Trust,24/09/2021,(81100) Dressings,(id:41879) Acute & General Medicine,NHS SUPPLY CHAIN (MAIDSTONE),id:14370204   ,432.33,
Department of Health,Guys and St Thomas NHS Foundation Trust,03/09/2021,(50522) Unqualified Nursing Staff,(id:41879) Acute & General Medicine,CARE PROVIDERS HEALTHCARE,id:14384727,252.92,
Department of Health,Guys and St Thomas NHS Foundation Trust,03/09/2021,(50522) Unqualified Nursing Staff,(id:41879) Acute & General Medicine,CARE PROVIDERS HEALTHCARE,id:14384638,773.46,
Department of Health,Guys and St Thomas NHS Foundation Trust,10/09/2021,(50522) Unqualified Nursing Staff,(id:41879) Acute & General Medicine,MSI GROUP LTD,id:14407001  ,205.7,
Department of Health,Guys and St Thomas NHS Foundation Trust,10/09/2021,(50522) Unqualified Nursing Staff,(id:41879) Acute & General Medicine,GLOBE LOCUMS LTD,id:14407077    ,263.17,
Department of Health,Guys and St Thomas NHS Foundation Trust,17/09/2021,(50522) Unqualified Nursing Staff,(id:41879) Acute & General Medicine,CARE PROVIDERS HEALTHCARE,id:14426364,834.11,
Department of Health,Guys and St Thomas NHS Foundation Trust,17/09/2021,(50522) Unqualified Nursing Staff,(id:41879) Acute & General Medicine,GLOBE LOCUMS LTD,id:14426382    ,269.1,
Department of Health,Guys and St Thomas NHS Foundation Trust,24/09/2021,(50522) Unqualified Nursing Staff,(id:41879) Acute & General Medicine,CARE PROVIDERS HEALTHCARE,id:14454944,621.08,
Department of Health,Guys and St Thomas NHS Foundation Trust,10/09/2021,(83610) IT Costs,(id:41879) Acute & General Medicine,OFFICE DEPOT UK LTD,id:14344627   ,495,
Department of Health,Guys and St Thomas NHS Foundation Trust,03/09/2021,(81200) Medical Surgical Supplies & Equipment,(id:41879) Acute & General Medicine,NHS SUPPLY CHAIN (MAIDSTONE),id:14322418,350.38,
Department of Health,Guys and St Thomas NHS Foundation Trust,24/09/2021,(83400) Office Equipment,(id:41878) Acute & General Medicine,NHS SUPPLY CHAIN (MAIDSTONE),id:14370204 ,43.8,
Department of Health,Guys and St Thomas NHS Foundation Trust,28/09/2021,(83400) Office Equipment,(id:41878) Acute & General Medicine,NHS SUPPLY CHAIN (MAIDSTONE),id:14350551 ,40.07,
Department of Health,Guys and St Thomas NHS Foundation Trust,03/09/2021,(82800) Bedding & Linen,(id:41878) Acute & General Medicine,NHS SUPPLY CHAIN (MAIDSTONE),id:14322418  ,136.49,
Department of Health,Guys and St Thomas NHS Foundation Trust,24/09/2021,(81100) Dressings,(id:41878) Acute & General Medicine,NHS SUPPLY CHAIN (MAIDSTONE),id:14370204   ,101.58,
Department of Health,Guys and St Thomas NHS Foundation Trust,03/09/2021,(50522) Unqualified Nursing Staff,(id:41878) Acute & General Medicine,GLOBE LOCUMS LTD,id:14380519    ,265.19,
Department of Health,Guys and St Thomas NHS Foundation Trust,24/09/2021,(50522) Unqualified Nursing Staff,(id:41878) Acute & General Medicine,CARE PROVIDERS HEALTHCARE,id:14454956,270.57,
Department of Health,Guys and St Thomas NHS Foundation Trust,03/09/2021,(83500) Furniture & Fittings,(id:41876) Acute & General Medicine,TECHNIBLINDS LTD,id:14279820    ,1228.15,
Department of Health,Guys and St Thomas NHS Foundation Trust,03/09/2021,(82700) Uniforms & Clothing,(id:41881) Acute & General Medicine,NHS SUPPLY CHAIN (MAIDSTONE),id:14323557   ,112.51,
Department of Health,Guys and St Thomas NHS Foundation Trust,03/09/2021,(83400) Office Equipment,(id:41881) Acute & General Medicine,NHS SUPPLY CHAIN (MAIDSTONE),id:14323557 ,30.97,
Department of Health,Guys and St Thomas NHS Foundation Trust,24/09/2021,(82800) Bedding & Linen,(id:41881) Acute & General Medicine,NHS SUPPLY CHAIN (MAIDSTONE),id:14337011  ,194.89,
Department of Health,Guys and St Thomas NHS Foundation Trust,03/09/2021,(50532) Unqualified Nursing Staff,(id:41881) Acute & General Medicine,MSI GROUP LTD,id:14380542  ,263.2,
Department of Health,Guys and St Thomas NHS Foundation Trust,28/09/2021,(81100) Dressings,(id:41881) Acute & General Medicine,NHS SUPPLY CHAIN (MAIDSTONE),id:14350551   ,348.77,
Department of Health,Guys and St Thomas NHS Foundation Trust,10/09/2021,(50522) Unqualified Nursing Staff,(id:41881) Acute & General Medicine,MSI GROUP LTD,id:14407002  ,233.86,
Department of Health,Guys and St Thomas NHS Foundation Trust,10/09/2021,(50522) Unqualified Nursing Staff,(id:41881) Acute & General Medicine,MEDICSPRO LTD,id:14406930  ,616.4,
Department of Health,Guys and St Thomas NHS Foundation Trust,17/09/2021,(50522) Unqualified Nursing Staff,(id:41881) Acute & General Medicine,GLOBE LOCUMS LTD,id:14426320    ,268.26,
Department of Health,Guys and St Thomas NHS Foundation Trust,03/09/2021,(81225) Medical Surgical Supplies & Equipment,(id:41881) Acute & General Medicine,NHS SUPPLY CHAIN (MAIDSTONE),id:14322418,9.26,
Department of Health,Guys and St Thomas NHS Foundation Trust,24/09/2021,(81225) Medical Surgical Supplies & Equipment,(id:41881) Acute & General Medicine,NHS SUPPLY CHAIN (MAIDSTONE),id:14337011,6.24,
Department of Health,Guys and St Thomas NHS Foundation Trust,24/09/2021,(84600) Establishment,(id:1435419) Acute & General Medicine,CLARITY TRAVEL MANAGEMENT,id:14443054,53.03,
Department of Health,Guys and St Thomas NHS Foundation Trust,17/09/2021,(50203) Consultants,(id:42010) Dental Services,KINGS COLLEGE LONDON:03529700,id:14217132    ,21793.02,
Department of Health,Guys and St Thomas NHS Foundation Trust,03/09/2021,(81200) Medical Surgical Supplies & Equipment,(id:42037) Dental Services,HENRY SCHEIN,id:14341435,964.46,
Department of Health,Guys and St Thomas NHS Foundation Trust,03/09/2021,(81200) Medical Surgical Supplies & Equipment,(id:42037) Dental Services,3M UNITED KINGDOM PLC,id:14341007 ,964.26,
Department of Health,Guys and St Thomas NHS Foundation Trust,10/09/2021,(81200) Medical Surgical Supplies & Equipment,(id:42037) Dental Services,HENRY SCHEIN,id:14372717,933.91,
Department of Health,Guys and St Thomas NHS Foundation Trust,10/09/2021,(81200) Medical Surgical Supplies & Equipment,(id:42037) Dental Services,QED - QUALITY ENDODONTIC DISTRIBUTORS LTD,id:14404682 ,737.28,
Department of Health,Guys and St Thomas NHS Foundation Trust,24/09/2021,(81200) Medical Surgical Supplies & Equipment,(id:42037) Dental Services,HENRY SCHEIN,id:14427180,745.04,
Department of Health,Guys and St Thomas NHS Foundation Trust,24/09/2021,(81200) Medical Surgical Supplies & Equipment,(id:42037) Dental Services,3M UNITED KINGDOM PLC,id:14434374 ,941.34,
Department of Health,Guys and St Thomas NHS Foundation Trust,24/09/2021,(81200) Medical Surgical Supplies & Equipment,(id:42037) Dental Services,QED - QUALITY ENDODONTIC DISTRIBUTORS LTD,id:14440694 ,783.6,
Department of Health,Guys and St Thomas NHS Foundation Trust,28/09/2021,(81200) Medical Surgical Supplies & Equipment,(id:42037) Dental Services,NHS SUPPLY CHAIN (MAIDSTONE),id:14350551    ,51.73,
Department of Health,Guys and St Thomas NHS Foundation Trust,03/09/2021,(83400) Office Equipment,(id:42037) Dental Services,NHS SUPPLY CHAIN (MAIDSTONE),id:14322418,90.26,
Department of Health,Guys and St Thomas NHS Foundation Trust,24/09/2021,(83400) Office Equipment,(id:42037) Dental Services,NHS SUPPLY CHAIN (MAIDSTONE),id:14370204,50.26,
Department of Health,Guys and St Thomas NHS Foundation Trust,28/09/2021,(83400) Office Equipment,(id:42037) Dental Services,NHS SUPPLY CHAIN (MAIDSTONE),id:14350551,148.62,
Department of Health,Guys and St Thomas NHS Foundation Trust,03/09/2021,(82800) Bedding & Linen,(id:42037) Dental Services,NHS SUPPLY CHAIN (MAIDSTONE),id:14322418 ,301.5,
Department of Health,Guys and St Thomas NHS Foundation Trust,24/09/2021,(82800) Bedding & Linen,(id:42037) Dental Services,NHS SUPPLY CHAIN (MAIDSTONE),id:14370204 ,140.7,
Department of Health,Guys and St Thomas NHS Foundation Trust,28/09/2021,(82800) Bedding & Linen,(id:42037) Dental Services,NHS SUPPLY CHAIN (MAIDSTONE),id:14350551 ,140.7,
Department of Health,Guys and St Thomas NHS Foundation Trust,24/09/2021,(82000) Provisions & Kitchens,(id:42007) Dental Services,NHS SUPPLY CHAIN (MAIDSTONE),id:14337011,9,
Department of Health,Guys and St Thomas NHS Foundation Trust,10/09/2021,(81200) Medical Surgical Supplies & Equipment,(id:42007) Dental Services,MERCIAN SURGICAL SUPPLY CO LTD,id:14399007  ,672,
Department of Health,Guys and St Thomas NHS Foundation Trust,17/09/2021,(81200) Medical Surgical Supplies & Equipment,(id:42007) Dental Services,DENTAL DIRECTORY,id:14245808 ,-549.48,
Department of Health,Guys and St Thomas NHS Foundation Trust,17/09/2021,(81200) Medical Surgical Supplies & Equipment,(id:42007) Dental Services,DENTAL DIRECTORY,id:14385375 ,-769.27,
Department of Health,Guys and St Thomas NHS Foundation Trust,28/09/2021,(81700) Lab Equipment Purchase,(id:42007) Dental Services,NHS SUPPLY CHAIN (MAIDSTONE),id:14350551    ,10.15,
Department of Health,Guys and St Thomas NHS Foundation Trust,24/09/2021,(81200) Medical Surgical Supplies & Equipment,(id:42005) Dental Services,NHS SUPPLY CHAIN (MAIDSTONE),id:14370204    ,576.26,
Department of Health,Guys and St Thomas NHS Foundation Trust,28/09/2021,(81200) Medical Surgical Supplies & Equipment,(id:42005) Dental Services,NHS SUPPLY CHAIN (MAIDSTONE),id:14350551    ,129.55,
Department of Health,Guys and St Thomas NHS Foundation Trust,03/09/2021,(83400) Office Equipment,(id:42005) Dental Services,NHS SUPPLY CHAIN (MAIDSTONE),id:14323557,38.82,
Department of Health,Guys and St Thomas NHS Foundation Trust,24/09/2021,(82600) Uniforms & Clothing,(id:42005) Dental Services,NHS SUPPLY CHAIN (MAIDSTONE),id:14337011  ,35.7,
Department of Health,Guys and St Thomas NHS Foundation Trust,17/09/2021,(50200) Consultants,(id:2637419) Dental Services,KINGS COLLEGE LONDON:03529700,id:14216954  ,3076.14,
Department of Health,Guys and St Thomas NHS Foundation Trust,17/09/2021,(50200) Consultants,(id:42015) Dental Services,KINGS COLLEGE LONDON:03529700,id:14217132    ,2111.51,
Department of Health,Guys and St Thomas NHS Foundation Trust,03/09/2021,(82800) Bedding & Linen,(id:42027) Dental Services,NHS SUPPLY CHAIN (MAIDSTONE),id:14322418 ,80.4,
Department of Health,Guys and St Thomas NHS Foundation Trust,24/09/2021,(81200) Medical Surgical Supplies & Equipment,(id:2884419) Dental Services,TECHNOVENT LTD,id:14444055 ,1190.1,
Department of Health,Guys and St Thomas NHS Foundation Trust,17/09/2021,(50343) Other Medical Grades,(id:42022) Dental Services,KINGS COLLEGE LONDON:03529700,id:14217132,1529.13,
Department of Health,Guys and St Thomas NHS Foundation Trust,17/09/2021,(50200) Consultants,(id:42022) Dental Services,KINGS COLLEGE LONDON:03529700,id:14216954    ,3130.12,
Department of Health,Guys and St Thomas NHS Foundation Trust,17/09/2021,(55060) Admin & Clerical,(id:42022) Dental Services,KINGS COLLEGE LONDON:03529700,id:14217132    ,442.62,
Department of Health,Guys and St Thomas NHS Foundation Trust,03/09/2021,(82600) Uniforms & Clothing,(id:4622420) Dental Services,NHS SUPPLY CHAIN (MAIDSTONE),id:14323557,254.88,
Department of Health,Guys and St Thomas NHS Foundation Trust,03/09/2021,(81200) Medical Surgical Supplies & Equipment,(id:4622420) Dental Services,NHS SUPPLY CHAIN (MAIDSTONE),id:14323557  ,57.47,
Department of Health,Guys and St Thomas NHS Foundation Trust,10/09/2021,(89595) Non-Healthcare from Foundation Trusts,(id:42044) Dental Services,THE ROYAL ORTHOPAEDIC HOSPITAL NHS FUNDATION TRUST,id:12635485  ,904,
Department of Health,Guys and St Thomas NHS Foundation Trust,24/09/2021,(83410) Office Equipment,(id:42043) Dental Services,TWOFOLD LIMITED,id:14165935   ,1294.67,
Department of Health,Guys and St Thomas NHS Foundation Trust,17/09/2021,(81200) Medical Surgical Supplies & Equipment,(id:1634433) Dental Services,HENRY SCHEIN,id:14425248   ,510.08,
Department of Health,Guys and St Thomas NHS Foundation Trust,03/09/2021,(83400) Office Equipment,(id:1634433) Dental Services,NHS SUPPLY CHAIN (MAIDSTONE),id:14322418   ,7.26,
Department of Health,Guys and St Thomas NHS Foundation Trust,03/09/2021,(81200) Medical Surgical Supplies & Equipment,(id:1634432) Dental Services,NHS SUPPLY CHAIN (MAIDSTONE),id:14323557  ,404.52,
Department of Health,Guys and St Thomas NHS Foundation Trust,10/09/2021,(81200) Medical Surgical Supplies & Equipment,(id:1634432) Dental Services,HENRY SCHEIN,id:14401058   ,908.51,
Department of Health,Guys and St Thomas NHS Foundation Trust,17/09/2021,(81200) Medical Surgical Supplies & Equipment,(id:1634429) Dental Services,HENRY SCHEIN,id:14401497   ,653.03,
Department of Health,Guys and St Thomas NHS Foundation Trust,24/09/2021,(82800) Bedding & Linen,(id:1634429) Dental Services,NHS SUPPLY CHAIN (MAIDSTONE),id:14370204    ,120.6,
Department of Health,Guys and St Thomas NHS Foundation Trust,03/09/2021,(82600) Uniforms & Clothing,(id:1650420) Dental Services,NHS SUPPLY CHAIN (MAIDSTONE),id:14323557,3.89,
Department of Health,Guys and St Thomas NHS Foundation Trust,03/09/2021,(82800) Bedding & Linen,(id:1650420) Dental Services,NHS SUPPLY CHAIN (MAIDSTONE),id:14323557    ,20.1,
Department of Health,Guys and St Thomas NHS Foundation Trust,27/09/2021,(83640) IT Costs,(id:2862419) Specialist Ambulatory Services,GSTT PROCUREMENT CARD,id:14276794   ,8.73,
Department of Health,Guys and St Thomas NHS Foundation Trust,24/09/2021,(82000) Provisions & Kitchens,(id:42193) Specialist Ambulatory Services,NHS SUPPLY CHAIN (MAIDSTONE),id:14370204,21.69,
Department of Health,Guys and St Thomas NHS Foundation Trust,24/09/2021,(81100) Dressings,(id:42193) Specialist Ambulatory Services,NHS SUPPLY CHAIN (MAIDSTONE),id:14337011  ,265.78,
Department of Health,Guys and St Thomas NHS Foundation Trust,24/09/2021,(83400) Office Equipment,(id:42193) Specialist Ambulatory Services,NHS SUPPLY CHAIN (MAIDSTONE),id:14337011,25.24,
Department of Health,Guys and St Thomas NHS Foundation Trust,28/09/2021,(83400) Office Equipment,(id:42193) Specialist Ambulatory Services,NHS SUPPLY CHAIN (MAIDSTONE),id:14350551,124.92,
Department of Health,Guys and St Thomas NHS Foundation Trust,03/09/2021,(81700) Lab Equipment Purchase,(id:42193) Specialist Ambulatory Services,NHS SUPPLY CHAIN (MAIDSTONE),id:14323557    ,6.6,
Department of Health,Guys and St Thomas NHS Foundation Trust,17/09/2021,(50200) Consultants,(id:42215) Specialist Ambulatory Services,KINGS COLLEGE LONDON:03529700,id:14287454    ,1475.21,
Department of Health,Guys and St Thomas NHS Foundation Trust,24/09/2021,(84600) Establishment,(id:42358) Specialist Ambulatory Services,CLARITY TRAVEL MANAGEMENT,id:13402615 ,145.59,
Department of Health,Guys and St Thomas NHS Foundation Trust,24/09/2021,(89640) Non-Healthcare from NHS Trusts,(id:42354) Specialist Ambulatory Services,ST GEORGE'S UNIVERSITY HOSPITALS NHS FOUNDATION TRUST,id:2364895  ,180,
Department of Health,Guys and St Thomas NHS Foundation Trust,24/09/2021,(81100) Dressings,(id:3608419) Specialist Ambulatory Services,NHS SUPPLY CHAIN (MAIDSTONE),id:14370204,73.5,
Department of Health,Guys and St Thomas NHS Foundation Trust,03/09/2021,(82000) Provisions & Kitchens,(id:3607419) Specialist Ambulatory Services,NHS SUPPLY CHAIN (MAIDSTONE),id:14323557   ,15.62,
Department of Health,Guys and St Thomas NHS Foundation Trust,24/09/2021,(83400) Office Equipment,(id:42091) Specialist Ambulatory Services,NHS SUPPLY CHAIN (MAIDSTONE),id:14370204,159.28,
Department of Health,Guys and St Thomas NHS Foundation Trust,03/09/2021,(82600) Uniforms & Clothing,(id:42091) Specialist Ambulatory Services,NHS SUPPLY CHAIN (MAIDSTONE),id:14322418  ,84.96,
Department of Health,Guys and St Thomas NHS Foundation Trust,03/09/2021,(82800) Bedding & Linen,(id:42097) Specialist Ambulatory Services,NHS SUPPLY CHAIN (MAIDSTONE),id:14322418 ,11.23,
Department of Health,Guys and St Thomas NHS Foundation Trust,03/09/2021,(82800) Bedding & Linen,(id:42097) Specialist Ambulatory Services,NHS SUPPLY CHAIN (MAIDSTONE),id:14323557 ,15.48,
Department of Health,Guys and St Thomas NHS Foundation Trust,24/09/2021,(82800) Bedding & Linen,(id:42097) Specialist Ambulatory Services,NHS SUPPLY CHAIN (MAIDSTONE),id:14337011 ,40.2,
Department of Health,Guys and St Thomas NHS Foundation Trust,28/09/2021,(82800) Bedding & Linen,(id:42097) Specialist Ambulatory Services,NHS SUPPLY CHAIN (MAIDSTONE),id:14350551 ,20.1,
Department of Health,Guys and St Thomas NHS Foundation Trust,28/09/2021,(82600) Uniforms & Clothing,(id:42097) Specialist Ambulatory Services,NHS SUPPLY CHAIN (MAIDSTONE),id:14350551  ,8.42,
Department of Health,Guys and St Thomas NHS Foundation Trust,03/09/2021,(81200) Medical Surgical Supplies & Equipment,(id:42097) Specialist Ambulatory Services,NHS SUPPLY CHAIN (MAIDSTONE),id:14322418    ,110.4,
Department of Health,Guys and St Thomas NHS Foundation Trust,28/09/2021,(82800) Bedding & Linen,(id:42079) Specialist Ambulatory Services,NHS SUPPLY CHAIN (MAIDSTONE),id:14350551 ,43.72,
Department of Health,Guys and St Thomas NHS Foundation Trust,10/09/2021,(80010) Drug Costs,(id:42079) Specialist Ambulatory Services,THERAKOS (UK) LIMITED,id:14302558   ,22824,
Department of Health,Guys and St Thomas NHS Foundation Trust,10/09/2021,(80010) Drug Costs,(id:42079) Specialist Ambulatory Services,THERAKOS (UK) LIMITED,id:14302555   ,22824,
Department of Health,Guys and St Thomas NHS Foundation Trust,10/09/2021,(80010) Drug Costs,(id:42079) Specialist Ambulatory Services,THERAKOS (UK) LIMITED,id:14340394   ,22824,
Department of Health,Guys and St Thomas NHS Foundation Trust,17/09/2021,(80010) Drug Costs,(id:42079) Specialist Ambulatory Services,THERAKOS (UK) LIMITED,id:14394214   ,-760.8,
Department of Health,Guys and St Thomas NHS Foundation Trust,28/09/2021,(81700) Lab Equipment Purchase,(id:42079) Specialist Ambulatory Services,NHS SUPPLY CHAIN (MAIDSTONE),id:14350551    ,5.34,
Department of Health,Guys and St Thomas NHS Foundation Trust,10/09/2021,(50552) Qualified Nursing Staff,(id:42079) Specialist Ambulatory Services,CONTINENTAL NURSE LTD,id:14406816,1577.19,
Department of Health,Guys and St Thomas NHS Foundation Trust,03/09/2021,(83400) Office Equipment,(id:42066) Specialist Ambulatory Services,NHS SUPPLY CHAIN (MAIDSTONE),id:14322418,140.24,
Department of Health,Guys and St Thomas NHS Foundation Trust,24/09/2021,(81700) Lab Equipment Purchase,(id:42066) Specialist Ambulatory Services,NHS SUPPLY CHAIN (MAIDSTONE),id:14370204    ,96.98,
Department of Health,Guys and St Thomas NHS Foundation Trust,24/09/2021,(84600) Establishment,(id:391419) Specialist Ambulatory Services,CLARITY TRAVEL MANAGEMENT,id:14443055,223.96,
Department of Health,Guys and St Thomas NHS Foundation Trust,24/09/2021,(84600) Establishment,(id:391419) Specialist Ambulatory Services,CLARITY TRAVEL MANAGEMENT,id:14443054,131.09,
Department of Health,Guys and St Thomas NHS Foundation Trust,24/09/2021,(81100) Dressings,(id:391417) Specialist Ambulatory Services,NHS SUPPLY CHAIN (MAIDSTONE),id:14337011 ,128.66,
Department of Health,Guys and St Thomas NHS Foundation Trust,27/09/2021,(89000) Other - Training courses and conferences,(id:42061) Specialist Ambulatory Services,GSTT PROCUREMENT CARD,id:14469334   ,513.33,
Department of Health,Guys and St Thomas NHS Foundation Trust,03/09/2021,(83400) Office Equipment,(id:42050) Specialist Ambulatory Services,NHS SUPPLY CHAIN (MAIDSTONE),id:14322418,126.75,
Department of Health,Guys and St Thomas NHS Foundation Trust,24/09/2021,(82800) Bedding & Linen,(id:42050) Specialist Ambulatory Services,NHS SUPPLY CHAIN (MAIDSTONE),id:14370204 ,58.26,
Department of Health,Guys and St Thomas NHS Foundation Trust,24/09/2021,(81225) Medical Surgical Supplies & Equipment,(id:42050) Specialist Ambulatory Services,NHS SUPPLY CHAIN (MAIDSTONE),id:14337011    ,265.78,
Department of Health,Guys and St Thomas NHS Foundation Trust,03/09/2021,(81100) Dressings,(id:42050) Specialist Ambulatory Services,NHS SUPPLY CHAIN (MAIDSTONE),id:14323557  ,74.73,
Department of Health,Guys and St Thomas NHS Foundation Trust,24/09/2021,(81100) Dressings,(id:42050) Specialist Ambulatory Services,NHS SUPPLY CHAIN (MAIDSTONE),id:14337011  ,1014.07,
Department of Health,Guys and St Thomas NHS Foundation Trust,28/09/2021,(81100) Dressings,(id:42050) Specialist Ambulatory Services,NHS SUPPLY CHAIN (MAIDSTONE),id:14350551  ,313.56,
Department of Health,Guys and St Thomas NHS Foundation Trust,28/09/2021,(82000) Provisions & Kitchens,(id:42050) Specialist Ambulatory Services,NHS SUPPLY CHAIN (MAIDSTONE),id:14350551,12.47,
Department of Health,Guys and St Thomas NHS Foundation Trust,28/09/2021,(54052) Technical Officers,(id:2869419) Pharmacy,PRICEWATERHOUSECOOPERS LLP,id:14474701,1020.31,
Department of Health,Guys and St Thomas NHS Foundation Trust,17/09/2021,(50200) Consultants,(id:999419) Pharmacy,KINGS COLLEGE LONDON:03529700,id:14365894,1847.69,
Department of Health,Guys and St Thomas NHS Foundation Trust,17/09/2021,(89000) Other - Training courses and conferences,(id:42162) Pharmacy,UNIVERSITY COLLEGE LONDON,id:13050835 ,525,
Department of Health,Guys and St Thomas NHS Foundation Trust,17/09/2021,(89000) Other - Training courses and conferences,(id:42162) Pharmacy,UNIVERSITY COLLEGE LONDON,id:14426674 ,540,
Department of Health,Guys and St Thomas NHS Foundation Trust,17/09/2021,(89000) Other - Training courses and conferences,(id:42162) Pharmacy,UNIVERSITY COLLEGE LONDON,id:14424874 ,540,
Department of Health,Guys and St Thomas NHS Foundation Trust,17/09/2021,(89000) Other - Training courses and conferences,(id:42162) Pharmacy,UNIVERSITY COLLEGE LONDON,id:14426642 ,540,
Department of Health,Guys and St Thomas NHS Foundation Trust,17/09/2021,(89000) Other - Training courses and conferences,(id:42162) Pharmacy,UNIVERSITY COLLEGE LONDON,id:14426695 ,1080,
Department of Health,Guys and St Thomas NHS Foundation Trust,24/09/2021,(81200) Medical Surgical Supplies & Equipment,(id:581409) Pharmacy,ELIS UK LIMITED,id:14427890   ,4457.09,
Department of Health,Guys and St Thomas NHS Foundation Trust,28/09/2021,(81200) Medical Surgical Supplies & Equipment,(id:581409) Pharmacy,NHS SUPPLY CHAIN (MAIDSTONE),id:14350551,1613.48,
Department of Health,Guys and St Thomas NHS Foundation Trust,10/09/2021,(83400) Office Equipment,(id:581409) Pharmacy,DURBIN PLC,id:14399024    ,949.3,
Department of Health,Guys and St Thomas NHS Foundation Trust,28/09/2021,(53662) Pharmacists,(id:581409) Pharmacy,PRICEWATERHOUSECOOPERS LLP,id:14474555   ,1134.2,
Department of Health,Guys and St Thomas NHS Foundation Trust,10/09/2021,(81200) Medical Surgical Supplies & Equipment,(id:42159) Pharmacy,NITRITEX LTD,id:14280743  ,3273.48,
Department of Health,Guys and St Thomas NHS Foundation Trust,03/09/2021,(55062) Admin & Clerical,(id:42159) Pharmacy,HYPER RECRUITMENT SOLUTIONS LTD,id:14340899    ,860.86,
Department of Health,Guys and St Thomas NHS Foundation Trust,17/09/2021,(55122) Admin & Clerical,(id:42159) Pharmacy,HYPER RECRUITMENT SOLUTIONS LTD,id:14407226    ,3000,
Department of Health,Guys and St Thomas NHS Foundation Trust,03/09/2021,(83400) Office Equipment,(id:42159) Pharmacy,NHS SUPPLY CHAIN (MAIDSTONE),id:14322418  ,39.62,
Department of Health,Guys and St Thomas NHS Foundation Trust,03/09/2021,(81275) Medical Surgical Supplies & Equipment,(id:42159) Pharmacy,SCI-TEK INSTRUMENTS LTD,id:14373302 ,1563.87,
Department of Health,Guys and St Thomas NHS Foundation Trust,28/09/2021,(53672) Pharmacists,(id:42160) Pharmacy,PRICEWATERHOUSECOOPERS LLP,id:14474701    ,1220.4,
Department of Health,Guys and St Thomas NHS Foundation Trust,28/09/2021,(53642) Pharmacists,(id:42160) Pharmacy,PRICEWATERHOUSECOOPERS LLP,id:14474701    ,1548.63,
Department of Health,Guys and St Thomas NHS Foundation Trust,28/09/2021,(53642) Pharmacists,(id:42160) Pharmacy,PRICEWATERHOUSECOOPERS LLP,id:14474555    ,748.63,
Department of Health,Guys and St Thomas NHS Foundation Trust,24/09/2021,(82800) Bedding & Linen,(id:478416) Medical Specialties,NHS SUPPLY CHAIN (MAIDSTONE),id:14370204 ,80.4,
Department of Health,Guys and St Thomas NHS Foundation Trust,10/09/2021,(84655) Establishment,(id:478416) Medical Specialties,LANGUAGE CONNECT,id:14408574,12412.65,
Department of Health,Guys and St Thomas NHS Foundation Trust,03/09/2021,(81000) Surgical Appliances,(id:42171) Medical Specialties,TALAR MADE ORTHOTICS LTD,id:14370197  ,93,
Department of Health,Guys and St Thomas NHS Foundation Trust,24/09/2021,(81000) Surgical Appliances,(id:42171) Medical Specialties,TALAR MADE ORTHOTICS LTD,id:14445855  ,93,
Department of Health,Guys and St Thomas NHS Foundation Trust,24/09/2021,(82000) Provisions & Kitchens,(id:42251) Medical Specialties,NHS SUPPLY CHAIN (MAIDSTONE),id:14370204 ,177.07,
Department of Health,Guys and St Thomas NHS Foundation Trust,28/09/2021,(51842) Physiotherapists,(id:42251) Medical Specialties,PRICEWATERHOUSECOOPERS LLP,id:14474701   ,1496.73,
Department of Health,Guys and St Thomas NHS Foundation Trust,03/09/2021,(83610) IT Costs,(id:42223) Medical Specialties,OFFICE DEPOT UK LTD,id:14335740   ,549.24,
Department of Health,Guys and St Thomas NHS Foundation Trust,10/09/2021,(81200) Medical Surgical Supplies & Equipment,(id:42223) Medical Specialties,OCURA HEALTHCARE FURNITURE,id:14399136  ,1965.6,
Department of Health,Guys and St Thomas NHS Foundation Trust,17/09/2021,(81200) Medical Surgical Supplies & Equipment,(id:42223) Medical Specialties,OPTIMA LOW VISION SERVICES LTD,id:14413774   ,1646.31,
Department of Health,Guys and St Thomas NHS Foundation Trust,24/09/2021,(81200) Medical Surgical Supplies & Equipment,(id:42223) Medical Specialties,NHS SUPPLY CHAIN (MAIDSTONE),id:14370204,2375.37,
Department of Health,Guys and St Thomas NHS Foundation Trust,24/09/2021,(81200) Medical Surgical Supplies & Equipment,(id:42223) Medical Specialties,MAINLINE INSTRUMENTS LTD,id:14448600    ,972,
Department of Health,Guys and St Thomas NHS Foundation Trust,24/09/2021,(82000) Provisions & Kitchens,(id:42223) Medical Specialties,NHS SUPPLY CHAIN (MAIDSTONE),id:14337011 ,36,
Department of Health,Guys and St Thomas NHS Foundation Trust,28/09/2021,(50202) Consultants,(id:42223) Medical Specialties,PRICEWATERHOUSECOOPERS LLP,id:14474602   ,2103.84,
Department of Health,Guys and St Thomas NHS Foundation Trust,24/09/2021,(81100) Dressings,(id:42223) Medical Specialties,NHS SUPPLY CHAIN (MAIDSTONE),id:14370204   ,15.94,
Department of Health,Guys and St Thomas NHS Foundation Trust,24/09/2021,(82800) Bedding & Linen,(id:42223) Medical Specialties,NHS SUPPLY CHAIN (MAIDSTONE),id:14370204  ,68.28,
Department of Health,Guys and St Thomas NHS Foundation Trust,28/09/2021,(82800) Bedding & Linen,(id:42223) Medical Specialties,NHS SUPPLY CHAIN (MAIDSTONE),id:14350551  ,131.04,
Department of Health,Guys and St Thomas NHS Foundation Trust,03/09/2021,(83400) Office Equipment,(id:42221) Medical Specialties,NHS SUPPLY CHAIN (MAIDSTONE),id:14323557 ,104.73,
Department of Health,Guys and St Thomas NHS Foundation Trust,03/09/2021,(81200) Medical Surgical Supplies & Equipment,(id:42221) Medical Specialties,ALCON EYE CARE UK LIMITED,id:14373339   ,2764.8,
Department of Health,Guys and St Thomas NHS Foundation Trust,17/09/2021,(81200) Medical Surgical Supplies & Equipment,(id:42221) Medical Specialties,BEAVER-VISITEC INTERNATIONAL (SALES) LTD,id:14415614   ,1132.8,
Department of Health,Guys and St Thomas NHS Foundation Trust,17/09/2021,(81200) Medical Surgical Supplies & Equipment,(id:42221) Medical Specialties,BEAVER-VISITEC INTERNATIONAL (SALES) LTD,id:14415654   ,1585.92,
Department of Health,Guys and St Thomas NHS Foundation Trust,10/09/2021,(89595) Non-Healthcare from Foundation Trusts,(id:42220) Medical Specialties,MOORFIELDS EYE HOSPITAL NHS FOUNDATION TRUST,id:14402154    ,2550.5,
Department of Health,Guys and St Thomas NHS Foundation Trust,24/09/2021,(89595) Non-Healthcare from Foundation Trusts,(id:42220) Medical Specialties,MOORFIELDS EYE HOSPITAL NHS FOUNDATION TRUST,id:14402234    ,4434,
Department of Health,Guys and St Thomas NHS Foundation Trust,03/09/2021,(81200) Medical Surgical Supplies & Equipment,(id:42213) Medical Specialties,NHS SUPPLY CHAIN (MAIDSTONE),id:14322418,57.24,
Department of Health,Guys and St Thomas NHS Foundation Trust,24/09/2021,(81200) Medical Surgical Supplies & Equipment,(id:42213) Medical Specialties,NHS SUPPLY CHAIN (MAIDSTONE),id:14370204,229.57,
Department of Health,Guys and St Thomas NHS Foundation Trust,24/09/2021,(81000) Surgical Appliances,(id:42213) Medical Specialties,TALAR MADE ORTHOTICS LTD,id:14445855  ,160.5,
Department of Health,Guys and St Thomas NHS Foundation Trust,24/09/2021,(81700) Lab Equipment Purchase,(id:42213) Medical Specialties,NHS SUPPLY CHAIN (MAIDSTONE),id:14370204,298.94,
Department of Health,Guys and St Thomas NHS Foundation Trust,24/09/2021,(81000) Surgical Appliances,(id:42209) Medical Specialties,TALAR MADE ORTHOTICS LTD,id:14445736  ,14.4,
Department of Health,Guys and St Thomas NHS Foundation Trust,03/09/2021,(81200) Medical Surgical Supplies & Equipment,(id:42208) Medical Specialties,ROCHE DIABETES CARE LIMITED,id:14359296 ,631.75,
Department of Health,Guys and St Thomas NHS Foundation Trust,17/09/2021,(81200) Medical Surgical Supplies & Equipment,(id:42208) Medical Specialties,MEDTRONIC LTD,id:14335866,751.54,
Department of Health,Guys and St Thomas NHS Foundation Trust,17/09/2021,(81200) Medical Surgical Supplies & Equipment,(id:42208) Medical Specialties,MEDTRONIC LTD,id:14324216,761.47,
Department of Health,Guys and St Thomas NHS Foundation Trust,17/09/2021,(81200) Medical Surgical Supplies & Equipment,(id:42208) Medical Specialties,DEXCOM INTERNATIONAL LTD,id:14424048    ,793.5,
Department of Health,Guys and St Thomas NHS Foundation Trust,17/09/2021,(81200) Medical Surgical Supplies & Equipment,(id:42208) Medical Specialties,DEXCOM INTERNATIONAL LTD,id:14336539    ,793.5,
Department of Health,Guys and St Thomas NHS Foundation Trust,17/09/2021,(81200) Medical Surgical Supplies & Equipment,(id:42208) Medical Specialties,MEDTRONIC LTD,id:14328419,567,
Department of Health,Guys and St Thomas NHS Foundation Trust,17/09/2021,(81200) Medical Surgical Supplies & Equipment,(id:42208) Medical Specialties,DEXCOM INTERNATIONAL LTD,id:14424203    ,600,
Department of Health,Guys and St Thomas NHS Foundation Trust,17/09/2021,(81200) Medical Surgical Supplies & Equipment,(id:42208) Medical Specialties,DEXCOM INTERNATIONAL LTD,id:14424074    ,600,
Department of Health,Guys and St Thomas NHS Foundation Trust,17/09/2021,(81200) Medical Surgical Supplies & Equipment,(id:42208) Medical Specialties,DEXCOM INTERNATIONAL LTD,id:14400794    ,600,
Department of Health,Guys and St Thomas NHS Foundation Trust,17/09/2021,(81200) Medical Surgical Supplies & Equipment,(id:42208) Medical Specialties,DEXCOM INTERNATIONAL LTD,id:14360112    ,600,
Department of Health,Guys and St Thomas NHS Foundation Trust,17/09/2021,(81200) Medical Surgical Supplies & Equipment,(id:42208) Medical Specialties,MEDTRONIC LTD,id:14358263,3766.8,
Department of Health,Guys and St Thomas NHS Foundation Trust,17/09/2021,(81200) Medical Surgical Supplies & Equipment,(id:42208) Medical Specialties,MEDTRONIC LTD,id:14358266,3766.8,
Department of Health,Guys and St Thomas NHS Foundation Trust,17/09/2021,(81200) Medical Surgical Supplies & Equipment,(id:42208) Medical Specialties,MEDTRONIC LTD,id:14358262,3766.8,
Department of Health,Guys and St Thomas NHS Foundation Trust,17/09/2021,(81200) Medical Surgical Supplies & Equipment,(id:42208) Medical Specialties,AIR LIQUIDE (HOMECARE) LTD,id:13362667  ,4296,
Department of Health,Guys and St Thomas NHS Foundation Trust,03/09/2021,(81200) Medical Surgical Supplies & Equipment,(id:42204) Medical Specialties,NHS SUPPLY CHAIN (MAIDSTONE),id:14322418,18.19,
Department of Health,Guys and St Thomas NHS Foundation Trust,03/09/2021,(83400) Office Equipment,(id:302405) Medical Specialties,NHS SUPPLY CHAIN (MAIDSTONE),id:14322418,63.24,
Department of Health,Guys and St Thomas NHS Foundation Trust,28/09/2021,(81700) Lab Equipment Purchase,(id:302405) Medical Specialties,NHS SUPPLY CHAIN (MAIDSTONE),id:14350551    ,32.4,
Department of Health,Guys and St Thomas NHS Foundation Trust,24/09/2021,(82800) Bedding & Linen,(id:42205) Medical Specialties,NHS SUPPLY CHAIN (MAIDSTONE),id:14337011  ,5.94,
Department of Health,Guys and St Thomas NHS Foundation Trust,03/09/2021,(81200) Medical Surgical Supplies & Equipment,(id:41937) Medical Specialties,NHS SUPPLY CHAIN (MAIDSTONE),id:14322418,85943.6,
Department of Health,Guys and St Thomas NHS Foundation Trust,17/09/2021,(81200) Medical Surgical Supplies & Equipment,(id:41937) Medical Specialties,BXTACCELYON LIMITED,id:14414095    ,1254,
Department of Health,Guys and St Thomas NHS Foundation Trust,24/09/2021,(81100) Dressings,(id:41937) Medical Specialties,NHS SUPPLY CHAIN (MAIDSTONE),id:14337011   ,3.74,
Department of Health,Guys and St Thomas NHS Foundation Trust,28/09/2021,(52062) Radiographers,(id:41937) Medical Specialties,PRICEWATERHOUSECOOPERS LLP,id:14474555 ,626.79,
Department of Health,Guys and St Thomas NHS Foundation Trust,28/09/2021,(52062) Radiographers,(id:41937) Medical Specialties,PRICEWATERHOUSECOOPERS LLP,id:14474701 ,1292.12,
Department of Health,Guys and St Thomas NHS Foundation Trust,24/09/2021,(81700) Lab Equipment Purchase,(id:41937) Medical Specialties,NHS SUPPLY CHAIN (MAIDSTONE),id:14337011,202.48,
Department of Health,Guys and St Thomas NHS Foundation Trust,28/09/2021,(53072) Speech Therapists,(id:184406) Therapies and Rehabilitation,PRICEWATERHOUSECOOPERS LLP,id:14474555  ,2559.56,
Department of Health,Guys and St Thomas NHS Foundation Trust,03/09/2021,(81200) Medical Surgical Supplies & Equipment,(id:42232) Therapies and Rehabilitation,PHYSIO SUPPLIES LTD,id:14374175,1298.57,
Department of Health,Guys and St Thomas NHS Foundation Trust,03/09/2021,(81200) Medical Surgical Supplies & Equipment,(id:42231) Therapies and Rehabilitation,NHS SUPPLY CHAIN (MAIDSTONE),id:14322418 ,87.06,
Department of Health,Guys and St Thomas NHS Foundation Trust,03/09/2021,(86300) Healthcare from non-NHS bodies,(id:42237) Therapies and Rehabilitation,PHYSIOTHERAPY SOLUTIONS LTD,id:14381454    ,46574,
Department of Health,Guys and St Thomas NHS Foundation Trust,24/09/2021,(82600) Uniforms & Clothing,(id:42239) Therapies and Rehabilitation,ALLARD SUPPORT LTD,id:14444374    ,1407.74,
Department of Health,Guys and St Thomas NHS Foundation Trust,24/09/2021,(83400) Office Equipment,(id:590530) Therapies and Rehabilitation,NHS SUPPLY CHAIN (MAIDSTONE),id:14370204 ,109.65,
Department of Health,Guys and St Thomas NHS Foundation Trust,28/09/2021,(81100) Dressings,(id:590530) Therapies and Rehabilitation,NHS SUPPLY CHAIN (MAIDSTONE),id:14350551   ,949.82,
Department of Health,Guys and St Thomas NHS Foundation Trust,24/09/2021,(82800) Bedding & Linen,(id:590530) Therapies and Rehabilitation,NHS SUPPLY CHAIN (MAIDSTONE),id:14370204  ,27.74,
Department of Health,Guys and St Thomas NHS Foundation Trust,24/09/2021,(81225) Medical Surgical Supplies & Equipment,(id:590530) Therapies and Rehabilitation,NHS SUPPLY CHAIN (MAIDSTONE),id:14337011,18.72,
Department of Health,Guys and St Thomas NHS Foundation Trust,03/09/2021,(81100) Dressings,(id:590490) Therapies and Rehabilitation,NHS SUPPLY CHAIN (MAIDSTONE),id:14323557   ,1907.16,
Department of Health,Guys and St Thomas NHS Foundation Trust,24/09/2021,(81100) Dressings,(id:590490) Therapies and Rehabilitation,NHS SUPPLY CHAIN (MAIDSTONE),id:14337011   ,98.39,
Department of Health,Guys and St Thomas NHS Foundation Trust,28/09/2021,(81100) Dressings,(id:590490) Therapies and Rehabilitation,NHS SUPPLY CHAIN (MAIDSTONE),id:14350551   ,588.66,
Department of Health,Guys and St Thomas NHS Foundation Trust,28/09/2021,(83400) Office Equipment,(id:590490) Therapies and Rehabilitation,NHS SUPPLY CHAIN (MAIDSTONE),id:14350551 ,17.14,
Department of Health,Guys and St Thomas NHS Foundation Trust,03/09/2021,(81100) Dressings,(id:42243) Therapies and Rehabilitation,NHS SUPPLY CHAIN (MAIDSTONE),id:14322418    ,35.62,
Department of Health,Guys and St Thomas NHS Foundation Trust,28/09/2021,(52062) Radiographers,(id:42243) Therapies and Rehabilitation,PRICEWATERHOUSECOOPERS LLP,id:14473275  ,982.11,
Department of Health,Guys and St Thomas NHS Foundation Trust,28/09/2021,(53062) Speech Therapists,(id:42248) Therapies and Rehabilitation,PRICEWATERHOUSECOOPERS LLP,id:14473275   ,2069.09,
Department of Health,Guys and St Thomas NHS Foundation Trust,03/09/2021,(83610) IT Costs,(id:590500) Therapies and Rehabilitation,CBC COMPUTER SYSTEMS LTD,id:14370363   ,2150,
Department of Health,Guys and St Thomas NHS Foundation Trust,28/09/2021,(81200) Medical Surgical Supplies & Equipment,(id:590499) Therapies and Rehabilitation,SUNRISE MEDICAL LIMITED,id:14348115,747.31,
Department of Health,Guys and St Thomas NHS Foundation Trust,28/09/2021,(81200) Medical Surgical Supplies & Equipment,(id:590499) Therapies and Rehabilitation,INVACARE LTD,id:14445164 ,1334.4,
Department of Health,Guys and St Thomas NHS Foundation Trust,28/09/2021,(81200) Medical Surgical Supplies & Equipment,(id:590499) Therapies and Rehabilitation,INVACARE LTD,id:14443514 ,1438.8,
Department of Health,Guys and St Thomas NHS Foundation Trust,28/09/2021,(81200) Medical Surgical Supplies & Equipment,(id:590499) Therapies and Rehabilitation,INVACARE LTD,id:14443554 ,1551.6,
Department of Health,Guys and St Thomas NHS Foundation Trust,17/09/2021,(84500) Establishment,(id:590499) Therapies and Rehabilitation,OFFICE DEPOT UK LTD,id:14361321   ,19.84,
Department of Health,Guys and St Thomas NHS Foundation Trust,10/09/2021,(89595) Non-Healthcare from Foundation Trusts,(id:590499) Therapies and Rehabilitation,KING'S COLLEGE HOSPITAL NHS FOUNDATION TRUST,id:8204548,2593.8,
Department of Health,Guys and St Thomas NHS Foundation Trust,17/09/2021,(83610) IT Costs,(id:590499) Therapies and Rehabilitation,OFFICE DEPOT UK LTD,id:14361320   ,1613.9,
Department of Health,Guys and St Thomas NHS Foundation Trust,03/09/2021,(81225) Medical Surgical Supplies & Equipment,(id:590498) Therapies and Rehabilitation,JANE SAUNDERS & MANNING LTD,id:14349832 ,751.58,
Department of Health,Guys and St Thomas NHS Foundation Trust,17/09/2021,(81400) Medical Surgical Supplies & Equipment,(id:590498) Therapies and Rehabilitation,NPD ORTHOTICS LTD,id:14397454 ,800.64,
Department of Health,Guys and St Thomas NHS Foundation Trust,24/09/2021,(81100) Dressings,(id:590496) Therapies and Rehabilitation,NHS SUPPLY CHAIN (MAIDSTONE),id:14337011   ,466.64,
Department of Health,Guys and St Thomas NHS Foundation Trust,03/09/2021,(82800) Bedding & Linen,(id:590496) Therapies and Rehabilitation,NHS SUPPLY CHAIN (MAIDSTONE),id:14322418  ,20.1,
Department of Health,Guys and St Thomas NHS Foundation Trust,24/09/2021,(82800) Bedding & Linen,(id:42242) Therapies and Rehabilitation,NHS SUPPLY CHAIN (MAIDSTONE),id:14337011   ,40.2,
Department of Health,Guys and St Thomas NHS Foundation Trust,24/09/2021,(82800) Bedding & Linen,(id:1042419) Therapies and Rehabilitation,NHS SUPPLY CHAIN (MAIDSTONE),id:14337011 ,24,
Department of Health,Guys and St Thomas NHS Foundation Trust,17/09/2021,(50200) Consultants,(id:42368) Clinical Imaging & Med Physics,KINGS COLLEGE LONDON:03529700,id:14287354    ,10844.07,
Department of Health,Guys and St Thomas NHS Foundation Trust,10/09/2021,(50552) Qualified Nursing Staff,(id:42368) Clinical Imaging & Med Physics,CONTINENTAL NURSE LTD,id:14406747,1110.8,
Department of Health,Guys and St Thomas NHS Foundation Trust,24/09/2021,(84600) Establishment,(id:42368) Clinical Imaging & Med Physics,CLARITY TRAVEL MANAGEMENT,id:14443055 ,355.73,
Department of Health,Guys and St Thomas NHS Foundation Trust,28/09/2021,(50202) Consultants,(id:42368) Clinical Imaging & Med Physics,PRICEWATERHOUSECOOPERS LLP,id:14474701  ,1833.26,
Department of Health,Guys and St Thomas NHS Foundation Trust,28/09/2021,(50202) Consultants,(id:42368) Clinical Imaging & Med Physics,PRICEWATERHOUSECOOPERS LLP,id:14474602  ,2266.66,
Department of Health,Guys and St Thomas NHS Foundation Trust,28/09/2021,(50202) Consultants,(id:42368) Clinical Imaging & Med Physics,PRICEWATERHOUSECOOPERS LLP,id:14473275  ,2328.57,
Department of Health,Guys and St Thomas NHS Foundation Trust,03/09/2021,(82000) Provisions & Kitchens,(id:42367) Clinical Imaging & Med Physics,NHS SUPPLY CHAIN (MAIDSTONE),id:14323557,49.7,
Department of Health,Guys and St Thomas NHS Foundation Trust,24/09/2021,(82000) Provisions & Kitchens,(id:42367) Clinical Imaging & Med Physics,NHS SUPPLY CHAIN (MAIDSTONE),id:14337011,23.4,
Department of Health,Guys and St Thomas NHS Foundation Trust,03/09/2021,(83400) Office Equipment,(id:42367) Clinical Imaging & Med Physics,NHS SUPPLY CHAIN (MAIDSTONE),id:14323557,281.4,
Department of Health,Guys and St Thomas NHS Foundation Trust,03/09/2021,(83400) Office Equipment,(id:42367) Clinical Imaging & Med Physics,MEDRAY UK LTD,id:14372274,936,
Department of Health,Guys and St Thomas NHS Foundation Trust,28/09/2021,(81100) Dressings,(id:42367) Clinical Imaging & Med Physics,NHS SUPPLY CHAIN (MAIDSTONE),id:14350551  ,1379.56,
Department of Health,Guys and St Thomas NHS Foundation Trust,03/09/2021,(81200) Medical Surgical Supplies & Equipment,(id:42367) Clinical Imaging & Med Physics,BOSTON SCIENTIFIC LTD,id:14332517 ,324,
Department of Health,Guys and St Thomas NHS Foundation Trust,03/09/2021,(81200) Medical Surgical Supplies & Equipment,(id:42367) Clinical Imaging & Med Physics,BOSTON SCIENTIFIC LTD,id:14328346 ,438,
Department of Health,Guys and St Thomas NHS Foundation Trust,03/09/2021,(81200) Medical Surgical Supplies & Equipment,(id:42367) Clinical Imaging & Med Physics,ABBOTT MEDICAL UK LTD,id:14377777 ,696,
Department of Health,Guys and St Thomas NHS Foundation Trust,03/09/2021,(81200) Medical Surgical Supplies & Equipment,(id:42367) Clinical Imaging & Med Physics,ABBOTT MEDICAL UK LTD,id:14366334 ,1080,
Department of Health,Guys and St Thomas NHS Foundation Trust,10/09/2021,(81200) Medical Surgical Supplies & Equipment,(id:42367) Clinical Imaging & Med Physics,COOK UK LTD,id:14324209 ,234,
Department of Health,Guys and St Thomas NHS Foundation Trust,10/09/2021,(81200) Medical Surgical Supplies & Equipment,(id:42367) Clinical Imaging & Med Physics,VASCULAR PERSPECTIVES LTD,id:14399537  ,570,
Department of Health,Guys and St Thomas NHS Foundation Trust,10/09/2021,(81200) Medical Surgical Supplies & Equipment,(id:42367) Clinical Imaging & Med Physics,VARIAN MEDICAL SYSTEMS UK LTD,id:14393954   ,1890,
Department of Health,Guys and St Thomas NHS Foundation Trust,10/09/2021,(81200) Medical Surgical Supplies & Equipment,(id:42367) Clinical Imaging & Med Physics,ABBOTT MEDICAL UK LTD,id:14399454 ,7032,
Department of Health,Guys and St Thomas NHS Foundation Trust,17/09/2021,(81200) Medical Surgical Supplies & Equipment,(id:42367) Clinical Imaging & Med Physics,BOSTON SCIENTIFIC LTD,id:14371660 ,1694.4,
Department of Health,Guys and St Thomas NHS Foundation Trust,17/09/2021,(81200) Medical Surgical Supplies & Equipment,(id:42367) Clinical Imaging & Med Physics,COOK UK LTD,id:14353161 ,876,
Department of Health,Guys and St Thomas NHS Foundation Trust,17/09/2021,(81200) Medical Surgical Supplies & Equipment,(id:42367) Clinical Imaging & Med Physics,VARIAN MEDICAL SYSTEMS UK LTD,id:14393974   ,882,
Department of Health,Guys and St Thomas NHS Foundation Trust,17/09/2021,(81200) Medical Surgical Supplies & Equipment,(id:42367) Clinical Imaging & Med Physics,VOLCANO EUROPE BVBA/SPRL,id:14404454   ,1080,
Department of Health,Guys and St Thomas NHS Foundation Trust,24/09/2021,(81200) Medical Surgical Supplies & Equipment,(id:42367) Clinical Imaging & Med Physics,ABBOTT MEDICAL UK LTD,id:14446874 ,1776,
Department of Health,Guys and St Thomas NHS Foundation Trust,24/09/2021,(81200) Medical Surgical Supplies & Equipment,(id:42367) Clinical Imaging & Med Physics,BOSTON SCIENTIFIC LTD,id:14380812 ,1896,
Department of Health,Guys and St Thomas NHS Foundation Trust,24/09/2021,(81200) Medical Surgical Supplies & Equipment,(id:42367) Clinical Imaging & Med Physics,ABBOTT MEDICAL UK LTD,id:14451154 ,1080,
Department of Health,Guys and St Thomas NHS Foundation Trust,03/09/2021,(81230) Medical Surgical Supplies & Equipment,(id:42367) Clinical Imaging & Med Physics,NHS SUPPLY CHAIN (MAIDSTONE),id:14322418    ,312,
Department of Health,Guys and St Thomas NHS Foundation Trust,10/09/2021,(81230) Medical Surgical Supplies & Equipment,(id:42367) Clinical Imaging & Med Physics,COOK UK LTD,id:14342447 ,75.6,
Department of Health,Guys and St Thomas NHS Foundation Trust,17/09/2021,(81230) Medical Surgical Supplies & Equipment,(id:42367) Clinical Imaging & Med Physics,COOK UK LTD,id:14361291 ,174,
Department of Health,Guys and St Thomas NHS Foundation Trust,17/09/2021,(81230) Medical Surgical Supplies & Equipment,(id:42367) Clinical Imaging & Med Physics,COOK UK LTD,id:14361289 ,288,
Department of Health,Guys and St Thomas NHS Foundation Trust,24/09/2021,(81500) X Ray Equipment Purchase,(id:42367) Clinical Imaging & Med Physics,NHS SUPPLY CHAIN (MAIDSTONE),id:14337011  ,810,
Department of Health,Guys and St Thomas NHS Foundation Trust,10/09/2021,(84500) Establishment,(id:42366) Clinical Imaging & Med Physics,PROBRAND LIMITED,id:14398814,500.1,
Department of Health,Guys and St Thomas NHS Foundation Trust,27/09/2021,(84500) Establishment,(id:42366) Clinical Imaging & Med Physics,GSTT PROCUREMENT CARD,id:14276794,242.7,
Department of Health,Guys and St Thomas NHS Foundation Trust,03/09/2021,(81200) Medical Surgical Supplies & Equipment,(id:42366) Clinical Imaging & Med Physics,NHS SUPPLY CHAIN (MAIDSTONE),id:14322418    ,2554.16,
Department of Health,Guys and St Thomas NHS Foundation Trust,03/09/2021,(81200) Medical Surgical Supplies & Equipment,(id:42366) Clinical Imaging & Med Physics,NHS SUPPLY CHAIN (MAIDSTONE),id:14323557    ,1398.1,
Department of Health,Guys and St Thomas NHS Foundation Trust,17/09/2021,(81200) Medical Surgical Supplies & Equipment,(id:42366) Clinical Imaging & Med Physics,DELTA SURGICAL LTD,id:14389975    ,970.02,
Department of Health,Guys and St Thomas NHS Foundation Trust,03/09/2021,(83610) IT Costs,(id:42366) Clinical Imaging & Med Physics,OFFICE DEPOT UK LTD,id:14332491  ,524.4,
Department of Health,Guys and St Thomas NHS Foundation Trust,10/09/2021,(81400) Medical Surgical Supplies & Equipment,(id:42366) Clinical Imaging & Med Physics,PROTECTIVE WEAR SUPPLIES,id:14399715   ,497.4,
Department of Health,Guys and St Thomas NHS Foundation Trust,03/09/2021,(83400) Office Equipment,(id:42366) Clinical Imaging & Med Physics,NHS SUPPLY CHAIN (MAIDSTONE),id:14323557,554.17,
Department of Health,Guys and St Thomas NHS Foundation Trust,10/09/2021,(81500) X Ray Equipment Purchase,(id:4187419) Clinical Imaging & Med Physics,ADVANCED ACCELERATOR APPLICATIONS (UK & IRELAND) LTD,id:14402914 ,16690.5,
Department of Health,Guys and St Thomas NHS Foundation Trust,24/09/2021,(81500) X Ray Equipment Purchase,(id:4187419) Clinical Imaging & Med Physics,CURIUM PHARMA UK LTD,id:14431035   ,56346,
Department of Health,Guys and St Thomas NHS Foundation Trust,17/09/2021,(50203) Consultants,(id:42372) Clinical Imaging & Med Physics,KINGS COLLEGE LONDON:03529700,id:14364936    ,6088.04,
Department of Health,Guys and St Thomas NHS Foundation Trust,28/09/2021,(52062) Radiographers,(id:42372) Clinical Imaging & Med Physics,PRICEWATERHOUSECOOPERS LLP,id:14474555,1263.68,
Department of Health,Guys and St Thomas NHS Foundation Trust,10/09/2021,(81275) Medical Surgical Supplies & Equipment,(id:42372) Clinical Imaging & Med Physics,GE HEALTHCARE (50652318),id:14401944   ,2016,
Department of Health,Guys and St Thomas NHS Foundation Trust,27/09/2021,(83640) IT Costs,(id:42382) Clinical Imaging & Med Physics,GSTT PROCUREMENT CARD,id:14469334,67.96,
Department of Health,Guys and St Thomas NHS Foundation Trust,10/09/2021,(81400) Medical Surgical Supplies & Equipment,(id:42379) Clinical Imaging & Med Physics,GE MEDICAL SYSTEMS LTD,id:14407335,1122.09,
Department of Health,Guys and St Thomas NHS Foundation Trust,10/09/2021,(81400) Medical Surgical Supplies & Equipment,(id:42379) Clinical Imaging & Med Physics,PHILIPS HEALTHCARE,id:14333535    ,55700,
Department of Health,Guys and St Thomas NHS Foundation Trust,03/09/2021,(81500) X Ray Equipment Purchase,(id:42378) Clinical Imaging & Med Physics,ONCOLOGY SYSTEMS LTD,id:14365594,1684.8,
Department of Health,Guys and St Thomas NHS Foundation Trust,10/09/2021,(55642) Maintenance Staff,(id:42375) Clinical Imaging & Med Physics,MORGAN HUNT UK LTD,id:14408689    ,966.6,
Department of Health,Guys and St Thomas NHS Foundation Trust,03/09/2021,(81250) Medical Surgical Supplies & Equipment,(id:1348419) Clinical Imaging & Med Physics,AQUILANT DISTRIBUTION,id:14377404    ,1020,
Department of Health,Guys and St Thomas NHS Foundation Trust,24/09/2021,(81250) Medical Surgical Supplies & Equipment,(id:1348419) Clinical Imaging & Med Physics,AQUILANT DISTRIBUTION,id:14431020    ,1044,
Department of Health,Guys and St Thomas NHS Foundation Trust,24/09/2021,(81250) Medical Surgical Supplies & Equipment,(id:1348419) Clinical Imaging & Med Physics,AQUILANT DISTRIBUTION,id:14431016    ,1260,
Department of Health,Guys and St Thomas NHS Foundation Trust,03/09/2021,(81200) Medical Surgical Supplies & Equipment,(id:1348419) Clinical Imaging & Med Physics,NHS SUPPLY CHAIN (MAIDSTONE),id:14323557  ,3676.58,
Department of Health,Guys and St Thomas NHS Foundation Trust,24/09/2021,(81200) Medical Surgical Supplies & Equipment,(id:1348419) Clinical Imaging & Med Physics,WL GORE & ASSOCIATES (UK) LTD,id:14427663 ,5766,
Department of Health,Guys and St Thomas NHS Foundation Trust,24/09/2021,(82800) Bedding & Linen,(id:590469) Integrated Local Services,NHS SUPPLY CHAIN (MAIDSTONE),id:14370204,5.32,
Department of Health,Guys and St Thomas NHS Foundation Trust,03/09/2021,(83400) Office Equipment,(id:590469) Integrated Local Services,NHS SUPPLY CHAIN (MAIDSTONE),id:14323557    ,44.22,
Department of Health,Guys and St Thomas NHS Foundation Trust,03/09/2021,(82000) Provisions & Kitchens,(id:590466) Integrated Local Services,NHS SUPPLY CHAIN (MAIDSTONE),id:14322418    ,29.02,
Department of Health,Guys and St Thomas NHS Foundation Trust,03/09/2021,(83400) Office Equipment,(id:590464) Integrated Local Services,NHS SUPPLY CHAIN (MAIDSTONE),id:14322418    ,12.12,
Department of Health,Guys and St Thomas NHS Foundation Trust,24/09/2021,(84400) Transport,(id:590579) Integrated Local Services,TRANSPORT TRADING LTD,id:14450254   ,558,
Department of Health,Guys and St Thomas NHS Foundation Trust,28/09/2021,(82800) Bedding & Linen,(id:590495) Integrated Local Services,NHS SUPPLY CHAIN (MAIDSTONE),id:14350551,25.44,
Department of Health,Guys and St Thomas NHS Foundation Trust,03/09/2021,(50562) Qualified Nursing Staff,(id:1885424) Integrated Local Services,MSI GROUP LTD,id:14380516 ,1106.16,
Department of Health,Guys and St Thomas NHS Foundation Trust,17/09/2021,(50562) Qualified Nursing Staff,(id:1885424) Integrated Local Services,MSI GROUP LTD,id:14426149 ,2078.11,
Department of Health,Guys and St Thomas NHS Foundation Trust,28/09/2021,(51862) Physiotherapists,(id:699422) Integrated Local Services,PRICEWATERHOUSECOOPERS LLP,id:14473275 ,569.38,
Department of Health,Guys and St Thomas NHS Foundation Trust,10/09/2021,(50562) Qualified Nursing Staff,(id:699422) Integrated Local Services,MSI GROUP LTD,id:14407069  ,1106.16,
Department of Health,Guys and St Thomas NHS Foundation Trust,28/09/2021,(51862) Physiotherapists,(id:684419) Integrated Local Services,PRICEWATERHOUSECOOPERS LLP,id:14474602 ,2419.56,
Department of Health,Guys and St Thomas NHS Foundation Trust,03/09/2021,(81200) Medical Surgical Supplies & Equipment,(id:684419) Integrated Local Services,NHS SUPPLY CHAIN (MAIDSTONE),id:14322418   ,69.8,
Department of Health,Guys and St Thomas NHS Foundation Trust,28/09/2021,(89595) Non-Healthcare from Foundation Trusts,(id:590503) Integrated Local Services,KING'S COLLEGE HOSPITAL NHS FOUNDATION TRUST,id:14445441  ,-20757.4,
Department of Health,Guys and St Thomas NHS Foundation Trust,10/09/2021,(50552) Qualified Nursing Staff,(id:590522) Integrated Local Services,MSI GROUP LTD,id:14407146  ,1012.53,
Department of Health,Guys and St Thomas NHS Foundation Trust,24/09/2021,(50552) Qualified Nursing Staff,(id:590522) Integrated Local Services,MSI GROUP LTD,id:14454793  ,956.52,
Department of Health,Guys and St Thomas NHS Foundation Trust,17/09/2021,(50552) Qualified Nursing Staff,(id:590521) Integrated Local Services,NURSING 2000 LTD,id:14380644    ,913.11,
Department of Health,Guys and St Thomas NHS Foundation Trust,24/09/2021,(50552) Qualified Nursing Staff,(id:590521) Integrated Local Services,NURSING 2000 LTD,id:14406838    ,424.15,
Department of Health,Guys and St Thomas NHS Foundation Trust,24/09/2021,(81100) Dressings,(id:590520) Integrated Local Services,NHS SUPPLY CHAIN (MAIDSTONE),id:14370204 ,3.54,
Department of Health,Guys and St Thomas NHS Foundation Trust,03/09/2021,(82000) Provisions & Kitchens,(id:590520) Integrated Local Services,NHS SUPPLY CHAIN (MAIDSTONE),id:14323557    ,50.38,
Department of Health,Guys and St Thomas NHS Foundation Trust,28/09/2021,(83400) Office Equipment,(id:590473) Integrated Local Services,NHS SUPPLY CHAIN (MAIDSTONE),id:14350551    ,29.02,
Department of Health,Guys and St Thomas NHS Foundation Trust,28/09/2021,(81100) Dressings,(id:590473) Integrated Local Services,NHS SUPPLY CHAIN (MAIDSTONE),id:14350551 ,69.36,
Department of Health,Guys and St Thomas NHS Foundation Trust,03/09/2021,(81200) Medical Surgical Supplies & Equipment,(id:590473) Integrated Local Services,NHS SUPPLY CHAIN (MAIDSTONE),id:14322418   ,827.27,
Department of Health,Guys and St Thomas NHS Foundation Trust,03/09/2021,(81700) Lab Equipment Purchase,(id:590473) Integrated Local Services,NHS SUPPLY CHAIN (MAIDSTONE),id:14322418   ,23.5,
Department of Health,Guys and St Thomas NHS Foundation Trust,03/09/2021,(82000) Provisions & Kitchens,(id:590473) Integrated Local Services,NHS SUPPLY CHAIN (MAIDSTONE),id:14323557    ,46.08,
Department of Health,Guys and St Thomas NHS Foundation Trust,24/09/2021,(50552) Qualified Nursing Staff,(id:590471) Integrated Local Services,NURSING 2000 LTD,id:14456421    ,725.28,
Department of Health,Guys and St Thomas NHS Foundation Trust,03/09/2021,(81255) Medical Surgical Supplies & Equipment,(id:590471) Integrated Local Services,NHS SUPPLY CHAIN (MAIDSTONE),id:14323557   ,5.04,
Department of Health,Guys and St Thomas NHS Foundation Trust,28/09/2021,(82000) Provisions & Kitchens,(id:590470) Integrated Local Services,NHS SUPPLY CHAIN (MAIDSTONE),id:14350551    ,3.22,
Department of Health,Guys and St Thomas NHS Foundation Trust,28/09/2021,(81100) Dressings,(id:590535) Integrated Local Services,NHS SUPPLY CHAIN (MAIDSTONE),id:14350551 ,3.4,
Department of Health,Guys and St Thomas NHS Foundation Trust,24/09/2021,(81200) Medical Surgical Supplies & Equipment,(id:590463) Integrated Local Services,NHS SUPPLY CHAIN (MAIDSTONE),id:14370204   ,79.49,
Department of Health,Guys and St Thomas NHS Foundation Trust,24/09/2021,(81200) Medical Surgical Supplies & Equipment,(id:590463) Integrated Local Services,NHS SUPPLY CHAIN (MAIDSTONE),id:14337011   ,220.32,
Department of Health,Guys and St Thomas NHS Foundation Trust,03/09/2021,(82000) Provisions & Kitchens,(id:590527) Integrated Local Services,NHS SUPPLY CHAIN (MAIDSTONE),id:14322418    ,151.59,
Department of Health,Guys and St Thomas NHS Foundation Trust,03/09/2021,(81200) Medical Surgical Supplies & Equipment,(id:590527) Integrated Local Services,NHS SUPPLY CHAIN (MAIDSTONE),id:14322418   ,287.94,
Department of Health,Guys and St Thomas NHS Foundation Trust,28/09/2021,(81700) Lab Equipment Purchase,(id:590527) Integrated Local Services,NHS SUPPLY CHAIN (MAIDSTONE),id:14350551   ,3.28,
Department of Health,Guys and St Thomas NHS Foundation Trust,17/09/2021,(83350) Premises Services,(id:590526) Integrated Local Services,CARLISLE SECURITY SERVICES LTD,id:14418656 ,17637.12,
Department of Health,Guys and St Thomas NHS Foundation Trust,24/09/2021,(82000) Provisions & Kitchens,(id:1379420) Integrated Local Services,NHS SUPPLY CHAIN (MAIDSTONE),id:14370204   ,7.8,
Department of Health,Guys and St Thomas NHS Foundation Trust,28/09/2021,(81100) Dressings,(id:903421) Integrated Local Services,NHS SUPPLY CHAIN (MAIDSTONE),id:14350551 ,95.27,
Department of Health,Guys and St Thomas NHS Foundation Trust,24/09/2021,(81700) Lab Equipment Purchase,(id:903421) Integrated Local Services,NHS SUPPLY CHAIN (MAIDSTONE),id:14370204   ,135.21,
Department of Health,Guys and St Thomas NHS Foundation Trust,10/09/2021,(50552) Qualified Nursing Staff,(id:4834422) Integrated Local Services,NURSING 2000 LTD,id:14406837   ,794.59,
Department of Health,Guys and St Thomas NHS Foundation Trust,10/09/2021,(50552) Qualified Nursing Staff,(id:4834421) Integrated Local Services,NURSING 2000 LTD,id:14359700   ,863.71,
Department of Health,Guys and St Thomas NHS Foundation Trust,17/09/2021,(50552) Qualified Nursing Staff,(id:4834421) Integrated Local Services,NURSING 2000 LTD,id:14380646   ,504.16,
Department of Health,Guys and St Thomas NHS Foundation Trust,28/09/2021,(81255) Medical Surgical Supplies & Equipment,(id:4263422) Integrated Local Services,NHS SUPPLY CHAIN (MAIDSTONE),id:14350551  ,95.62,
Department of Health,Guys and St Thomas NHS Foundation Trust,03/09/2021,(50562) Qualified Nursing Staff,(id:42518) Evelina Womens Services,GLOBE LOCUMS LTD,id:14380451  ,589.44,
Department of Health,Guys and St Thomas NHS Foundation Trust,03/09/2021,(83400) Office Equipment,(id:42517) Evelina Womens Services,NHS SUPPLY CHAIN (MAIDSTONE),id:14322418  ,26.61,
Department of Health,Guys and St Thomas NHS Foundation Trust,24/09/2021,(55042) Admin & Clerical,(id:42517) Evelina Womens Services,VENN GROUP LTD,id:14454602 ,3782.83,
Department of Health,Guys and St Thomas NHS Foundation Trust,03/09/2021,(81100) Dressings,(id:42517) Evelina Womens Services,ELIS UK LIMITED,id:14360561  ,565,
Department of Health,Guys and St Thomas NHS Foundation Trust,10/09/2021,(89595) Non-Healthcare from Foundation Trusts,(id:42517) Evelina Womens Services,EAST SUFFOLK AND NORTH ESSEX NHS FOUNDATION TRUST,id:13147953,3200,
Department of Health,Guys and St Thomas NHS Foundation Trust,10/09/2021,(89595) Non-Healthcare from Foundation Trusts,(id:42517) Evelina Womens Services,EAST SUFFOLK AND NORTH ESSEX NHS FOUNDATION TRUST,id:13147952,16000,
Department of Health,Guys and St Thomas NHS Foundation Trust,03/09/2021,(82700) Uniforms & Clothing,(id:42517) Evelina Womens Services,NHS SUPPLY CHAIN (MAIDSTONE),id:14322418    ,155.04,
Department of Health,Guys and St Thomas NHS Foundation Trust,03/09/2021,(81700) Lab Equipment Purchase,(id:42517) Evelina Womens Services,NHS SUPPLY CHAIN (MAIDSTONE),id:14323557 ,50.76,
Department of Health,Guys and St Thomas NHS Foundation Trust,24/09/2021,(81500) X Ray Equipment Purchase,(id:42517) Evelina Womens Services,ORIGIO LTD DELTA PARK,id:13806895 ,4526.46,
Department of Health,Guys and St Thomas NHS Foundation Trust,29/09/2021,(83400) Office Equipment,(id:42514) Evelina Womens Services,SMARTSURVEY LTD,id:14467894,1000,
Department of Health,Guys and St Thomas NHS Foundation Trust,03/09/2021,(84656) Establishment,(id:42514) Evelina Womens Services,CIVICA UK LTD,id:14325515,10093.2,
Department of Health,Guys and St Thomas NHS Foundation Trust,03/09/2021,(81200) Medical Surgical Supplies & Equipment,(id:42513) Evelina Womens Services,NHS SUPPLY CHAIN (MAIDSTONE),id:14323557 ,596.16,
Department of Health,Guys and St Thomas NHS Foundation Trust,24/09/2021,(81200) Medical Surgical Supplies & Equipment,(id:42513) Evelina Womens Services,NHS SUPPLY CHAIN (MAIDSTONE),id:14337011 ,595.68,
Department of Health,Guys and St Thomas NHS Foundation Trust,24/09/2021,(83400) Office Equipment,(id:42513) Evelina Womens Services,NHS SUPPLY CHAIN (MAIDSTONE),id:14337011  ,152.39,
Department of Health,Guys and St Thomas NHS Foundation Trust,03/09/2021,(81100) Dressings,(id:42513) Evelina Womens Services,NHS SUPPLY CHAIN (MAIDSTONE),id:14322418    ,41.08,
Department of Health,Guys and St Thomas NHS Foundation Trust,24/09/2021,(81100) Dressings,(id:42513) Evelina Womens Services,NHS SUPPLY CHAIN (MAIDSTONE),id:14370204    ,67.6,
Department of Health,Guys and St Thomas NHS Foundation Trust,24/09/2021,(81700) Lab Equipment Purchase,(id:42513) Evelina Womens Services,NHS SUPPLY CHAIN (MAIDSTONE),id:14370204 ,11.57,
Department of Health,Guys and St Thomas NHS Foundation Trust,03/09/2021,(82800) Bedding & Linen,(id:42513) Evelina Womens Services,NHS SUPPLY CHAIN (MAIDSTONE),id:14323557   ,170.42,
Department of Health,Guys and St Thomas NHS Foundation Trust,24/09/2021,(82700) Uniforms & Clothing,(id:42513) Evelina Womens Services,NHS SUPPLY CHAIN (MAIDSTONE),id:14337011    ,84.65,
Department of Health,Guys and St Thomas NHS Foundation Trust,03/09/2021,(81225) Medical Surgical Supplies & Equipment,(id:42513) Evelina Womens Services,NHS SUPPLY CHAIN (MAIDSTONE),id:14323557 ,44.92,
Department of Health,Guys and St Thomas NHS Foundation Trust,24/09/2021,(82000) Provisions & Kitchens,(id:42513) Evelina Womens Services,NHS SUPPLY CHAIN (MAIDSTONE),id:14337011  ,53.69,
Department of Health,Guys and St Thomas NHS Foundation Trust,24/09/2021,(81225) Medical Surgical Supplies & Equipment,(id:42510) Evelina Womens Services,NHS SUPPLY CHAIN (MAIDSTONE),id:14337011 ,6.29,
Department of Health,Guys and St Thomas NHS Foundation Trust,03/09/2021,(81100) Dressings,(id:42509) Evelina Womens Services,NHS SUPPLY CHAIN (MAIDSTONE),id:14322418    ,416.59,
Department of Health,Guys and St Thomas NHS Foundation Trust,28/09/2021,(81100) Dressings,(id:42509) Evelina Womens Services,NHS SUPPLY CHAIN (MAIDSTONE),id:14350551    ,123.46,
Department of Health,Guys and St Thomas NHS Foundation Trust,17/09/2021,(50522) Unqualified Nursing Staff,(id:42509) Evelina Womens Services,GLOBE LOCUMS LTD,id:14426316,241.67,
Department of Health,Guys and St Thomas NHS Foundation Trust,03/09/2021,(81200) Medical Surgical Supplies & Equipment,(id:42509) Evelina Womens Services,NHS SUPPLY CHAIN (MAIDSTONE),id:14322418 ,298.38,
Department of Health,Guys and St Thomas NHS Foundation Trust,10/09/2021,(81200) Medical Surgical Supplies & Equipment,(id:42509) Evelina Womens Services,JOHNSON & JOHNSON MEDICAL LTD,id:14355534,627.6,
Department of Health,Guys and St Thomas NHS Foundation Trust,24/09/2021,(81200) Medical Surgical Supplies & Equipment,(id:42506) Evelina Womens Services,NHS SUPPLY CHAIN (MAIDSTONE),id:14370204 ,7434.35,
Department of Health,Guys and St Thomas NHS Foundation Trust,10/09/2021,(83610) IT Costs,(id:42506) Evelina Womens Services,OFFICE DEPOT UK LTD,id:14355483    ,193.58,
Department of Health,Guys and St Thomas NHS Foundation Trust,24/09/2021,(81700) Lab Equipment Purchase,(id:42506) Evelina Womens Services,NHS SUPPLY CHAIN (MAIDSTONE),id:14370204 ,97.4,
Department of Health,Guys and St Thomas NHS Foundation Trust,24/09/2021,(81550) X Ray Equipment Purchase,(id:42506) Evelina Womens Services,NHS SUPPLY CHAIN (MAIDSTONE),id:14370204    ,75.6,
Department of Health,Guys and St Thomas NHS Foundation Trust,24/09/2021,(83400) Office Equipment,(id:42486) Evelina Womens Services,NHS SUPPLY CHAIN (MAIDSTONE),id:14337011  ,39.86,
Department of Health,Guys and St Thomas NHS Foundation Trust,28/09/2021,(81550) X Ray Equipment Purchase,(id:42486) Evelina Womens Services,NHS SUPPLY CHAIN (MAIDSTONE),id:14350551    ,33,
Department of Health,Guys and St Thomas NHS Foundation Trust,24/09/2021,(81225) Medical Surgical Supplies & Equipment,(id:42486) Evelina Womens Services,NHS SUPPLY CHAIN (MAIDSTONE),id:14370204 ,6.29,
Department of Health,Guys and St Thomas NHS Foundation Trust,24/09/2021,(84500) Establishment,(id:42488) Evelina Womens Services,CDP  PRINT MANAGEMENT,id:14444931  ,707.02,
Department of Health,Guys and St Thomas NHS Foundation Trust,24/09/2021,(81700) Lab Equipment Purchase,(id:42488) Evelina Womens Services,NHS SUPPLY CHAIN (MAIDSTONE),id:14370204 ,241.19,
Department of Health,Guys and St Thomas NHS Foundation Trust,24/09/2021,(83400) Office Equipment,(id:4314419) Evelina Womens Services,VINYL GRAPHICS LTD,id:13311114,10208.4,
Department of Health,Guys and St Thomas NHS Foundation Trust,17/09/2021,(50562) Qualified Nursing Staff,(id:42497) Evelina Womens Services,CARE PROVIDERS HEALTHCARE,id:14426060   ,432.73,
Department of Health,Guys and St Thomas NHS Foundation Trust,03/09/2021,(81700) Lab Equipment Purchase,(id:42497) Evelina Womens Services,NHS SUPPLY CHAIN (MAIDSTONE),id:14322418 ,1563,
Department of Health,Guys and St Thomas NHS Foundation Trust,24/09/2021,(82000) Provisions & Kitchens,(id:42493) Evelina Womens Services,NHS SUPPLY CHAIN (MAIDSTONE),id:14337011  ,1.31,
Department of Health,Guys and St Thomas NHS Foundation Trust,28/09/2021,(82000) Provisions & Kitchens,(id:42493) Evelina Womens Services,NHS SUPPLY CHAIN (MAIDSTONE),id:14350551  ,12.48,
Department of Health,Guys and St Thomas NHS Foundation Trust,03/09/2021,(82800) Bedding & Linen,(id:42493) Evelina Womens Services,NHS SUPPLY CHAIN (MAIDSTONE),id:14323557   ,88.09,
Department of Health,Guys and St Thomas NHS Foundation Trust,03/09/2021,(81200) Medical Surgical Supplies & Equipment,(id:42493) Evelina Womens Services,NHS SUPPLY CHAIN (MAIDSTONE),id:14322418 ,654.74,
Department of Health,Guys and St Thomas NHS Foundation Trust,24/09/2021,(81700) Lab Equipment Purchase,(id:42493) Evelina Womens Services,NHS SUPPLY CHAIN (MAIDSTONE),id:14337011 ,59.55,
Department of Health,Guys and St Thomas NHS Foundation Trust,28/09/2021,(81700) Lab Equipment Purchase,(id:42493) Evelina Womens Services,NHS SUPPLY CHAIN (MAIDSTONE),id:14350551 ,27.05,
Department of Health,Guys and St Thomas NHS Foundation Trust,03/09/2021,(82600) Uniforms & Clothing,(id:42492) Evelina Womens Services,NHS SUPPLY CHAIN (MAIDSTONE),id:14322418    ,162.25,
Department of Health,Guys and St Thomas NHS Foundation Trust,24/09/2021,(82700) Uniforms & Clothing,(id:42492) Evelina Womens Services,NHS SUPPLY CHAIN (MAIDSTONE),id:14337011    ,118.91,
Department of Health,Guys and St Thomas NHS Foundation Trust,28/09/2021,(82000) Provisions & Kitchens,(id:42492) Evelina Womens Services,NHS SUPPLY CHAIN (MAIDSTONE),id:14350551  ,48.35,
Department of Health,Guys and St Thomas NHS Foundation Trust,03/09/2021,(81100) Dressings,(id:42492) Evelina Womens Services,SMITHS MEDICAL INTERNATIONAL LTD:69519000,id:14382934 ,597.22,
Department of Health,Guys and St Thomas NHS Foundation Trust,03/09/2021,(81100) Dressings,(id:42492) Evelina Womens Services,NHS SUPPLY CHAIN (MAIDSTONE),id:14322418    ,862.29,
Department of Health,Guys and St Thomas NHS Foundation Trust,24/09/2021,(81100) Dressings,(id:42492) Evelina Womens Services,NHS SUPPLY CHAIN (MAIDSTONE),id:14337011    ,1083.17,
Department of Health,Guys and St Thomas NHS Foundation Trust,24/09/2021,(50552) Qualified Nursing Staff,(id:42492) Evelina Womens Services,GLOBE LOCUMS LTD,id:14454735  ,340.44,
Department of Health,Guys and St Thomas NHS Foundation Trust,10/09/2021,(83350) Premises Services,(id:42492) Evelina Womens Services,ASSIST SECURITY LIMITED,id:14361154 ,1800,
Department of Health,Guys and St Thomas NHS Foundation Trust,24/09/2021,(81225) Medical Surgical Supplies & Equipment,(id:42492) Evelina Womens Services,NHS SUPPLY CHAIN (MAIDSTONE),id:14337011 ,111.61,
Department of Health,Guys and St Thomas NHS Foundation Trust,24/09/2021,(81275) Medical Surgical Supplies & Equipment,(id:42492) Evelina Womens Services,NHS SUPPLY CHAIN (MAIDSTONE),id:14370204 ,10.68,
Department of Health,Guys and St Thomas NHS Foundation Trust,03/09/2021,(81255) Medical Surgical Supplies & Equipment,(id:42492) Evelina Womens Services,NHS SUPPLY CHAIN (MAIDSTONE),id:14322418 ,1.87,
Department of Health,Guys and St Thomas NHS Foundation Trust,03/09/2021,(82000) Provisions & Kitchens,(id:42491) Evelina Womens Services,NHS SUPPLY CHAIN (MAIDSTONE),id:14323557  ,209.96,
Department of Health,Guys and St Thomas NHS Foundation Trust,03/09/2021,(83400) Office Equipment,(id:42491) Evelina Womens Services,NHS SUPPLY CHAIN (MAIDSTONE),id:14322418  ,62.95,
Department of Health,Guys and St Thomas NHS Foundation Trust,03/09/2021,(83400) Office Equipment,(id:42491) Evelina Womens Services,NHS SUPPLY CHAIN (MAIDSTONE),id:14323557  ,55.59,
Department of Health,Guys and St Thomas NHS Foundation Trust,24/09/2021,(83400) Office Equipment,(id:42491) Evelina Womens Services,NHS SUPPLY CHAIN (MAIDSTONE),id:14337011  ,81.45,
Department of Health,Guys and St Thomas NHS Foundation Trust,24/09/2021,(81100) Dressings,(id:42491) Evelina Womens Services,NHS SUPPLY CHAIN (MAIDSTONE),id:14370204    ,213.41,
Department of Health,Guys and St Thomas NHS Foundation Trust,24/09/2021,(81200) Medical Surgical Supplies & Equipment,(id:42491) Evelina Womens Services,NHS SUPPLY CHAIN (MAIDSTONE),id:14337011 ,738.31,
Department of Health,Guys and St Thomas NHS Foundation Trust,03/09/2021,(81225) Medical Surgical Supplies & Equipment,(id:42491) Evelina Womens Services,NHS SUPPLY CHAIN (MAIDSTONE),id:14323557 ,3.6,
Department of Health,Guys and St Thomas NHS Foundation Trust,03/09/2021,(81700) Lab Equipment Purchase,(id:42491) Evelina Womens Services,NHS SUPPLY CHAIN (MAIDSTONE),id:14323557 ,21.67,
Department of Health,Guys and St Thomas NHS Foundation Trust,10/09/2021,(89595) Non-Healthcare from Foundation Trusts,(id:42504) Evelina Womens Services,UNIVERSITY COLLEGE LONDON HOSPITALS NHS FOUNDATION TRUST,id:14360564   ,3078,
Department of Health,Guys and St Thomas NHS Foundation Trust,10/09/2021,(89595) Non-Healthcare from Foundation Trusts,(id:42504) Evelina Womens Services,EAST SUFFOLK AND NORTH ESSEX NHS FOUNDATION TRUST,id:14272649,7600,
Department of Health,Guys and St Thomas NHS Foundation Trust,17/09/2021,(89595) Non-Healthcare from Foundation Trusts,(id:42504) Evelina Womens Services,UNIVERSITY COLLEGE LONDON HOSPITALS NHS FOUNDATION TRUST,id:14413374   ,-658.35,
Department of Health,Guys and St Thomas NHS Foundation Trust,24/09/2021,(82700) Uniforms & Clothing,(id:42348) Evelina Central,NHS SUPPLY CHAIN (MAIDSTONE),id:14337011  ,13.98,
Department of Health,Guys and St Thomas NHS Foundation Trust,28/09/2021,(82000) Provisions & Kitchens,(id:42348) Evelina Central,NHS SUPPLY CHAIN (MAIDSTONE),id:14350551,50.6,
Department of Health,Guys and St Thomas NHS Foundation Trust,24/09/2021,(82800) Bedding & Linen,(id:42348) Evelina Central,NHS SUPPLY CHAIN (MAIDSTONE),id:14337011 ,92.86,
Department of Health,Guys and St Thomas NHS Foundation Trust,24/09/2021,(82800) Bedding & Linen,(id:42348) Evelina Central,NHS SUPPLY CHAIN (MAIDSTONE),id:14370204 ,94.36,
Department of Health,Guys and St Thomas NHS Foundation Trust,24/09/2021,(84500) Establishment,(id:42348) Evelina Central,CDP  PRINT MANAGEMENT,id:14445260,744.96,
Department of Health,Guys and St Thomas NHS Foundation Trust,03/09/2021,(81100) Dressings,(id:42348) Evelina Central,NHS SUPPLY CHAIN (MAIDSTONE),id:14322418  ,85.75,
Department of Health,Guys and St Thomas NHS Foundation Trust,03/09/2021,(81200) Medical Surgical Supplies & Equipment,(id:42348) Evelina Central,NHS SUPPLY CHAIN (MAIDSTONE),id:14322418    ,1183.01,
Department of Health,Guys and St Thomas NHS Foundation Trust,03/09/2021,(81225) Medical Surgical Supplies & Equipment,(id:42348) Evelina Central,NHS SUPPLY CHAIN (MAIDSTONE),id:14323557    ,6.24,
Department of Health,Guys and St Thomas NHS Foundation Trust,03/09/2021,(82700) Uniforms & Clothing,(id:42331) Evelina Central,NHS SUPPLY CHAIN (MAIDSTONE),id:14322418  ,59.45,
Department of Health,Guys and St Thomas NHS Foundation Trust,24/09/2021,(82700) Uniforms & Clothing,(id:42331) Evelina Central,NHS SUPPLY CHAIN (MAIDSTONE),id:14370204  ,9.8,
Department of Health,Guys and St Thomas NHS Foundation Trust,24/09/2021,(82800) Bedding & Linen,(id:42331) Evelina Central,NHS SUPPLY CHAIN (MAIDSTONE),id:14370204 ,289.83,
Department of Health,Guys and St Thomas NHS Foundation Trust,03/09/2021,(81200) Medical Surgical Supplies & Equipment,(id:42331) Evelina Central,NHS SUPPLY CHAIN (MAIDSTONE),id:14323557    ,1787.19,
Department of Health,Guys and St Thomas NHS Foundation Trust,24/09/2021,(81225) Medical Surgical Supplies & Equipment,(id:42331) Evelina Central,NHS SUPPLY CHAIN (MAIDSTONE),id:14337011    ,17.8,
Department of Health,Guys and St Thomas NHS Foundation Trust,03/09/2021,(81700) Lab Equipment Purchase,(id:42331) Evelina Central,NHS SUPPLY CHAIN (MAIDSTONE),id:14322418    ,38.83,
Department of Health,Guys and St Thomas NHS Foundation Trust,28/09/2021,(82000) Provisions & Kitchens,(id:42331) Evelina Central,NHS SUPPLY CHAIN (MAIDSTONE),id:14350551,152.92,
Department of Health,Guys and St Thomas NHS Foundation Trust,24/09/2021,(84600) Establishment,(id:4199419) Evelina Central,CLARITY TRAVEL MANAGEMENT,id:14443056    ,25.68,
Department of Health,Guys and St Thomas NHS Foundation Trust,27/09/2021,(89000) Other - Training courses and conferences,(id:2972420) Evelina Central,GSTT PROCUREMENT CARD,id:14276794 ,40,
Department of Health,Guys and St Thomas NHS Foundation Trust,24/09/2021,(82000) Provisions & Kitchens,(id:42319) Evelina Central,NHS SUPPLY CHAIN (MAIDSTONE),id:14337011,29.52,
Department of Health,Guys and St Thomas NHS Foundation Trust,28/09/2021,(81200) Medical Surgical Supplies & Equipment,(id:42319) Evelina Central,NHS SUPPLY CHAIN (MAIDSTONE),id:14350551    ,163.86,
Department of Health,Guys and St Thomas NHS Foundation Trust,10/09/2021,(81225) Medical Surgical Supplies & Equipment,(id:590444) Evelina Community Services,SONOVA UK LTD,id:14399762  ,728.64,
Department of Health,Guys and St Thomas NHS Foundation Trust,28/09/2021,(53062) Speech Therapists,(id:590451) Evelina Community Services,PRICEWATERHOUSECOOPERS LLP,id:14473275    ,1501.45,
Department of Health,Guys and St Thomas NHS Foundation Trust,24/09/2021,(82000) Provisions & Kitchens,(id:590557) Evelina Community Services,NHS SUPPLY CHAIN (MAIDSTONE),id:14370204   ,31.09,
Department of Health,Guys and St Thomas NHS Foundation Trust,03/09/2021,(82000) Provisions & Kitchens,(id:590541) Evelina Community Services,NHS SUPPLY CHAIN (MAIDSTONE),id:14322418   ,316.2,
Department of Health,Guys and St Thomas NHS Foundation Trust,24/09/2021,(82000) Provisions & Kitchens,(id:590539) Evelina Community Services,NHS SUPPLY CHAIN (MAIDSTONE),id:14337011   ,107.94,
Department of Health,Guys and St Thomas NHS Foundation Trust,28/09/2021,(82000) Provisions & Kitchens,(id:590539) Evelina Community Services,NHS SUPPLY CHAIN (MAIDSTONE),id:14350551   ,78.71,
Department of Health,Guys and St Thomas NHS Foundation Trust,03/09/2021,(50562) Qualified Nursing Staff,(id:590539) Evelina Community Services,ARTHUR RAI MEDICAL SERVICES LTD,id:14380541   ,1053.6,
Department of Health,Guys and St Thomas NHS Foundation Trust,28/09/2021,(82000) Provisions & Kitchens,(id:590419) Evelina Community Services,NHS SUPPLY CHAIN (MAIDSTONE),id:14350551   ,385.5,
Department of Health,Guys and St Thomas NHS Foundation Trust,10/09/2021,(83610) IT Costs,(id:590417) Evelina Community Services,OFFICE DEPOT UK LTD,id:14342332,1207.94,
Department of Health,Guys and St Thomas NHS Foundation Trust,24/09/2021,(82000) Provisions & Kitchens,(id:590417) Evelina Community Services,NHS SUPPLY CHAIN (MAIDSTONE),id:14370204   ,154.2,
Department of Health,Guys and St Thomas NHS Foundation Trust,24/09/2021,(50562) Qualified Nursing Staff,(id:590542) Evelina Community Services,ARTHUR RAI MEDICAL SERVICES LTD,id:14455026   ,1053.6,
Department of Health,Guys and St Thomas NHS Foundation Trust,17/09/2021,(81200) Medical Surgical Supplies & Equipment,(id:590540) Evelina Community Services,MALEM MEDICAL,id:14425774  ,1187.4,
Department of Health,Guys and St Thomas NHS Foundation Trust,24/09/2021,(50562) Qualified Nursing Staff,(id:590421) Evelina Community Services,ARTHUR RAI MEDICAL SERVICES LTD,id:14456412   ,1317,
Department of Health,Guys and St Thomas NHS Foundation Trust,03/09/2021,(81200) Medical Surgical Supplies & Equipment,(id:2356419) Evelina Medicine & Neonatology,NHS SUPPLY CHAIN (MAIDSTONE),id:14323557  ,1025.76,
Department of Health,Guys and St Thomas NHS Foundation Trust,03/09/2021,(81100) Dressings,(id:2356419) Evelina Medicine & Neonatology,NHS SUPPLY CHAIN (MAIDSTONE),id:14322418,10.26,
Department of Health,Guys and St Thomas NHS Foundation Trust,28/09/2021,(81100) Dressings,(id:2356419) Evelina Medicine & Neonatology,NHS SUPPLY CHAIN (MAIDSTONE),id:14350551,64.08,
Department of Health,Guys and St Thomas NHS Foundation Trust,03/09/2021,(81230) Medical Surgical Supplies & Equipment,(id:2356419) Evelina Medicine & Neonatology,NHS SUPPLY CHAIN (MAIDSTONE),id:14323557  ,365.4,
Department of Health,Guys and St Thomas NHS Foundation Trust,03/09/2021,(81225) Medical Surgical Supplies & Equipment,(id:4446419) Evelina Medicine & Neonatology,NHS SUPPLY CHAIN (MAIDSTONE),id:14323557  ,103.5,
Department of Health,Guys and St Thomas NHS Foundation Trust,28/09/2021,(81100) Dressings,(id:2499420) Evelina Medicine & Neonatology,NHS SUPPLY CHAIN (MAIDSTONE),id:14350551,2.27,
Department of Health,Guys and St Thomas NHS Foundation Trust,24/09/2021,(50522) Unqualified Nursing Staff,(id:2499420) Evelina Medicine & Neonatology,GLOBE LOCUMS LTD,id:14456358 ,245.69,
Department of Health,Guys and St Thomas NHS Foundation Trust,24/09/2021,(81100) Dressings,(id:42350) Evelina Medicine & Neonatology,NHS SUPPLY CHAIN (MAIDSTONE),id:14370204  ,270.43,
Department of Health,Guys and St Thomas NHS Foundation Trust,03/09/2021,(81200) Medical Surgical Supplies & Equipment,(id:42349) Evelina Medicine & Neonatology,NHS SUPPLY CHAIN (MAIDSTONE),id:14322418    ,865.57,
Department of Health,Guys and St Thomas NHS Foundation Trust,17/09/2021,(81200) Medical Surgical Supplies & Equipment,(id:42349) Evelina Medicine & Neonatology,RADIOMETER LTD,id:14384595   ,915.89,
Department of Health,Guys and St Thomas NHS Foundation Trust,24/09/2021,(84600) Establishment,(id:42336) Evelina Medicine & Neonatology,CLARITY TRAVEL MANAGEMENT,id:14443055 ,441.61,
Department of Health,Guys and St Thomas NHS Foundation Trust,24/09/2021,(81100) Dressings,(id:817420) Evelina Medicine & Neonatology,NHS SUPPLY CHAIN (MAIDSTONE),id:14370204 ,48.65,
Department of Health,Guys and St Thomas NHS Foundation Trust,17/09/2021,(81200) Medical Surgical Supplies & Equipment,(id:817420) Evelina Medicine & Neonatology,HENLEYS MEDICAL SUPPLIES LTD,id:14419014   ,536.4,
Department of Health,Guys and St Thomas NHS Foundation Trust,03/09/2021,(81200) Medical Surgical Supplies & Equipment,(id:2497419) Evelina Medicine & Neonatology,NHS SUPPLY CHAIN (MAIDSTONE),id:14322418  ,36.72,
Department of Health,Guys and St Thomas NHS Foundation Trust,24/09/2021,(81700) Lab Equipment Purchase,(id:2497419) Evelina Medicine & Neonatology,NHS SUPPLY CHAIN (MAIDSTONE),id:14337011  ,3.9,
Department of Health,Guys and St Thomas NHS Foundation Trust,17/09/2021,(50200) Consultants,(id:42335) Evelina Medicine & Neonatology,KINGS COLLEGE LONDON:03529700,id:14217059    ,5815.95,
Department of Health,Guys and St Thomas NHS Foundation Trust,10/09/2021,(81000) Surgical Appliances,(id:42335) Evelina Medicine & Neonatology,JOHN FLORENCE LTD,id:14398414   ,904.02,
Department of Health,Guys and St Thomas NHS Foundation Trust,24/09/2021,(82700) Uniforms & Clothing,(id:42327) Evelina Medicine & Neonatology,NHS SUPPLY CHAIN (MAIDSTONE),id:14337011  ,37.43,
Department of Health,Guys and St Thomas NHS Foundation Trust,24/09/2021,(82000) Provisions & Kitchens,(id:42327) Evelina Medicine & Neonatology,NHS SUPPLY CHAIN (MAIDSTONE),id:14337011,109.4,
Department of Health,Guys and St Thomas NHS Foundation Trust,24/09/2021,(81200) Medical Surgical Supplies & Equipment,(id:42327) Evelina Medicine & Neonatology,MEDACX LIMITED,id:14442085   ,600,
Department of Health,Guys and St Thomas NHS Foundation Trust,24/09/2021,(81200) Medical Surgical Supplies & Equipment,(id:42327) Evelina Medicine & Neonatology,MEDACX LIMITED,id:14441674   ,4896,
Department of Health,Guys and St Thomas NHS Foundation Trust,24/09/2021,(81200) Medical Surgical Supplies & Equipment,(id:42327) Evelina Medicine & Neonatology,MEDACX LIMITED,id:14442094   ,4410,
Department of Health,Guys and St Thomas NHS Foundation Trust,24/09/2021,(81200) Medical Surgical Supplies & Equipment,(id:42327) Evelina Medicine & Neonatology,MEDACX LIMITED,id:14442090   ,4680,
Department of Health,Guys and St Thomas NHS Foundation Trust,03/09/2021,(83400) Office Equipment,(id:42327) Evelina Medicine & Neonatology,NHS SUPPLY CHAIN (MAIDSTONE),id:14322418,152.49,
Department of Health,Guys and St Thomas NHS Foundation Trust,24/09/2021,(83400) Office Equipment,(id:42327) Evelina Medicine & Neonatology,NHS SUPPLY CHAIN (MAIDSTONE),id:14370204,554.12,
Department of Health,Guys and St Thomas NHS Foundation Trust,10/09/2021,(81230) Medical Surgical Supplies & Equipment,(id:42327) Evelina Medicine & Neonatology,VYGON (UK) LTD,id:14342384   ,579.24,
Department of Health,Guys and St Thomas NHS Foundation Trust,17/09/2021,(81230) Medical Surgical Supplies & Equipment,(id:42327) Evelina Medicine & Neonatology,VYGON (UK) LTD,id:14371689   ,579.24,
Department of Health,Guys and St Thomas NHS Foundation Trust,24/09/2021,(81225) Medical Surgical Supplies & Equipment,(id:42327) Evelina Medicine & Neonatology,NHS SUPPLY CHAIN (MAIDSTONE),id:14337011    ,128.23,
Department of Health,Guys and St Thomas NHS Foundation Trust,03/09/2021,(81200) Medical Surgical Supplies & Equipment,(id:1196420) Evelina Medicine & Neonatology,INSULET INTERNATIONAL LTD,id:14346654,1182.96,
Department of Health,Guys and St Thomas NHS Foundation Trust,17/09/2021,(81200) Medical Surgical Supplies & Equipment,(id:1196420) Evelina Medicine & Neonatology,DEXCOM INTERNATIONAL LTD,id:14424057 ,600,
Department of Health,Guys and St Thomas NHS Foundation Trust,17/09/2021,(81200) Medical Surgical Supplies & Equipment,(id:1196420) Evelina Medicine & Neonatology,DEXCOM INTERNATIONAL LTD,id:14424195 ,600,
Department of Health,Guys and St Thomas NHS Foundation Trust,17/09/2021,(81200) Medical Surgical Supplies & Equipment,(id:1196420) Evelina Medicine & Neonatology,DEXCOM INTERNATIONAL LTD,id:14424194 ,600,
Department of Health,Guys and St Thomas NHS Foundation Trust,17/09/2021,(81200) Medical Surgical Supplies & Equipment,(id:1196420) Evelina Medicine & Neonatology,INSULET INTERNATIONAL LTD,id:14408540,712.08,
Department of Health,Guys and St Thomas NHS Foundation Trust,24/09/2021,(81200) Medical Surgical Supplies & Equipment,(id:1196420) Evelina Medicine & Neonatology,INSULET INTERNATIONAL LTD,id:14441976,712.08,
Department of Health,Guys and St Thomas NHS Foundation Trust,03/09/2021,(81700) Lab Equipment Purchase,(id:1196420) Evelina Medicine & Neonatology,NHS SUPPLY CHAIN (MAIDSTONE),id:14323557  ,526.56,
Department of Health,Guys and St Thomas NHS Foundation Trust,24/09/2021,(84501) Establishment,(id:1196420) Evelina Medicine & Neonatology,CDP  PRINT MANAGEMENT,id:14442180   ,624,
Department of Health,Guys and St Thomas NHS Foundation Trust,28/09/2021,(81700) Lab Equipment Purchase,(id:2496419) Evelina Medicine & Neonatology,NHS SUPPLY CHAIN (MAIDSTONE),id:14350551  ,5.34,
Department of Health,Guys and St Thomas NHS Foundation Trust,10/09/2021,(81255) Medical Surgical Supplies & Equipment,(id:2496419) Evelina Medicine & Neonatology,RESPIRONICS UK,id:14401952 ,808.68,
Department of Health,Guys and St Thomas NHS Foundation Trust,03/09/2021,(82000) Provisions & Kitchens,(id:2496419) Evelina Medicine & Neonatology,NHS SUPPLY CHAIN (MAIDSTONE),id:14323557   ,38.98,
Department of Health,Guys and St Thomas NHS Foundation Trust,24/09/2021,(81100) Dressings,(id:2496419) Evelina Medicine & Neonatology,NHS SUPPLY CHAIN (MAIDSTONE),id:14337011,166.66,
Department of Health,Guys and St Thomas NHS Foundation Trust,03/09/2021,(81200) Medical Surgical Supplies & Equipment,(id:2981419) Evelina Medicine & Neonatology,NHS SUPPLY CHAIN (MAIDSTONE),id:14323557  ,127.26,
Department of Health,Guys and St Thomas NHS Foundation Trust,24/09/2021,(82700) Uniforms & Clothing,(id:41874) Evelina Medicine & Neonatology,NHS SUPPLY CHAIN (MAIDSTONE),id:14370204  ,8.61,
Department of Health,Guys and St Thomas NHS Foundation Trust,03/09/2021,(81200) Medical Surgical Supplies & Equipment,(id:41874) Evelina Medicine & Neonatology,NHS SUPPLY CHAIN (MAIDSTONE),id:14322418    ,64.47,
Department of Health,Guys and St Thomas NHS Foundation Trust,24/09/2021,(81100) Dressings,(id:41874) Evelina Medicine & Neonatology,NHS SUPPLY CHAIN (MAIDSTONE),id:14370204  ,66.81,
Department of Health,Guys and St Thomas NHS Foundation Trust,24/09/2021,(83400) Office Equipment,(id:41874) Evelina Medicine & Neonatology,NHS SUPPLY CHAIN (MAIDSTONE),id:14370204,0.76,
Department of Health,Guys and St Thomas NHS Foundation Trust,03/09/2021,(50532) Unqualified Nursing Staff,(id:2495419) Evelina Medicine & Neonatology,GLOBE LOCUMS LTD,id:14380637 ,270.27,
Department of Health,Guys and St Thomas NHS Foundation Trust,10/09/2021,(89595) Non-Healthcare from Foundation Trusts,(id:42326) Evelina Medicine & Neonatology,GREAT ORMOND STREET HOSPITAL FOR CHILDREN NHS FOUNDATION TRUST,id:14370348,2930.57,
Department of Health,Guys and St Thomas NHS Foundation Trust,03/09/2021,(83400) Office Equipment,(id:42323) Evelina Medicine & Neonatology,NHS SUPPLY CHAIN (MAIDSTONE),id:14323557,46.07,
Department of Health,Guys and St Thomas NHS Foundation Trust,28/09/2021,(83400) Office Equipment,(id:42323) Evelina Medicine & Neonatology,NHS SUPPLY CHAIN (MAIDSTONE),id:14350551,72.93,
Department of Health,Guys and St Thomas NHS Foundation Trust,03/09/2021,(81700) Lab Equipment Purchase,(id:42323) Evelina Medicine & Neonatology,NHS SUPPLY CHAIN (MAIDSTONE),id:14323557    ,72.38,
Department of Health,Guys and St Thomas NHS Foundation Trust,03/09/2021,(82800) Bedding & Linen,(id:42323) Evelina Medicine & Neonatology,NHS SUPPLY CHAIN (MAIDSTONE),id:14323557 ,144.08,
Department of Health,Guys and St Thomas NHS Foundation Trust,03/09/2021,(81225) Medical Surgical Supplies & Equipment,(id:42323) Evelina Medicine & Neonatology,NHS SUPPLY CHAIN (MAIDSTONE),id:14323557    ,17.66,
Department of Health,Guys and St Thomas NHS Foundation Trust,28/09/2021,(82800) Bedding & Linen,(id:42315) Evelina Medicine & Neonatology,NHS SUPPLY CHAIN (MAIDSTONE),id:14350551 ,43.72,
Department of Health,Guys and St Thomas NHS Foundation Trust,03/09/2021,(81225) Medical Surgical Supplies & Equipment,(id:42315) Evelina Medicine & Neonatology,NHS SUPPLY CHAIN (MAIDSTONE),id:14322418    ,8.9,
Department of Health,Guys and St Thomas NHS Foundation Trust,03/09/2021,(81700) Lab Equipment Purchase,(id:42315) Evelina Medicine & Neonatology,NHS SUPPLY CHAIN (MAIDSTONE),id:14322418    ,69.21,
Department of Health,Guys and St Thomas NHS Foundation Trust,24/09/2021,(81700) Lab Equipment Purchase,(id:4082419) Evelina Surgery Theatres & PICU,NHS SUPPLY CHAIN (MAIDSTONE),id:14370204 ,86.7,
Department of Health,Guys and St Thomas NHS Foundation Trust,28/09/2021,(82000) Provisions & Kitchens,(id:4082419) Evelina Surgery Theatres & PICU,NHS SUPPLY CHAIN (MAIDSTONE),id:14350551  ,66.91,
Department of Health,Guys and St Thomas NHS Foundation Trust,28/09/2021,(83400) Office Equipment,(id:4082419) Evelina Surgery Theatres & PICU,NHS SUPPLY CHAIN (MAIDSTONE),id:14350551  ,151.03,
Department of Health,Guys and St Thomas NHS Foundation Trust,03/09/2021,(81100) Dressings,(id:4082419) Evelina Surgery Theatres & PICU,NHS SUPPLY CHAIN (MAIDSTONE),id:14323557    ,408.38,
Department of Health,Guys and St Thomas NHS Foundation Trust,10/09/2021,(81200) Medical Surgical Supplies & Equipment,(id:42312) Evelina Surgery Theatres & PICU,CARDINAL HEALTH UK 432 LIMITED,id:14332612 ,637.2,
Department of Health,Guys and St Thomas NHS Foundation Trust,24/09/2021,(81200) Medical Surgical Supplies & Equipment,(id:42312) Evelina Surgery Theatres & PICU,NHS SUPPLY CHAIN (MAIDSTONE),id:14370204   ,2114.4,
Department of Health,Guys and St Thomas NHS Foundation Trust,24/09/2021,(81200) Medical Surgical Supplies & Equipment,(id:42312) Evelina Surgery Theatres & PICU,MEDTRONIC LTD,id:14380829   ,2265,
Department of Health,Guys and St Thomas NHS Foundation Trust,24/09/2021,(84600) Establishment,(id:42312) Evelina Surgery Theatres & PICU,CLARITY TRAVEL MANAGEMENT,id:14443056,598.31,
Department of Health,Guys and St Thomas NHS Foundation Trust,24/09/2021,(84600) Establishment,(id:42312) Evelina Surgery Theatres & PICU,CLARITY TRAVEL MANAGEMENT,id:13402615,332.84,
Department of Health,Guys and St Thomas NHS Foundation Trust,03/09/2021,(81280) Medical Surgical Supplies & Equipment,(id:42312) Evelina Surgery Theatres & PICU,OCCLUTECH UK LTD,id:14321134,2940,
Department of Health,Guys and St Thomas NHS Foundation Trust,03/09/2021,(81280) Medical Surgical Supplies & Equipment,(id:42312) Evelina Surgery Theatres & PICU,OCCLUTECH UK LTD,id:14321114,2940,
Department of Health,Guys and St Thomas NHS Foundation Trust,24/09/2021,(81230) Medical Surgical Supplies & Equipment,(id:42312) Evelina Surgery Theatres & PICU,COOK UK LTD,id:14403650,230.4,
Department of Health,Guys and St Thomas NHS Foundation Trust,24/09/2021,(84600) Establishment,(id:42351) Evelina Surgery Theatres & PICU,CLARITY TRAVEL MANAGEMENT,id:14443055,147.82,
Department of Health,Guys and St Thomas NHS Foundation Trust,24/09/2021,(82000) Provisions & Kitchens,(id:41914) Evelina Surgery Theatres & PICU,NHS SUPPLY CHAIN (MAIDSTONE),id:14370204    ,16.78,
Department of Health,Guys and St Thomas NHS Foundation Trust,24/09/2021,(82800) Bedding & Linen,(id:41914) Evelina Surgery Theatres & PICU,NHS SUPPLY CHAIN (MAIDSTONE),id:14370204,240.24,
Department of Health,Guys and St Thomas NHS Foundation Trust,24/09/2021,(82800) Bedding & Linen,(id:41914) Evelina Surgery Theatres & PICU,NHS SUPPLY CHAIN (MAIDSTONE),id:14337011,321.99,
Department of Health,Guys and St Thomas NHS Foundation Trust,28/09/2021,(82700) Uniforms & Clothing,(id:41914) Evelina Surgery Theatres & PICU,NHS SUPPLY CHAIN (MAIDSTONE),id:14350551 ,14.3,
Department of Health,Guys and St Thomas NHS Foundation Trust,03/09/2021,(81200) Medical Surgical Supplies & Equipment,(id:41914) Evelina Surgery Theatres & PICU,NHS SUPPLY CHAIN (MAIDSTONE),id:14322418   ,604.94,
Department of Health,Guys and St Thomas NHS Foundation Trust,24/09/2021,(50562) Qualified Nursing Staff,(id:41914) Evelina Surgery Theatres & PICU,PULSE HEALTHCARE LIMITED,id:14454907 ,603.38,
Department of Health,Guys and St Thomas NHS Foundation Trust,28/09/2021,(81100) Dressings,(id:41914) Evelina Surgery Theatres & PICU,NHS SUPPLY CHAIN (MAIDSTONE),id:14350551 ,104.25,
Department of Health,Guys and St Thomas NHS Foundation Trust,03/09/2021,(81225) Medical Surgical Supplies & Equipment,(id:41914) Evelina Surgery Theatres & PICU,NHS SUPPLY CHAIN (MAIDSTONE),id:14322418   ,14.68,
Department of Health,Guys and St Thomas NHS Foundation Trust,10/09/2021,(50552) Qualified Nursing Staff,(id:41914) Evelina Surgery Theatres & PICU,CONTINENTAL NURSE LTD,id:14407229    ,1193.08,
Department of Health,Guys and St Thomas NHS Foundation Trust,03/09/2021,(81100) Dressings,(id:41910) Evelina Surgery Theatres & PICU,NHS SUPPLY CHAIN (MAIDSTONE),id:14322418 ,93.94,
Department of Health,Guys and St Thomas NHS Foundation Trust,28/09/2021,(83400) Office Equipment,(id:3722419) Evelina Surgery Theatres & PICU,NHS SUPPLY CHAIN (MAIDSTONE),id:14350551  ,5.46,
Department of Health,Guys and St Thomas NHS Foundation Trust,24/09/2021,(81200) Medical Surgical Supplies & Equipment,(id:1196421) Evelina Surgery Theatres & PICU,NHS SUPPLY CHAIN (MAIDSTONE),id:14337011 ,738,
Department of Health,Guys and St Thomas NHS Foundation Trust,10/09/2021,(50552) Qualified Nursing Staff,(id:2498419) Evelina Surgery Theatres & PICU,MSI GROUP LTD,id:14406941,318.17,
Department of Health,Guys and St Thomas NHS Foundation Trust,24/09/2021,(50552) Qualified Nursing Staff,(id:2498419) Evelina Surgery Theatres & PICU,CONTINENTAL NURSE LTD,id:14454729  ,727.66,
Department of Health,Guys and St Thomas NHS Foundation Trust,03/09/2021,(81200) Medical Surgical Supplies & Equipment,(id:431409) Evelina Surgery Theatres & PICU,ORTHOPEDIATRICS EU LIMITED,id:14369874    ,602.4,
Department of Health,Guys and St Thomas NHS Foundation Trust,17/09/2021,(81200) Medical Surgical Supplies & Equipment,(id:431409) Evelina Surgery Theatres & PICU,JOHNSON & JOHNSON MEDICAL LTD,id:14424494 ,10505.88,
Department of Health,Guys and St Thomas NHS Foundation Trust,24/09/2021,(81200) Medical Surgical Supplies & Equipment,(id:431409) Evelina Surgery Theatres & PICU,NHS SUPPLY CHAIN (MAIDSTONE),id:14337011  ,373.03,
Department of Health,Guys and St Thomas NHS Foundation Trust,24/09/2021,(81000) Surgical Appliances,(id:431409) Evelina Surgery Theatres & PICU,TALAR MADE ORTHOTICS LTD,id:14442734    ,90.01,
Department of Health,Guys and St Thomas NHS Foundation Trust,24/09/2021,(81000) Surgical Appliances,(id:431409) Evelina Surgery Theatres & PICU,NHS SUPPLY CHAIN (MAIDSTONE),id:14370204,94.92,
Department of Health,Guys and St Thomas NHS Foundation Trust,24/09/2021,(81000) Surgical Appliances,(id:431409) Evelina Surgery Theatres & PICU,TALAR MADE ORTHOTICS LTD,id:14442656    ,768.49,
Department of Health,Guys and St Thomas NHS Foundation Trust,24/09/2021,(81000) Surgical Appliances,(id:431409) Evelina Surgery Theatres & PICU,JOHN FLORENCE LTD,id:14444853 ,861.97,
Department of Health,Guys and St Thomas NHS Foundation Trust,24/09/2021,(81000) Surgical Appliances,(id:431409) Evelina Surgery Theatres & PICU,JOHN FLORENCE LTD,id:14444898 ,1055.58,
Department of Health,Guys and St Thomas NHS Foundation Trust,28/09/2021,(81000) Surgical Appliances,(id:431409) Evelina Surgery Theatres & PICU,NHS SUPPLY CHAIN (MAIDSTONE),id:14350551,284.76,
Department of Health,Guys and St Thomas NHS Foundation Trust,03/09/2021,(83610) IT Costs,(id:431409) Evelina Surgery Theatres & PICU,KINGSFIELD COMPUTER PRODUCTS LTD,id:14364714  ,765.5,
Department of Health,Guys and St Thomas NHS Foundation Trust,03/09/2021,(81200) Medical Surgical Supplies & Equipment,(id:468410) Evelina Surgery Theatres & PICU,NHS SUPPLY CHAIN (MAIDSTONE),id:14322418  ,14.15,
Department of Health,Guys and St Thomas NHS Foundation Trust,10/09/2021,(81200) Medical Surgical Supplies & Equipment,(id:468410) Evelina Surgery Theatres & PICU,HEALTHCARE 21 LTD,id:14377495   ,636,
Department of Health,Guys and St Thomas NHS Foundation Trust,28/09/2021,(81200) Medical Surgical Supplies & Equipment,(id:468410) Evelina Surgery Theatres & PICU,NHS SUPPLY CHAIN (MAIDSTONE),id:14350551  ,9.59,
Department of Health,Guys and St Thomas NHS Foundation Trust,03/09/2021,(81100) Dressings,(id:468410) Evelina Surgery Theatres & PICU,NHS SUPPLY CHAIN (MAIDSTONE),id:14323557,142.82,
Department of Health,Guys and St Thomas NHS Foundation Trust,24/09/2021,(81200) Medical Surgical Supplies & Equipment,(id:468409) Evelina Surgery Theatres & PICU,GBUK ENTERAL UK,id:14436294,259.2,
Department of Health,Guys and St Thomas NHS Foundation Trust,24/09/2021,(81550) X Ray Equipment Purchase,(id:468409) Evelina Surgery Theatres & PICU,NHS SUPPLY CHAIN (MAIDSTONE),id:14370204,116.4,
Department of Health,Guys and St Thomas NHS Foundation Trust,24/09/2021,(81550) X Ray Equipment Purchase,(id:468409) Evelina Surgery Theatres & PICU,NHS SUPPLY CHAIN (MAIDSTONE),id:14337011,232.8,
Department of Health,Guys and St Thomas NHS Foundation Trust,17/09/2021,(83500) Furniture & Fittings,(id:2495421) Evelina Surgery Theatres & PICU,LAZERBEAM FIRE AND SECURITY LTD,id:14427634,780,
Department of Health,Guys and St Thomas NHS Foundation Trust,24/09/2021,(81200) Medical Surgical Supplies & Equipment,(id:2495421) Evelina Surgery Theatres & PICU,NHS SUPPLY CHAIN (MAIDSTONE),id:14337011 ,48,
Department of Health,Guys and St Thomas NHS Foundation Trust,28/09/2021,(81280) Medical Surgical Supplies & Equipment,(id:42347) Evelina Surgery Theatres & PICU,NHS SUPPLY CHAIN (MAIDSTONE),id:14350551   ,1830,
Department of Health,Guys and St Thomas NHS Foundation Trust,03/09/2021,(81100) Dressings,(id:42347) Evelina Surgery Theatres & PICU,JOHNSON & JOHNSON MEDICAL LTD,id:14324563,364.72,
Department of Health,Guys and St Thomas NHS Foundation Trust,24/09/2021,(81200) Medical Surgical Supplies & Equipment,(id:42347) Evelina Surgery Theatres & PICU,LINDSAY SURGICAL SUPPLIES LIMITED,id:14432114   ,1926,
Department of Health,Guys and St Thomas NHS Foundation Trust,24/09/2021,(81200) Medical Surgical Supplies & Equipment,(id:42347) Evelina Surgery Theatres & PICU,GBUK ENTERAL UK,id:14436334 ,340.8,
Department of Health,Guys and St Thomas NHS Foundation Trust,24/09/2021,(81200) Medical Surgical Supplies & Equipment,(id:42347) Evelina Surgery Theatres & PICU,FRESENIUS KABI LTD,id:14380677   ,517.1,
Department of Health,Guys and St Thomas NHS Foundation Trust,24/09/2021,(81200) Medical Surgical Supplies & Equipment,(id:42347) Evelina Surgery Theatres & PICU,JOHNSON & JOHNSON MEDICAL LTD,id:14400660  ,550.84,
Department of Health,Guys and St Thomas NHS Foundation Trust,24/09/2021,(81200) Medical Surgical Supplies & Equipment,(id:42347) Evelina Surgery Theatres & PICU,MEDTRONIC LTD,id:14380848   ,714.89,
Department of Health,Guys and St Thomas NHS Foundation Trust,28/09/2021,(81200) Medical Surgical Supplies & Equipment,(id:42347) Evelina Surgery Theatres & PICU,NHS SUPPLY CHAIN (MAIDSTONE),id:14350551   ,473.03,
Department of Health,Guys and St Thomas NHS Foundation Trust,28/09/2021,(82000) Provisions & Kitchens,(id:42339) Evelina Surgery Theatres & PICU,NHS SUPPLY CHAIN (MAIDSTONE),id:14350551    ,130.83,
Department of Health,Guys and St Thomas NHS Foundation Trust,03/09/2021,(82800) Bedding & Linen,(id:42339) Evelina Surgery Theatres & PICU,NHS SUPPLY CHAIN (MAIDSTONE),id:14323557,162.52,
Department of Health,Guys and St Thomas NHS Foundation Trust,24/09/2021,(81100) Dressings,(id:42339) Evelina Surgery Theatres & PICU,NHS SUPPLY CHAIN (MAIDSTONE),id:14370204 ,469.46,
Department of Health,Guys and St Thomas NHS Foundation Trust,03/09/2021,(81200) Medical Surgical Supplies & Equipment,(id:42339) Evelina Surgery Theatres & PICU,SMITHS MEDICAL INTERNATIONAL LTD:69519000,id:14381134,673.92,
Department of Health,Guys and St Thomas NHS Foundation Trust,10/09/2021,(81200) Medical Surgical Supplies & Equipment,(id:42339) Evelina Surgery Theatres & PICU,EDWARDS LIFESCIENCES LTD,id:14402286  ,576,
Department of Health,Guys and St Thomas NHS Foundation Trust,24/09/2021,(81200) Medical Surgical Supplies & Equipment,(id:42339) Evelina Surgery Theatres & PICU,EDWARDS LIFESCIENCES LTD,id:14429734  ,576.48,
Department of Health,Guys and St Thomas NHS Foundation Trust,24/09/2021,(83400) Office Equipment,(id:42339) Evelina Surgery Theatres & PICU,NHS SUPPLY CHAIN (MAIDSTONE),id:14370204    ,425.42,
Department of Health,Guys and St Thomas NHS Foundation Trust,24/09/2021,(81225) Medical Surgical Supplies & Equipment,(id:42339) Evelina Surgery Theatres & PICU,NHS SUPPLY CHAIN (MAIDSTONE),id:14337011   ,73.68,
Department of Health,Guys and St Thomas NHS Foundation Trust,28/09/2021,(81700) Lab Equipment Purchase,(id:42339) Evelina Surgery Theatres & PICU,NHS SUPPLY CHAIN (MAIDSTONE),id:14350551   ,29.16,
Department of Health,Guys and St Thomas NHS Foundation Trust,17/09/2021,(50200) Consultants,(id:4400419) Evelina R&D and Charity,KINGS COLLEGE LONDON:03529700,id:14217059    ,5466.11,
Department of Health,Guys and St Thomas NHS Foundation Trust,24/09/2021,(81700) Lab Equipment Purchase,(id:3805419) Evelina R&D and Charity,NHS SUPPLY CHAIN (MAIDSTONE),id:14370204    ,129.98,
Department of Health,Guys and St Thomas NHS Foundation Trust,10/09/2021,(89270) Establishment,(id:2634419) Evelina R&D and Charity,DR STEPHANIE LAMB,id:14401335    ,1600,
Department of Health,Guys and St Thomas NHS Foundation Trust,17/09/2021,(89270) Establishment,(id:2634419) Evelina R&D and Charity,KING'S COLLEGE HOSPITAL NHS FOUNDATION TRUST,id:14414714  ,1001.27,
Department of Health,Guys and St Thomas NHS Foundation Trust,24/09/2021,(80205) Drug Costs,(id:42134) Pathology,OCTAPHARMA LTD,id:13970407 ,5100,
Department of Health,Guys and St Thomas NHS Foundation Trust,24/09/2021,(89600) Non-Healthcare from other NHS bodies,(id:42134) Pathology,NHS BLOOD AND TRANSPLANT,id:14310334,6909,
Department of Health,Guys and St Thomas NHS Foundation Trust,28/09/2021,(89600) Non-Healthcare from other NHS bodies,(id:42134) Pathology,NHS BLOOD AND TRANSPLANT,id:14455774,606.65,
Department of Health,Guys and St Thomas NHS Foundation Trust,28/09/2021,(81200) Medical Surgical Supplies & Equipment,(id:1127419) Cardiovascular Services,NHS SUPPLY CHAIN (MAIDSTONE),id:14350551    ,25.06,
Department of Health,Guys and St Thomas NHS Foundation Trust,28/09/2021,(81100) Dressings,(id:1127419) Cardiovascular Services,NHS SUPPLY CHAIN (MAIDSTONE),id:14350551  ,630.37,
Department of Health,Guys and St Thomas NHS Foundation Trust,10/09/2021,(81100) Dressings,(id:780420) Cardiovascular Services,KCI MEDICAL LTD,id:14409027 ,1090.01,
Department of Health,Guys and St Thomas NHS Foundation Trust,03/09/2021,(82600) Uniforms & Clothing,(id:780420) Cardiovascular Services,NHS SUPPLY CHAIN (MAIDSTONE),id:14322418   ,22.05,
Department of Health,Guys and St Thomas NHS Foundation Trust,03/09/2021,(83400) Office Equipment,(id:780420) Cardiovascular Services,NHS SUPPLY CHAIN (MAIDSTONE),id:14323557 ,123.26,
Department of Health,Guys and St Thomas NHS Foundation Trust,28/09/2021,(83400) Office Equipment,(id:780420) Cardiovascular Services,NHS SUPPLY CHAIN (MAIDSTONE),id:14350551 ,137.76,
Department of Health,Guys and St Thomas NHS Foundation Trust,03/09/2021,(81700) Lab Equipment Purchase,(id:780420) Cardiovascular Services,NHS SUPPLY CHAIN (MAIDSTONE),id:14323557,25.41,
Department of Health,Guys and St Thomas NHS Foundation Trust,03/09/2021,(81255) Medical Surgical Supplies & Equipment,(id:780420) Cardiovascular Services,NHS SUPPLY CHAIN (MAIDSTONE),id:14323557,6.86,
Department of Health,Guys and St Thomas NHS Foundation Trust,03/09/2021,(82800) Bedding & Linen,(id:780420) Cardiovascular Services,NHS SUPPLY CHAIN (MAIDSTONE),id:14323557  ,168.73,
Department of Health,Guys and St Thomas NHS Foundation Trust,03/09/2021,(81230) Medical Surgical Supplies & Equipment,(id:639421) Cardiovascular Services,NHS SUPPLY CHAIN (MAIDSTONE),id:14323557,768,
Department of Health,Guys and St Thomas NHS Foundation Trust,03/09/2021,(81200) Medical Surgical Supplies & Equipment,(id:639421) Cardiovascular Services,BENTLEY INNOMED GMBH,id:14366354   ,4860,
Department of Health,Guys and St Thomas NHS Foundation Trust,10/09/2021,(81200) Medical Surgical Supplies & Equipment,(id:639421) Cardiovascular Services,CARDINAL HEALTH UK 432 LIMITED,id:14355515   ,513,
Department of Health,Guys and St Thomas NHS Foundation Trust,24/09/2021,(81200) Medical Surgical Supplies & Equipment,(id:639421) Cardiovascular Services,BENTLEY INNOMED GMBH,id:14431024   ,2040,
Department of Health,Guys and St Thomas NHS Foundation Trust,28/09/2021,(82600) Uniforms & Clothing,(id:41952) Cardiovascular Services,NHS SUPPLY CHAIN (MAIDSTONE),id:14350551    ,35.42,
Department of Health,Guys and St Thomas NHS Foundation Trust,17/09/2021,(81200) Medical Surgical Supplies & Equipment,(id:41952) Cardiovascular Services,LABORIE MEDICAL TECHNOLOGIES UK,id:14413674   ,724.8,
Department of Health,Guys and St Thomas NHS Foundation Trust,24/09/2021,(81200) Medical Surgical Supplies & Equipment,(id:41952) Cardiovascular Services,NHS SUPPLY CHAIN (MAIDSTONE),id:14370204 ,29.86,
Department of Health,Guys and St Thomas NHS Foundation Trust,03/09/2021,(81100) Dressings,(id:41952) Cardiovascular Services,NHS SUPPLY CHAIN (MAIDSTONE),id:14322418    ,1275.36,
Department of Health,Guys and St Thomas NHS Foundation Trust,03/09/2021,(81100) Dressings,(id:41952) Cardiovascular Services,NHS SUPPLY CHAIN (MAIDSTONE),id:14323557    ,2891.64,
Department of Health,Guys and St Thomas NHS Foundation Trust,28/09/2021,(81100) Dressings,(id:41952) Cardiovascular Services,NHS SUPPLY CHAIN (MAIDSTONE),id:14350551    ,1355.23,
Department of Health,Guys and St Thomas NHS Foundation Trust,03/09/2021,(83400) Office Equipment,(id:41952) Cardiovascular Services,NHS SUPPLY CHAIN (MAIDSTONE),id:14322418  ,52.4,
Department of Health,Guys and St Thomas NHS Foundation Trust,03/09/2021,(83400) Office Equipment,(id:41952) Cardiovascular Services,NHS SUPPLY CHAIN (MAIDSTONE),id:14323557  ,54.35,
Department of Health,Guys and St Thomas NHS Foundation Trust,17/09/2021,(50200) Consultants,(id:41950) Cardiovascular Services,KINGS COLLEGE LONDON:03529700,id:14364294 ,17313.24,
Department of Health,Guys and St Thomas NHS Foundation Trust,03/09/2021,(81200) Medical Surgical Supplies & Equipment,(id:41950) Cardiovascular Services,MERIT MEDICAL UK LTD,id:14378342    ,553.92,
Department of Health,Guys and St Thomas NHS Foundation Trust,17/09/2021,(81200) Medical Surgical Supplies & Equipment,(id:41950) Cardiovascular Services,VOLCANO EUROPE BVBA/SPRL,id:14384745,3336,
Department of Health,Guys and St Thomas NHS Foundation Trust,24/09/2021,(81235) Medical Surgical Supplies & Equipment,(id:41950) Cardiovascular Services,BOSTON SCIENTIFIC LTD,id:14386048   ,1080,
Department of Health,Guys and St Thomas NHS Foundation Trust,27/09/2021,(84655) Establishment,(id:41950) Cardiovascular Services,GSTT PROCUREMENT CARD,id:14276794  ,221.98,
Department of Health,Guys and St Thomas NHS Foundation Trust,10/09/2021,(81000) Surgical Appliances,(id:41950) Cardiovascular Services,MEDI UK LTD,id:14393074 ,239.76,
Department of Health,Guys and St Thomas NHS Foundation Trust,24/09/2021,(81000) Surgical Appliances,(id:41950) Cardiovascular Services,TALAR MADE ORTHOTICS LTD,id:14442835   ,228,
Department of Health,Guys and St Thomas NHS Foundation Trust,24/09/2021,(81225) Medical Surgical Supplies & Equipment,(id:41950) Cardiovascular Services,NHS SUPPLY CHAIN (MAIDSTONE),id:14337011 ,38.79,
Department of Health,Guys and St Thomas NHS Foundation Trust,10/09/2021,(81200) Medical Surgical Supplies & Equipment,(id:41948) Cardiovascular Services,LEMAITRE VASCULAR LTD,id:14392234   ,1997.4,
Department of Health,Guys and St Thomas NHS Foundation Trust,10/09/2021,(80010) Drug Costs,(id:42305) Cardiovascular Services,KINGS COLLEGE LONDON:03529700,id:14347174  ,17718.53,
Department of Health,Guys and St Thomas NHS Foundation Trust,24/09/2021,(81200) Medical Surgical Supplies & Equipment,(id:3923419) Cardiovascular Services,ABBOTT MEDICAL UK LTD,id:14451454 ,780,
Department of Health,Guys and St Thomas NHS Foundation Trust,03/09/2021,(81700) Lab Equipment Purchase,(id:3923419) Cardiovascular Services,NHS SUPPLY CHAIN (MAIDSTONE),id:14322418    ,49.8,
Department of Health,Guys and St Thomas NHS Foundation Trust,24/09/2021,(82800) Bedding & Linen,(id:3923419) Cardiovascular Services,NHS SUPPLY CHAIN (MAIDSTONE),id:14337011 ,103.78,
Department of Health,Guys and St Thomas NHS Foundation Trust,24/09/2021,(81225) Medical Surgical Supplies & Equipment,(id:3923419) Cardiovascular Services,NHS SUPPLY CHAIN (MAIDSTONE),id:14370204    ,3,
Department of Health,Guys and St Thomas NHS Foundation Trust,28/09/2021,(81700) Lab Equipment Purchase,(id:1243419) Cardiovascular Services,NHS SUPPLY CHAIN (MAIDSTONE),id:14350551    ,36.54,
Department of Health,Guys and St Thomas NHS Foundation Trust,17/09/2021,(50470) Medical Training Grades,(id:42304) Cardiovascular Services,KINGS COLLEGE LONDON:03529700,id:14217120    ,2207.09,
Department of Health,Guys and St Thomas NHS Foundation Trust,17/09/2021,(50470) Medical Training Grades,(id:42304) Cardiovascular Services,KINGS COLLEGE LONDON:03529700,id:14365734    ,974.09,
Department of Health,Guys and St Thomas NHS Foundation Trust,24/09/2021,(84600) Establishment,(id:42304) Cardiovascular Services,CLARITY TRAVEL MANAGEMENT,id:14443054   ,48.97,
Department of Health,Guys and St Thomas NHS Foundation Trust,17/09/2021,(81200) Medical Surgical Supplies & Equipment,(id:42303) Cardiovascular Services,SPACELABS HEALTHCARE LTD,id:14418455,8100,
Department of Health,Guys and St Thomas NHS Foundation Trust,03/09/2021,(82000) Provisions & Kitchens,(id:42303) Cardiovascular Services,NHS SUPPLY CHAIN (MAIDSTONE),id:14323557  ,26.76,
Department of Health,Guys and St Thomas NHS Foundation Trust,03/09/2021,(82800) Bedding & Linen,(id:42302) Cardiovascular Services,NHS SUPPLY CHAIN (MAIDSTONE),id:14322418   ,220.8,
Department of Health,Guys and St Thomas NHS Foundation Trust,24/09/2021,(81280) Medical Surgical Supplies & Equipment,(id:42302) Cardiovascular Services,NHS SUPPLY CHAIN (MAIDSTONE),id:14337011 ,76590,
Department of Health,Guys and St Thomas NHS Foundation Trust,03/09/2021,(81200) Medical Surgical Supplies & Equipment,(id:42302) Cardiovascular Services,ABBOTT MEDICAL UK LTD,id:14363674   ,2220,
Department of Health,Guys and St Thomas NHS Foundation Trust,10/09/2021,(81200) Medical Surgical Supplies & Equipment,(id:42302) Cardiovascular Services,VOLCANO EUROPE BVBA/SPRL,id:14404257,540,
Department of Health,Guys and St Thomas NHS Foundation Trust,10/09/2021,(81200) Medical Surgical Supplies & Equipment,(id:42302) Cardiovascular Services,VOLCANO EUROPE BVBA/SPRL,id:14404268,1452,
Department of Health,Guys and St Thomas NHS Foundation Trust,10/09/2021,(81200) Medical Surgical Supplies & Equipment,(id:42302) Cardiovascular Services,VOLCANO EUROPE BVBA/SPRL,id:14404294,2700,
Department of Health,Guys and St Thomas NHS Foundation Trust,24/09/2021,(81200) Medical Surgical Supplies & Equipment,(id:42302) Cardiovascular Services,TELEFLEX MEDICAL,id:14394924   ,750,
Department of Health,Guys and St Thomas NHS Foundation Trust,24/09/2021,(81200) Medical Surgical Supplies & Equipment,(id:42302) Cardiovascular Services,BOSTON SCIENTIFIC LTD,id:14380815   ,834,
Department of Health,Guys and St Thomas NHS Foundation Trust,24/09/2021,(81100) Dressings,(id:42302) Cardiovascular Services,NHS SUPPLY CHAIN (MAIDSTONE),id:14370204    ,34.95,
Department of Health,Guys and St Thomas NHS Foundation Trust,03/09/2021,(81230) Medical Surgical Supplies & Equipment,(id:42302) Cardiovascular Services,ABBOTT MEDICAL UK LTD,id:14372848   ,5460,
Department of Health,Guys and St Thomas NHS Foundation Trust,03/09/2021,(81255) Medical Surgical Supplies & Equipment,(id:42302) Cardiovascular Services,NHS SUPPLY CHAIN (MAIDSTONE),id:14323557 ,2.8,
Department of Health,Guys and St Thomas NHS Foundation Trust,28/09/2021,(81200) Medical Surgical Supplies & Equipment,(id:42301) Cardiovascular Services,NHS SUPPLY CHAIN (MAIDSTONE),id:14350551 ,40.72,
Department of Health,Guys and St Thomas NHS Foundation Trust,24/09/2021,(82700) Uniforms & Clothing,(id:42300) Cardiovascular Services,NHS SUPPLY CHAIN (MAIDSTONE),id:14370204    ,31.68,
Department of Health,Guys and St Thomas NHS Foundation Trust,28/09/2021,(82800) Bedding & Linen,(id:42300) Cardiovascular Services,NHS SUPPLY CHAIN (MAIDSTONE),id:14350551   ,62.48,
Department of Health,Guys and St Thomas NHS Foundation Trust,03/09/2021,(81200) Medical Surgical Supplies & Equipment,(id:42300) Cardiovascular Services,NHS SUPPLY CHAIN (MAIDSTONE),id:14322418 ,944.56,
Department of Health,Guys and St Thomas NHS Foundation Trust,24/09/2021,(81255) Medical Surgical Supplies & Equipment,(id:42300) Cardiovascular Services,NHS SUPPLY CHAIN (MAIDSTONE),id:14337011 ,3.37,
Department of Health,Guys and St Thomas NHS Foundation Trust,24/09/2021,(50522) Unqualified Nursing Staff,(id:42300) Cardiovascular Services,CARE PROVIDERS HEALTHCARE,id:14454702 ,338.1,
Department of Health,Guys and St Thomas NHS Foundation Trust,24/09/2021,(83400) Office Equipment,(id:42298) Cardiovascular Services,NHS SUPPLY CHAIN (MAIDSTONE),id:14370204  ,8.42,
Department of Health,Guys and St Thomas NHS Foundation Trust,28/09/2021,(83400) Office Equipment,(id:42298) Cardiovascular Services,NHS SUPPLY CHAIN (MAIDSTONE),id:14350551  ,88.2,
Department of Health,Guys and St Thomas NHS Foundation Trust,03/09/2021,(81200) Medical Surgical Supplies & Equipment,(id:42298) Cardiovascular Services,NHS SUPPLY CHAIN (MAIDSTONE),id:14322418 ,29581.3,
Department of Health,Guys and St Thomas NHS Foundation Trust,03/09/2021,(81200) Medical Surgical Supplies & Equipment,(id:42298) Cardiovascular Services,MEDTRONIC LTD,id:14285869 ,8664,
Department of Health,Guys and St Thomas NHS Foundation Trust,03/09/2021,(81200) Medical Surgical Supplies & Equipment,(id:42298) Cardiovascular Services,JOHNSON & JOHNSON MEDICAL LTD,id:14328378,1500,
Department of Health,Guys and St Thomas NHS Foundation Trust,03/09/2021,(81200) Medical Surgical Supplies & Equipment,(id:42298) Cardiovascular Services,APC CARDIOVASCULAR LTD,id:14372762  ,654,
Department of Health,Guys and St Thomas NHS Foundation Trust,10/09/2021,(81200) Medical Surgical Supplies & Equipment,(id:42298) Cardiovascular Services,JOHNSON & JOHNSON MEDICAL LTD,id:14389840,3272.56,
Department of Health,Guys and St Thomas NHS Foundation Trust,24/09/2021,(81200) Medical Surgical Supplies & Equipment,(id:42298) Cardiovascular Services,ABBOTT MEDICAL UK LTD,id:14446914   ,846,
Department of Health,Guys and St Thomas NHS Foundation Trust,24/09/2021,(81200) Medical Surgical Supplies & Equipment,(id:42298) Cardiovascular Services,JOHNSON & JOHNSON MEDICAL LTD,id:14403619,6000,
Department of Health,Guys and St Thomas NHS Foundation Trust,24/09/2021,(81200) Medical Surgical Supplies & Equipment,(id:42298) Cardiovascular Services,JOHNSON & JOHNSON MEDICAL LTD,id:14403596,1500,
Department of Health,Guys and St Thomas NHS Foundation Trust,24/09/2021,(81230) Medical Surgical Supplies & Equipment,(id:42298) Cardiovascular Services,ABBOTT MEDICAL UK LTD,id:14422183   ,554.4,
Department of Health,Guys and St Thomas NHS Foundation Trust,28/09/2021,(82000) Provisions & Kitchens,(id:42298) Cardiovascular Services,NHS SUPPLY CHAIN (MAIDSTONE),id:14350551  ,28.08,
Department of Health,Guys and St Thomas NHS Foundation Trust,03/09/2021,(82600) Uniforms & Clothing,(id:42298) Cardiovascular Services,NHS SUPPLY CHAIN (MAIDSTONE),id:14323557    ,13.14,
Department of Health,Guys and St Thomas NHS Foundation Trust,03/09/2021,(82800) Bedding & Linen,(id:42298) Cardiovascular Services,NHS SUPPLY CHAIN (MAIDSTONE),id:14323557   ,203.84,
Department of Health,Guys and St Thomas NHS Foundation Trust,24/09/2021,(81240) Medical Surgical Supplies & Equipment,(id:42298) Cardiovascular Services,NHS SUPPLY CHAIN (MAIDSTONE),id:14337011 ,39887.16,
Department of Health,Guys and St Thomas NHS Foundation Trust,03/09/2021,(81200) Medical Surgical Supplies & Equipment,(id:42291) Cardiovascular Services,NHS SUPPLY CHAIN (MAIDSTONE),id:14323557 ,429.91,
Department of Health,Guys and St Thomas NHS Foundation Trust,03/09/2021,(82000) Provisions & Kitchens,(id:42291) Cardiovascular Services,NHS SUPPLY CHAIN (MAIDSTONE),id:14322418  ,36.86,
Department of Health,Guys and St Thomas NHS Foundation Trust,17/09/2021,(50552) Qualified Nursing Staff,(id:42291) Cardiovascular Services,CONTINENTAL NURSE LTD,id:14426380  ,2102.12,
Department of Health,Guys and St Thomas NHS Foundation Trust,03/09/2021,(82000) Provisions & Kitchens,(id:42290) Cardiovascular Services,NHS SUPPLY CHAIN (MAIDSTONE),id:14322418  ,99.67,
Department of Health,Guys and St Thomas NHS Foundation Trust,03/09/2021,(83400) Office Equipment,(id:42290) Cardiovascular Services,NHS SUPPLY CHAIN (MAIDSTONE),id:14322418  ,94.11,
Department of Health,Guys and St Thomas NHS Foundation Trust,24/09/2021,(83400) Office Equipment,(id:42290) Cardiovascular Services,NHS SUPPLY CHAIN (MAIDSTONE),id:14337011  ,81.42,
Department of Health,Guys and St Thomas NHS Foundation Trust,24/09/2021,(82800) Bedding & Linen,(id:42290) Cardiovascular Services,NHS SUPPLY CHAIN (MAIDSTONE),id:14337011   ,168.81,
Department of Health,Guys and St Thomas NHS Foundation Trust,28/09/2021,(81200) Medical Surgical Supplies & Equipment,(id:42290) Cardiovascular Services,NHS SUPPLY CHAIN (MAIDSTONE),id:14350551 ,268.76,
Department of Health,Guys and St Thomas NHS Foundation Trust,28/09/2021,(81100) Dressings,(id:42290) Cardiovascular Services,NHS SUPPLY CHAIN (MAIDSTONE),id:14350551    ,109.19,
Department of Health,Guys and St Thomas NHS Foundation Trust,03/09/2021,(50522) Unqualified Nursing Staff,(id:42290) Cardiovascular Services,MSI GROUP LTD,id:14380514   ,204.02,
Department of Health,Guys and St Thomas NHS Foundation Trust,28/09/2021,(82800) Bedding & Linen,(id:42293) Cardiovascular Services,NHS SUPPLY CHAIN (MAIDSTONE),id:14350551   ,80.4,
Department of Health,Guys and St Thomas NHS Foundation Trust,03/09/2021,(81200) Medical Surgical Supplies & Equipment,(id:42293) Cardiovascular Services,AQUILANT LTD,id:14377394  ,922.8,
Department of Health,Guys and St Thomas NHS Foundation Trust,03/09/2021,(81200) Medical Surgical Supplies & Equipment,(id:42293) Cardiovascular Services,ATRICURE EUROPE BV(DO NOT RAISE ORDERS IN EUROS),id:14341516 ,2664,
Department of Health,Guys and St Thomas NHS Foundation Trust,10/09/2021,(81200) Medical Surgical Supplies & Equipment,(id:42293) Cardiovascular Services,EDWARDS LIFESCIENCES LTD,id:14402461,576,
Department of Health,Guys and St Thomas NHS Foundation Trust,17/09/2021,(81200) Medical Surgical Supplies & Equipment,(id:42293) Cardiovascular Services,MEDTRONIC LTD,id:14360927 ,1296,
Department of Health,Guys and St Thomas NHS Foundation Trust,17/09/2021,(81200) Medical Surgical Supplies & Equipment,(id:42293) Cardiovascular Services,MEDTRONIC LTD,id:14344600 ,648,
Department of Health,Guys and St Thomas NHS Foundation Trust,24/09/2021,(81200) Medical Surgical Supplies & Equipment,(id:42293) Cardiovascular Services,NHS SUPPLY CHAIN (MAIDSTONE),id:14337011 ,2962.93,
Department of Health,Guys and St Thomas NHS Foundation Trust,24/09/2021,(81200) Medical Surgical Supplies & Equipment,(id:42293) Cardiovascular Services,MEDTRONIC LTD,id:14380832 ,540,
Department of Health,Guys and St Thomas NHS Foundation Trust,03/09/2021,(81100) Dressings,(id:42293) Cardiovascular Services,NHS SUPPLY CHAIN (MAIDSTONE),id:14322418    ,1182.17,
Department of Health,Guys and St Thomas NHS Foundation Trust,17/09/2021,(81000) Surgical Appliances,(id:42293) Cardiovascular Services,MEDTRONIC LTD,id:14353187    ,252,
Department of Health,Guys and St Thomas NHS Foundation Trust,03/09/2021,(89595) Non-Healthcare from Foundation Trusts,(id:42293) Cardiovascular Services,OXFORD UNIVERSITY HOSPITALS NHS FOUNDATION TRUST,id:14038194 ,3311,
Department of Health,Guys and St Thomas NHS Foundation Trust,03/09/2021,(81280) Medical Surgical Supplies & Equipment,(id:42293) Cardiovascular Services,EDWARDS LIFESCIENCES LTD,id:14378034,2496,
Department of Health,Guys and St Thomas NHS Foundation Trust,24/09/2021,(81280) Medical Surgical Supplies & Equipment,(id:42293) Cardiovascular Services,EDWARDS LIFESCIENCES LTD,id:14429837,5640,
Department of Health,Guys and St Thomas NHS Foundation Trust,03/09/2021,(81200) Medical Surgical Supplies & Equipment,(id:42292) Cardiovascular Services,NHS SUPPLY CHAIN (MAIDSTONE),id:14323557 ,139.2,
Department of Health,Guys and St Thomas NHS Foundation Trust,03/09/2021,(81200) Medical Surgical Supplies & Equipment,(id:42292) Cardiovascular Services,LIVANOVA UK LTD,id:14373194    ,755.57,
Department of Health,Guys and St Thomas NHS Foundation Trust,03/09/2021,(81200) Medical Surgical Supplies & Equipment,(id:42292) Cardiovascular Services,WERFEN LIMITED,id:14367335,1583,
Department of Health,Guys and St Thomas NHS Foundation Trust,17/09/2021,(81200) Medical Surgical Supplies & Equipment,(id:42292) Cardiovascular Services,TERUMO UK LTD,id:14405259 ,672,
Department of Health,Guys and St Thomas NHS Foundation Trust,24/09/2021,(81200) Medical Surgical Supplies & Equipment,(id:42292) Cardiovascular Services,GETINGE LTD,id:14444919   ,523.2,
Department of Health,Guys and St Thomas NHS Foundation Trust,28/09/2021,(81200) Medical Surgical Supplies & Equipment,(id:42292) Cardiovascular Services,NHS SUPPLY CHAIN (MAIDSTONE),id:14350551 ,202.69,
Department of Health,Guys and St Thomas NHS Foundation Trust,24/09/2021,(81100) Dressings,(id:42292) Cardiovascular Services,GETINGE LTD,id:13345502 ,732,
Department of Health,Guys and St Thomas NHS Foundation Trust,24/09/2021,(81100) Dressings,(id:42292) Cardiovascular Services,GETINGE LTD,id:14444856 ,1464,
Department of Health,Guys and St Thomas NHS Foundation Trust,03/09/2021,(81700) Lab Equipment Purchase,(id:42292) Cardiovascular Services,NHS SUPPLY CHAIN (MAIDSTONE),id:14322418 ,13.27,
Department of Health,Guys and St Thomas NHS Foundation Trust,24/09/2021,(82700) Uniforms & Clothing,(id:42287) Cardiovascular Services,NHS SUPPLY CHAIN (MAIDSTONE),id:14370204    ,24.58,
Department of Health,Guys and St Thomas NHS Foundation Trust,17/09/2021,(50552) Qualified Nursing Staff,(id:42287) Cardiovascular Services,CARE PROVIDERS HEALTHCARE,id:14427567   ,343.95,
Department of Health,Guys and St Thomas NHS Foundation Trust,24/09/2021,(81700) Lab Equipment Purchase,(id:42287) Cardiovascular Services,NHS SUPPLY CHAIN (MAIDSTONE),id:14337011 ,105.7,
Department of Health,Guys and St Thomas NHS Foundation Trust,24/09/2021,(83400) Office Equipment,(id:41863) PACCS,NHS SUPPLY CHAIN (MAIDSTONE),id:14337011,63.41,
Department of Health,Guys and St Thomas NHS Foundation Trust,10/09/2021,(81200) Medical Surgical Supplies & Equipment,(id:41863) PACCS,AMBU LIMITED,id:14399545,648,
Department of Health,Guys and St Thomas NHS Foundation Trust,24/09/2021,(81200) Medical Surgical Supplies & Equipment,(id:41863) PACCS,RESMED (UK) LTD,id:14422154  ,4789.2,
Department of Health,Guys and St Thomas NHS Foundation Trust,24/09/2021,(82800) Bedding & Linen,(id:41935) PACCS,NHS SUPPLY CHAIN (MAIDSTONE),id:14370204 ,140.97,
Department of Health,Guys and St Thomas NHS Foundation Trust,03/09/2021,(50562) Qualified Nursing Staff,(id:41935) PACCS,AMC PROFESSIONAL LTD,id:14384714 ,449.72,
Department of Health,Guys and St Thomas NHS Foundation Trust,10/09/2021,(50562) Qualified Nursing Staff,(id:41935) PACCS,NATIONWIDE NURSING LTD,id:14407197    ,497.15,
